Body Name,Transaction Number,Account Code Description,Expenses Type,Service Code,Service Area Categorisation,Supplier Name,Date,Amount
Bath & North East Somerset Council,10781158,LM1,Volunt Homes Placements Top/Up,P02,"Early Years, Children & Youth",AMICUS THE UNION,17/09/2013,1349.14
Bath & North East Somerset Council,10781070,LL3,Supported Living,P03,Wellbeing,Terrence Higgins Trust West,11/07/2014,2058.08
Bath & North East Somerset Council,10779248,HA4,Responsive Maintenance PCB,P07,Community Resources,K P WILTON & SON LTD,17/09/2014,3499.27
Bath & North East Somerset Council,10780934,3F7,External Fees,P07,Community Resources,FURNITURE FILE LTD,20/10/2014,1500
Bath & North East Somerset Council,10780514,LM2,Foster Carer Allowances,P02,"Early Years, Children & Youth",SAFEHAVEN LTD,18/03/2015,10157.14
Bath & North East Somerset Council,10777134,3V1,Vehicle Purchase,P05,Neighbourhoods,AEBI SCHMIDT UK LIMITED,11/05/2015,64548.5
Bath & North East Somerset Council,10778607,LK1,Fees,P05,Neighbourhoods,M J CHURCH PLANT LTD,30/05/2015,735
Bath & North East Somerset Council,80470641,LM3,Residential Care,P03,Wellbeing,6 THE AVENUE -KEYNSHAM MENCAP,01/06/2015,577.87
Bath & North East Somerset Council,80470641,LM3,Residential Care,P03,Wellbeing,6 THE AVENUE -KEYNSHAM MENCAP,01/06/2015,577.87
Bath & North East Somerset Council,80470641,LM3,Residential Care,P03,Wellbeing,6 THE AVENUE -KEYNSHAM MENCAP,01/06/2015,577.87
Bath & North East Somerset Council,80470641,LM3,Residential Care,P03,Wellbeing,6 THE AVENUE -KEYNSHAM MENCAP,01/06/2015,577.87
Bath & North East Somerset Council,80470641,LM3,Residential Care,P03,Wellbeing,6 THE AVENUE -KEYNSHAM MENCAP,01/06/2015,577.87
Bath & North East Somerset Council,80470641,LM3,Residential Care,P03,Wellbeing,6 THE AVENUE -KEYNSHAM MENCAP,01/06/2015,577.87
Bath & North East Somerset Council,80470641,LM3,Residential Care,P03,Wellbeing,6 THE AVENUE -KEYNSHAM MENCAP,01/06/2015,577.87
Bath & North East Somerset Council,80470641,LM3,Residential Care,P03,Wellbeing,6 THE AVENUE -KEYNSHAM MENCAP,01/06/2015,577.87
Bath & North East Somerset Council,80470641,LM3,Residential Care,P03,Wellbeing,6 THE AVENUE -KEYNSHAM MENCAP,01/06/2015,668.92
Bath & North East Somerset Council,80470641,LM3,Residential Care,P03,Wellbeing,6 THE AVENUE -KEYNSHAM MENCAP,01/06/2015,668.92
Bath & North East Somerset Council,80470641,LM3,Residential Care,P03,Wellbeing,6 THE AVENUE -KEYNSHAM MENCAP,01/06/2015,971.93
Bath & North East Somerset Council,80470641,LM3,Residential Care,P03,Wellbeing,6 THE AVENUE -KEYNSHAM MENCAP,01/06/2015,971.93
Bath & North East Somerset Council,80470641,LM3,Residential Care,P03,Wellbeing,6 THE AVENUE -KEYNSHAM MENCAP,01/06/2015,1196.17
Bath & North East Somerset Council,80470641,LM3,Residential Care,P03,Wellbeing,6 THE AVENUE -KEYNSHAM MENCAP,01/06/2015,1196.17
Bath & North East Somerset Council,80470176,LL4,Direct Payments,P02,"Early Years, Children & Youth",WECIL LTD,01/06/2015,17.33
Bath & North East Somerset Council,80470176,LL4,Direct Payments,P02,"Early Years, Children & Youth",WECIL LTD,01/06/2015,17.33
Bath & North East Somerset Council,80470449,LL8,Individualised Budget,P03,Wellbeing,REDACTED,01/06/2015,926.2
Bath & North East Somerset Council,80470449,LL8,Individualised Budget,P03,Wellbeing,REDACTED,01/06/2015,926.2
Bath & North East Somerset Council,80470527,LM3,Residential Care,P03,Wellbeing,ALEXANDRA HOMES (BRISTOL) LTD,01/06/2015,1800
Bath & North East Somerset Council,80470527,LM3,Residential Care,P03,Wellbeing,ALEXANDRA HOMES (BRISTOL) LTD,01/06/2015,1800
Bath & North East Somerset Council,80470176,LL4,Direct Payments,P02,"Early Years, Children & Youth",WECIL LTD,01/06/2015,23.1
Bath & North East Somerset Council,80470176,LL4,Direct Payments,P02,"Early Years, Children & Youth",WECIL LTD,01/06/2015,23.1
Bath & North East Somerset Council,80470656,LM3,Residential Care,P03,Wellbeing,ANCHOR TRUST,01/06/2015,227.14
Bath & North East Somerset Council,80470091,LM6,Nursing Care,P03,Wellbeing,ANCHOR TRUST,01/06/2015,321.43
Bath & North East Somerset Council,80470091,LM6,Nursing Care,P03,Wellbeing,ANCHOR TRUST,01/06/2015,321.43
Bath & North East Somerset Council,80470656,LM3,Residential Care,P03,Wellbeing,ANCHOR TRUST,01/06/2015,443
Bath & North East Somerset Council,80470656,LM3,Residential Care,P03,Wellbeing,ANCHOR TRUST,01/06/2015,443
Bath & North East Somerset Council,80470656,LM3,Residential Care,P03,Wellbeing,ANCHOR TRUST,01/06/2015,443
Bath & North East Somerset Council,80470656,LM3,Residential Care,P03,Wellbeing,ANCHOR TRUST,01/06/2015,443
Bath & North East Somerset Council,80470656,LM3,Residential Care,P03,Wellbeing,ANCHOR TRUST,01/06/2015,515.45
Bath & North East Somerset Council,80470656,LM3,Residential Care,P03,Wellbeing,ANCHOR TRUST,01/06/2015,515.45
Bath & North East Somerset Council,80470656,LM3,Residential Care,P03,Wellbeing,ANCHOR TRUST,01/06/2015,550
Bath & North East Somerset Council,80470656,LM3,Residential Care,P03,Wellbeing,ANCHOR TRUST,01/06/2015,550
Bath & North East Somerset Council,80470656,LM3,Residential Care,P03,Wellbeing,ANCHOR TRUST,01/06/2015,600
Bath & North East Somerset Council,80470656,LM3,Residential Care,P03,Wellbeing,ANCHOR TRUST,01/06/2015,600
Bath & North East Somerset Council,80470656,LM3,Residential Care,P03,Wellbeing,ANCHOR TRUST,01/06/2015,680
Bath & North East Somerset Council,80470656,LM3,Residential Care,P03,Wellbeing,ANCHOR TRUST,01/06/2015,680
Bath & North East Somerset Council,80470656,LM3,Residential Care,P03,Wellbeing,ANCHOR TRUST,01/06/2015,680
Bath & North East Somerset Council,80470656,LM3,Residential Care,P03,Wellbeing,ANCHOR TRUST,01/06/2015,680
Bath & North East Somerset Council,80470656,LM3,Residential Care,P03,Wellbeing,ANCHOR TRUST,01/06/2015,700
Bath & North East Somerset Council,80470656,LM3,Residential Care,P03,Wellbeing,ANCHOR TRUST,01/06/2015,700
Bath & North East Somerset Council,80470656,LM3,Residential Care,P03,Wellbeing,ANCHOR TRUST,01/06/2015,714
Bath & North East Somerset Council,80470656,LM3,Residential Care,P03,Wellbeing,ANCHOR TRUST,01/06/2015,714
Bath & North East Somerset Council,80470091,LM6,Nursing Care,P03,Wellbeing,ANCHOR TRUST,01/06/2015,750
Bath & North East Somerset Council,80470091,LM6,Nursing Care,P03,Wellbeing,ANCHOR TRUST,01/06/2015,750
Bath & North East Somerset Council,80470656,LM3,Residential Care,P03,Wellbeing,ANCHOR TRUST,01/06/2015,795
Bath & North East Somerset Council,80470656,LM3,Residential Care,P03,Wellbeing,ANCHOR TRUST,01/06/2015,795
Bath & North East Somerset Council,80470656,LM3,Residential Care,P03,Wellbeing,ANCHOR TRUST,01/06/2015,795
Bath & North East Somerset Council,80470656,LM3,Residential Care,P03,Wellbeing,ANCHOR TRUST,01/06/2015,795
Bath & North East Somerset Council,80470656,LM3,Residential Care,P03,Wellbeing,ANCHOR TRUST,01/06/2015,795
Bath & North East Somerset Council,80470656,LM3,Residential Care,P03,Wellbeing,ANCHOR TRUST,01/06/2015,795
Bath & North East Somerset Council,80470656,LM3,Residential Care,P03,Wellbeing,ANCHOR TRUST,01/06/2015,795
Bath & North East Somerset Council,80470402,LL8,Individualised Budget,P03,Wellbeing,REDACTED,01/06/2015,324.62
Bath & North East Somerset Council,80470402,LL8,Individualised Budget,P03,Wellbeing,REDACTED,01/06/2015,324.62
Bath & North East Somerset Council,80470345,LL8,Individualised Budget,P03,Wellbeing,REDACTED,01/06/2015,346.5
Bath & North East Somerset Council,80470345,LL8,Individualised Budget,P03,Wellbeing,REDACTED,01/06/2015,346.5
Bath & North East Somerset Council,80470452,LL8,Individualised Budget,P03,Wellbeing,REDACTED,01/06/2015,500
Bath & North East Somerset Council,80470069,LL4,Direct Payments,P03,Wellbeing,REDACTED,01/06/2015,2265.35
Bath & North East Somerset Council,80470069,LL4,Direct Payments,P03,Wellbeing,REDACTED,01/06/2015,2265.35
Bath & North East Somerset Council,80470455,LL3,Supported Living,P03,Wellbeing,ARCH CARE SERVICES,01/06/2015,72
Bath & North East Somerset Council,80470455,LL3,Supported Living,P03,Wellbeing,ARCH CARE SERVICES,01/06/2015,72
Bath & North East Somerset Council,80470455,LL3,Supported Living,P03,Wellbeing,ARCH CARE SERVICES,01/06/2015,90
Bath & North East Somerset Council,80470455,LL3,Supported Living,P03,Wellbeing,ARCH CARE SERVICES,01/06/2015,90
Bath & North East Somerset Council,80470455,LL3,Supported Living,P03,Wellbeing,ARCH CARE SERVICES,01/06/2015,108
Bath & North East Somerset Council,80470455,LL3,Supported Living,P03,Wellbeing,ARCH CARE SERVICES,01/06/2015,108
Bath & North East Somerset Council,80470455,LL3,Supported Living,P03,Wellbeing,ARCH CARE SERVICES,01/06/2015,135
Bath & North East Somerset Council,80470455,LL3,Supported Living,P03,Wellbeing,ARCH CARE SERVICES,01/06/2015,135
Bath & North East Somerset Council,80470455,LL3,Supported Living,P03,Wellbeing,ARCH CARE SERVICES,01/06/2015,184.29
Bath & North East Somerset Council,80470455,LL3,Supported Living,P03,Wellbeing,ARCH CARE SERVICES,01/06/2015,252.5
Bath & North East Somerset Council,80470455,LL3,Supported Living,P03,Wellbeing,ARCH CARE SERVICES,01/06/2015,252.5
Bath & North East Somerset Council,80470455,LL3,Supported Living,P03,Wellbeing,ARCH CARE SERVICES,01/06/2015,278.76
Bath & North East Somerset Council,80470455,LL3,Supported Living,P03,Wellbeing,ARCH CARE SERVICES,01/06/2015,278.76
Bath & North East Somerset Council,80470455,LL3,Supported Living,P03,Wellbeing,ARCH CARE SERVICES,01/06/2015,312
Bath & North East Somerset Council,80470455,LL3,Supported Living,P03,Wellbeing,ARCH CARE SERVICES,01/06/2015,312
Bath & North East Somerset Council,80470455,LL3,Supported Living,P03,Wellbeing,ARCH CARE SERVICES,01/06/2015,321
Bath & North East Somerset Council,80470455,LL3,Supported Living,P03,Wellbeing,ARCH CARE SERVICES,01/06/2015,321
Bath & North East Somerset Council,80470455,LL3,Supported Living,P03,Wellbeing,ARCH CARE SERVICES,01/06/2015,346.43
Bath & North East Somerset Council,80470455,LL3,Supported Living,P03,Wellbeing,ARCH CARE SERVICES,01/06/2015,346.43
Bath & North East Somerset Council,80470455,LL3,Supported Living,P03,Wellbeing,ARCH CARE SERVICES,01/06/2015,425
Bath & North East Somerset Council,80470455,LL3,Supported Living,P03,Wellbeing,ARCH CARE SERVICES,01/06/2015,425
Bath & North East Somerset Council,80470105,LM6,Nursing Care,P03,Wellbeing,ARCH CARE SERVICES,01/06/2015,427
Bath & North East Somerset Council,80470105,LM6,Nursing Care,P03,Wellbeing,ARCH CARE SERVICES,01/06/2015,427
Bath & North East Somerset Council,80470455,LL3,Supported Living,P03,Wellbeing,ARCH CARE SERVICES,01/06/2015,430
Bath & North East Somerset Council,80470455,LL3,Supported Living,P03,Wellbeing,ARCH CARE SERVICES,01/06/2015,430
Bath & North East Somerset Council,80470455,LL3,Supported Living,P03,Wellbeing,ARCH CARE SERVICES,01/06/2015,430
Bath & North East Somerset Council,80470455,LL3,Supported Living,P03,Wellbeing,ARCH CARE SERVICES,01/06/2015,430
Bath & North East Somerset Council,80470455,LL3,Supported Living,P03,Wellbeing,ARCH CARE SERVICES,01/06/2015,430
Bath & North East Somerset Council,80470455,LL3,Supported Living,P03,Wellbeing,ARCH CARE SERVICES,01/06/2015,430
Bath & North East Somerset Council,80470455,LL3,Supported Living,P03,Wellbeing,ARCH CARE SERVICES,01/06/2015,430
Bath & North East Somerset Council,80470455,LL3,Supported Living,P03,Wellbeing,ARCH CARE SERVICES,01/06/2015,431.27
Bath & North East Somerset Council,80470455,LL3,Supported Living,P03,Wellbeing,ARCH CARE SERVICES,01/06/2015,431.27
Bath & North East Somerset Council,80470176,LL4,Direct Payments,P02,"Early Years, Children & Youth",WECIL LTD,01/06/2015,46.17
Bath & North East Somerset Council,80470176,LL4,Direct Payments,P02,"Early Years, Children & Youth",WECIL LTD,01/06/2015,46.17
Bath & North East Somerset Council,80470455,LL3,Supported Living,P03,Wellbeing,ARCH CARE SERVICES,01/06/2015,445
Bath & North East Somerset Council,80470455,LL3,Supported Living,P03,Wellbeing,ARCH CARE SERVICES,01/06/2015,445
Bath & North East Somerset Council,80470524,LM3,Residential Care,P03,Wellbeing,ARTI SERVICES LTD T/A THE MANOR FARM HOUSE,01/06/2015,443
Bath & North East Somerset Council,80470524,LM3,Residential Care,P03,Wellbeing,ARTI SERVICES LTD T/A THE MANOR FARM HOUSE,01/06/2015,443
Bath & North East Somerset Council,80470524,LM3,Residential Care,P03,Wellbeing,ARTI SERVICES LTD T/A THE MANOR FARM HOUSE,01/06/2015,443
Bath & North East Somerset Council,80470524,LM3,Residential Care,P03,Wellbeing,ARTI SERVICES LTD T/A THE MANOR FARM HOUSE,01/06/2015,443
Bath & North East Somerset Council,80470524,LM3,Residential Care,P03,Wellbeing,ARTI SERVICES LTD T/A THE MANOR FARM HOUSE,01/06/2015,443
Bath & North East Somerset Council,80470524,LM3,Residential Care,P03,Wellbeing,ARTI SERVICES LTD T/A THE MANOR FARM HOUSE,01/06/2015,443
Bath & North East Somerset Council,80470524,LM3,Residential Care,P03,Wellbeing,ARTI SERVICES LTD T/A THE MANOR FARM HOUSE,01/06/2015,443
Bath & North East Somerset Council,80470524,LM3,Residential Care,P03,Wellbeing,ARTI SERVICES LTD T/A THE MANOR FARM HOUSE,01/06/2015,443
Bath & North East Somerset Council,80470524,LM3,Residential Care,P03,Wellbeing,ARTI SERVICES LTD T/A THE MANOR FARM HOUSE,01/06/2015,443
Bath & North East Somerset Council,80470524,LM3,Residential Care,P03,Wellbeing,ARTI SERVICES LTD T/A THE MANOR FARM HOUSE,01/06/2015,443
Bath & North East Somerset Council,80470524,LM3,Residential Care,P03,Wellbeing,ARTI SERVICES LTD T/A THE MANOR FARM HOUSE,01/06/2015,486
Bath & North East Somerset Council,80470524,LM3,Residential Care,P03,Wellbeing,ARTI SERVICES LTD T/A THE MANOR FARM HOUSE,01/06/2015,486
Bath & North East Somerset Council,80470524,LM3,Residential Care,P03,Wellbeing,ARTI SERVICES LTD T/A THE MANOR FARM HOUSE,01/06/2015,486
Bath & North East Somerset Council,80470524,LM3,Residential Care,P03,Wellbeing,ARTI SERVICES LTD T/A THE MANOR FARM HOUSE,01/06/2015,486
Bath & North East Somerset Council,80470524,LM3,Residential Care,P03,Wellbeing,ARTI SERVICES LTD T/A THE MANOR FARM HOUSE,01/06/2015,486
Bath & North East Somerset Council,80470524,LM3,Residential Care,P03,Wellbeing,ARTI SERVICES LTD T/A THE MANOR FARM HOUSE,01/06/2015,486
Bath & North East Somerset Council,80470524,LM3,Residential Care,P03,Wellbeing,ARTI SERVICES LTD T/A THE MANOR FARM HOUSE,01/06/2015,495
Bath & North East Somerset Council,80470524,LM3,Residential Care,P03,Wellbeing,ARTI SERVICES LTD T/A THE MANOR FARM HOUSE,01/06/2015,495
Bath & North East Somerset Council,80470658,LM3,Residential Care,P03,Wellbeing,ASPECTS & MILESTONES TRUST,01/06/2015,843.17
Bath & North East Somerset Council,80470658,LM3,Residential Care,P03,Wellbeing,ASPECTS & MILESTONES TRUST,01/06/2015,843.17
Bath & North East Somerset Council,80470660,LM3,Residential Care,P03,Wellbeing,ASPECTS & MILESTONES TRUST,01/06/2015,965
Bath & North East Somerset Council,80470660,LM3,Residential Care,P03,Wellbeing,ASPECTS & MILESTONES TRUST,01/06/2015,965
Bath & North East Somerset Council,80470657,LM6,Nursing Care,P03,Wellbeing,ASPECTS & MILESTONES TRUST,01/06/2015,1000
Bath & North East Somerset Council,80470657,LM6,Nursing Care,P03,Wellbeing,ASPECTS & MILESTONES TRUST,01/06/2015,1000
Bath & North East Somerset Council,80470659,LM3,Residential Care,P03,Wellbeing,ASPECTS & MILESTONES TRUST,01/06/2015,1973.88
Bath & North East Somerset Council,80470659,LM3,Residential Care,P03,Wellbeing,ASPECTS & MILESTONES TRUST,01/06/2015,1973.88
Bath & North East Somerset Council,80470661,LM3,Residential Care,P03,Wellbeing,ASPECTS & MILESTONES TRUST,01/06/2015,2508.64
Bath & North East Somerset Council,80470661,LM3,Residential Care,P03,Wellbeing,ASPECTS & MILESTONES TRUST,01/06/2015,2508.64
Bath & North East Somerset Council,80470486,LM3,Residential Care,P03,Wellbeing,AUTISM SPECIALISED CARE HOMES LTD,01/06/2015,1284.26
Bath & North East Somerset Council,80470486,LM3,Residential Care,P03,Wellbeing,AUTISM SPECIALISED CARE HOMES LTD,01/06/2015,1284.26
Bath & North East Somerset Council,80470564,LM6,Nursing Care,P03,Wellbeing,AVONPARK VILLAGE (CARE HOMES) LTD,01/06/2015,588
Bath & North East Somerset Council,80470564,LM6,Nursing Care,P03,Wellbeing,AVONPARK VILLAGE (CARE HOMES) LTD,01/06/2015,588
Bath & North East Somerset Council,80470545,LM3,Residential Care,P03,Wellbeing,BAMFIELD LODGE LIMITED,01/06/2015,486
Bath & North East Somerset Council,80470545,LM3,Residential Care,P03,Wellbeing,BAMFIELD LODGE LIMITED,01/06/2015,486
Bath & North East Somerset Council,80470215,LM6,Nursing Care,P03,Wellbeing,BARCHESTER HEALTH CARE,01/06/2015,112
Bath & North East Somerset Council,80470215,LM6,Nursing Care,P03,Wellbeing,BARCHESTER HEALTH CARE,01/06/2015,112
Bath & North East Somerset Council,80470215,LM6,Nursing Care,P03,Wellbeing,BARCHESTER HEALTH CARE,01/06/2015,112
Bath & North East Somerset Council,80470215,LM6,Nursing Care,P03,Wellbeing,BARCHESTER HEALTH CARE,01/06/2015,112
Bath & North East Somerset Council,80470215,LM6,Nursing Care,P03,Wellbeing,BARCHESTER HEALTH CARE,01/06/2015,112
Bath & North East Somerset Council,80470215,LM6,Nursing Care,P03,Wellbeing,BARCHESTER HEALTH CARE,01/06/2015,112
Bath & North East Somerset Council,80470215,LM6,Nursing Care,P03,Wellbeing,BARCHESTER HEALTH CARE,01/06/2015,112
Bath & North East Somerset Council,80470215,LM6,Nursing Care,P03,Wellbeing,BARCHESTER HEALTH CARE,01/06/2015,112
Bath & North East Somerset Council,80470215,LM6,Nursing Care,P03,Wellbeing,BARCHESTER HEALTH CARE,01/06/2015,112
Bath & North East Somerset Council,80470215,LM6,Nursing Care,P03,Wellbeing,BARCHESTER HEALTH CARE,01/06/2015,112
Bath & North East Somerset Council,80470215,LM6,Nursing Care,P03,Wellbeing,BARCHESTER HEALTH CARE,01/06/2015,112
Bath & North East Somerset Council,80470215,LM6,Nursing Care,P03,Wellbeing,BARCHESTER HEALTH CARE,01/06/2015,112
Bath & North East Somerset Council,80470215,LM6,Nursing Care,P03,Wellbeing,BARCHESTER HEALTH CARE,01/06/2015,112
Bath & North East Somerset Council,80470215,LM6,Nursing Care,P03,Wellbeing,BARCHESTER HEALTH CARE,01/06/2015,112
Bath & North East Somerset Council,80470215,LM6,Nursing Care,P03,Wellbeing,BARCHESTER HEALTH CARE,01/06/2015,112
Bath & North East Somerset Council,80470215,LM6,Nursing Care,P03,Wellbeing,BARCHESTER HEALTH CARE,01/06/2015,112
Bath & North East Somerset Council,80470215,LM6,Nursing Care,P03,Wellbeing,BARCHESTER HEALTH CARE,01/06/2015,112
Bath & North East Somerset Council,80470215,LM6,Nursing Care,P03,Wellbeing,BARCHESTER HEALTH CARE,01/06/2015,112
Bath & North East Somerset Council,80470215,LM6,Nursing Care,P03,Wellbeing,BARCHESTER HEALTH CARE,01/06/2015,112
Bath & North East Somerset Council,80470215,LM6,Nursing Care,P03,Wellbeing,BARCHESTER HEALTH CARE,01/06/2015,112
Bath & North East Somerset Council,80470215,LM6,Nursing Care,P03,Wellbeing,BARCHESTER HEALTH CARE,01/06/2015,112
Bath & North East Somerset Council,80470215,LM6,Nursing Care,P03,Wellbeing,BARCHESTER HEALTH CARE,01/06/2015,112
Bath & North East Somerset Council,80470215,LM6,Nursing Care,P03,Wellbeing,BARCHESTER HEALTH CARE,01/06/2015,112
Bath & North East Somerset Council,80470215,LM6,Nursing Care,P03,Wellbeing,BARCHESTER HEALTH CARE,01/06/2015,112
Bath & North East Somerset Council,80470215,LM6,Nursing Care,P03,Wellbeing,BARCHESTER HEALTH CARE,01/06/2015,112
Bath & North East Somerset Council,80470215,LM6,Nursing Care,P03,Wellbeing,BARCHESTER HEALTH CARE,01/06/2015,112
Bath & North East Somerset Council,80470215,LM6,Nursing Care,P03,Wellbeing,BARCHESTER HEALTH CARE,01/06/2015,112
Bath & North East Somerset Council,80470215,LM6,Nursing Care,P03,Wellbeing,BARCHESTER HEALTH CARE,01/06/2015,112
Bath & North East Somerset Council,80470215,LM6,Nursing Care,P03,Wellbeing,BARCHESTER HEALTH CARE,01/06/2015,112
Bath & North East Somerset Council,80470215,LM6,Nursing Care,P03,Wellbeing,BARCHESTER HEALTH CARE,01/06/2015,112
Bath & North East Somerset Council,80470215,LM6,Nursing Care,P03,Wellbeing,BARCHESTER HEALTH CARE,01/06/2015,112
Bath & North East Somerset Council,80470215,LM6,Nursing Care,P03,Wellbeing,BARCHESTER HEALTH CARE,01/06/2015,112
Bath & North East Somerset Council,80470215,LM6,Nursing Care,P03,Wellbeing,BARCHESTER HEALTH CARE,01/06/2015,112
Bath & North East Somerset Council,80470215,LM6,Nursing Care,P03,Wellbeing,BARCHESTER HEALTH CARE,01/06/2015,112
Bath & North East Somerset Council,80470215,LM6,Nursing Care,P03,Wellbeing,BARCHESTER HEALTH CARE,01/06/2015,112
Bath & North East Somerset Council,80470215,LM6,Nursing Care,P03,Wellbeing,BARCHESTER HEALTH CARE,01/06/2015,112
Bath & North East Somerset Council,80470215,LM6,Nursing Care,P03,Wellbeing,BARCHESTER HEALTH CARE,01/06/2015,112
Bath & North East Somerset Council,80470215,LM6,Nursing Care,P03,Wellbeing,BARCHESTER HEALTH CARE,01/06/2015,112
Bath & North East Somerset Council,80470582,LM6,Nursing Care,P03,Wellbeing,BARCHESTER HEALTH CARE,01/06/2015,564
Bath & North East Somerset Council,80470582,LM6,Nursing Care,P03,Wellbeing,BARCHESTER HEALTH CARE,01/06/2015,564
Bath & North East Somerset Council,80470582,LM6,Nursing Care,P03,Wellbeing,BARCHESTER HEALTH CARE,01/06/2015,650
Bath & North East Somerset Council,80470582,LM6,Nursing Care,P03,Wellbeing,BARCHESTER HEALTH CARE,01/06/2015,650
Bath & North East Somerset Council,80470119,LM6,Nursing Care,P03,Wellbeing,BARCHESTER HEALTH CARE,01/06/2015,900
Bath & North East Somerset Council,80470119,LM6,Nursing Care,P03,Wellbeing,BARCHESTER HEALTH CARE,01/06/2015,900
Bath & North East Somerset Council,80470119,LM6,Nursing Care,P03,Wellbeing,BARCHESTER HEALTH CARE,01/06/2015,993
Bath & North East Somerset Council,80470119,LM6,Nursing Care,P03,Wellbeing,BARCHESTER HEALTH CARE,01/06/2015,993
Bath & North East Somerset Council,80470119,LM6,Nursing Care,P03,Wellbeing,BARCHESTER HEALTH CARE,01/06/2015,1050
Bath & North East Somerset Council,80470119,LM6,Nursing Care,P03,Wellbeing,BARCHESTER HEALTH CARE,01/06/2015,1050
Bath & North East Somerset Council,80470119,LM6,Nursing Care,P03,Wellbeing,BARCHESTER HEALTH CARE,01/06/2015,1100
Bath & North East Somerset Council,80470119,LM6,Nursing Care,P03,Wellbeing,BARCHESTER HEALTH CARE,01/06/2015,1100
Bath & North East Somerset Council,80470119,LM6,Nursing Care,P03,Wellbeing,BARCHESTER HEALTH CARE,01/06/2015,1119
Bath & North East Somerset Council,80470119,LM6,Nursing Care,P03,Wellbeing,BARCHESTER HEALTH CARE,01/06/2015,1119
Bath & North East Somerset Council,80470119,LM6,Nursing Care,P03,Wellbeing,BARCHESTER HEALTH CARE,01/06/2015,1139
Bath & North East Somerset Council,80470119,LM6,Nursing Care,P03,Wellbeing,BARCHESTER HEALTH CARE,01/06/2015,1139
Bath & North East Somerset Council,80470119,LM6,Nursing Care,P03,Wellbeing,BARCHESTER HEALTH CARE,01/06/2015,1139
Bath & North East Somerset Council,80470119,LM6,Nursing Care,P03,Wellbeing,BARCHESTER HEALTH CARE,01/06/2015,1139
Bath & North East Somerset Council,80470119,LM6,Nursing Care,P03,Wellbeing,BARCHESTER HEALTH CARE,01/06/2015,1139
Bath & North East Somerset Council,80470119,LM6,Nursing Care,P03,Wellbeing,BARCHESTER HEALTH CARE,01/06/2015,1139
Bath & North East Somerset Council,80470582,LM6,Nursing Care,P03,Wellbeing,BARCHESTER HEALTH CARE,01/06/2015,1150
Bath & North East Somerset Council,80470582,LM6,Nursing Care,P03,Wellbeing,BARCHESTER HEALTH CARE,01/06/2015,1150
Bath & North East Somerset Council,80470119,LM6,Nursing Care,P03,Wellbeing,BARCHESTER HEALTH CARE,01/06/2015,1180
Bath & North East Somerset Council,80470119,LM6,Nursing Care,P03,Wellbeing,BARCHESTER HEALTH CARE,01/06/2015,1180
Bath & North East Somerset Council,80470119,LM6,Nursing Care,P03,Wellbeing,BARCHESTER HEALTH CARE,01/06/2015,1200
Bath & North East Somerset Council,80470119,LM6,Nursing Care,P03,Wellbeing,BARCHESTER HEALTH CARE,01/06/2015,1200
Bath & North East Somerset Council,80470489,LM6,Nursing Care,P03,Wellbeing,BARCHESTER HEALTHCARE,01/06/2015,700
Bath & North East Somerset Council,80470489,LM6,Nursing Care,P03,Wellbeing,BARCHESTER HEALTHCARE,01/06/2015,700
Bath & North East Somerset Council,80470489,LM6,Nursing Care,P03,Wellbeing,BARCHESTER HEALTHCARE,01/06/2015,700
Bath & North East Somerset Council,80470489,LM6,Nursing Care,P03,Wellbeing,BARCHESTER HEALTHCARE,01/06/2015,700
Bath & North East Somerset Council,80470489,LM6,Nursing Care,P03,Wellbeing,BARCHESTER HEALTHCARE,01/06/2015,806.07
Bath & North East Somerset Council,80470489,LM6,Nursing Care,P03,Wellbeing,BARCHESTER HEALTHCARE,01/06/2015,806.07
Bath & North East Somerset Council,80470489,LM6,Nursing Care,P03,Wellbeing,BARCHESTER HEALTHCARE,01/06/2015,806.07
Bath & North East Somerset Council,80470489,LM6,Nursing Care,P03,Wellbeing,BARCHESTER HEALTHCARE,01/06/2015,806.07
Bath & North East Somerset Council,80470084,LM6,Nursing Care,P03,Wellbeing,BARCHESTER HEALTHCARE HOMES LTD,01/06/2015,111.49
Bath & North East Somerset Council,80470198,LM6,Nursing Care,P03,Wellbeing,BARCHESTER HEALTHCARE HOMES LTD,01/06/2015,112
Bath & North East Somerset Council,80470198,LM6,Nursing Care,P03,Wellbeing,BARCHESTER HEALTHCARE HOMES LTD,01/06/2015,112
Bath & North East Somerset Council,80470198,LM6,Nursing Care,P03,Wellbeing,BARCHESTER HEALTHCARE HOMES LTD,01/06/2015,112
Bath & North East Somerset Council,80470198,LM6,Nursing Care,P03,Wellbeing,BARCHESTER HEALTHCARE HOMES LTD,01/06/2015,112
Bath & North East Somerset Council,80470198,LM6,Nursing Care,P03,Wellbeing,BARCHESTER HEALTHCARE HOMES LTD,01/06/2015,112
Bath & North East Somerset Council,80470198,LM6,Nursing Care,P03,Wellbeing,BARCHESTER HEALTHCARE HOMES LTD,01/06/2015,112
Bath & North East Somerset Council,80470198,LM6,Nursing Care,P03,Wellbeing,BARCHESTER HEALTHCARE HOMES LTD,01/06/2015,112
Bath & North East Somerset Council,80470198,LM6,Nursing Care,P03,Wellbeing,BARCHESTER HEALTHCARE HOMES LTD,01/06/2015,112
Bath & North East Somerset Council,80470198,LM6,Nursing Care,P03,Wellbeing,BARCHESTER HEALTHCARE HOMES LTD,01/06/2015,112
Bath & North East Somerset Council,80470198,LM6,Nursing Care,P03,Wellbeing,BARCHESTER HEALTHCARE HOMES LTD,01/06/2015,112
Bath & North East Somerset Council,80470198,LM6,Nursing Care,P03,Wellbeing,BARCHESTER HEALTHCARE HOMES LTD,01/06/2015,112
Bath & North East Somerset Council,80470198,LM6,Nursing Care,P03,Wellbeing,BARCHESTER HEALTHCARE HOMES LTD,01/06/2015,112
Bath & North East Somerset Council,80470198,LM6,Nursing Care,P03,Wellbeing,BARCHESTER HEALTHCARE HOMES LTD,01/06/2015,112
Bath & North East Somerset Council,80470198,LM6,Nursing Care,P03,Wellbeing,BARCHESTER HEALTHCARE HOMES LTD,01/06/2015,112
Bath & North East Somerset Council,80470198,LM6,Nursing Care,P03,Wellbeing,BARCHESTER HEALTHCARE HOMES LTD,01/06/2015,112
Bath & North East Somerset Council,80470198,LM6,Nursing Care,P03,Wellbeing,BARCHESTER HEALTHCARE HOMES LTD,01/06/2015,112
Bath & North East Somerset Council,80470198,LM6,Nursing Care,P03,Wellbeing,BARCHESTER HEALTHCARE HOMES LTD,01/06/2015,112
Bath & North East Somerset Council,80470198,LM6,Nursing Care,P03,Wellbeing,BARCHESTER HEALTHCARE HOMES LTD,01/06/2015,112
Bath & North East Somerset Council,80470198,LM6,Nursing Care,P03,Wellbeing,BARCHESTER HEALTHCARE HOMES LTD,01/06/2015,112
Bath & North East Somerset Council,80470198,LM6,Nursing Care,P03,Wellbeing,BARCHESTER HEALTHCARE HOMES LTD,01/06/2015,112
Bath & North East Somerset Council,80470198,LM6,Nursing Care,P03,Wellbeing,BARCHESTER HEALTHCARE HOMES LTD,01/06/2015,112
Bath & North East Somerset Council,80470198,LM6,Nursing Care,P03,Wellbeing,BARCHESTER HEALTHCARE HOMES LTD,01/06/2015,112
Bath & North East Somerset Council,80470198,LM6,Nursing Care,P03,Wellbeing,BARCHESTER HEALTHCARE HOMES LTD,01/06/2015,112
Bath & North East Somerset Council,80470198,LM6,Nursing Care,P03,Wellbeing,BARCHESTER HEALTHCARE HOMES LTD,01/06/2015,112
Bath & North East Somerset Council,80470198,LM6,Nursing Care,P03,Wellbeing,BARCHESTER HEALTHCARE HOMES LTD,01/06/2015,112
Bath & North East Somerset Council,80470198,LM6,Nursing Care,P03,Wellbeing,BARCHESTER HEALTHCARE HOMES LTD,01/06/2015,112
Bath & North East Somerset Council,80470198,LM6,Nursing Care,P03,Wellbeing,BARCHESTER HEALTHCARE HOMES LTD,01/06/2015,112
Bath & North East Somerset Council,80470198,LM6,Nursing Care,P03,Wellbeing,BARCHESTER HEALTHCARE HOMES LTD,01/06/2015,112
Bath & North East Somerset Council,80470198,LM6,Nursing Care,P03,Wellbeing,BARCHESTER HEALTHCARE HOMES LTD,01/06/2015,112
Bath & North East Somerset Council,80470198,LM6,Nursing Care,P03,Wellbeing,BARCHESTER HEALTHCARE HOMES LTD,01/06/2015,112
Bath & North East Somerset Council,80470198,LM6,Nursing Care,P03,Wellbeing,BARCHESTER HEALTHCARE HOMES LTD,01/06/2015,112
Bath & North East Somerset Council,80470198,LM6,Nursing Care,P03,Wellbeing,BARCHESTER HEALTHCARE HOMES LTD,01/06/2015,112
Bath & North East Somerset Council,80470198,LM6,Nursing Care,P03,Wellbeing,BARCHESTER HEALTHCARE HOMES LTD,01/06/2015,112
Bath & North East Somerset Council,80470198,LM6,Nursing Care,P03,Wellbeing,BARCHESTER HEALTHCARE HOMES LTD,01/06/2015,112
Bath & North East Somerset Council,80470198,LM6,Nursing Care,P03,Wellbeing,BARCHESTER HEALTHCARE HOMES LTD,01/06/2015,112
Bath & North East Somerset Council,80470198,LM6,Nursing Care,P03,Wellbeing,BARCHESTER HEALTHCARE HOMES LTD,01/06/2015,112
Bath & North East Somerset Council,80470198,LM6,Nursing Care,P03,Wellbeing,BARCHESTER HEALTHCARE HOMES LTD,01/06/2015,112
Bath & North East Somerset Council,80470198,LM6,Nursing Care,P03,Wellbeing,BARCHESTER HEALTHCARE HOMES LTD,01/06/2015,112
Bath & North East Somerset Council,80470198,LM6,Nursing Care,P03,Wellbeing,BARCHESTER HEALTHCARE HOMES LTD,01/06/2015,112
Bath & North East Somerset Council,80470198,LM6,Nursing Care,P03,Wellbeing,BARCHESTER HEALTHCARE HOMES LTD,01/06/2015,112
Bath & North East Somerset Council,80470198,LM6,Nursing Care,P03,Wellbeing,BARCHESTER HEALTHCARE HOMES LTD,01/06/2015,112
Bath & North East Somerset Council,80470198,LM6,Nursing Care,P03,Wellbeing,BARCHESTER HEALTHCARE HOMES LTD,01/06/2015,112
Bath & North East Somerset Council,80470198,LM6,Nursing Care,P03,Wellbeing,BARCHESTER HEALTHCARE HOMES LTD,01/06/2015,112
Bath & North East Somerset Council,80470198,LM6,Nursing Care,P03,Wellbeing,BARCHESTER HEALTHCARE HOMES LTD,01/06/2015,112
Bath & North East Somerset Council,80470198,LM6,Nursing Care,P03,Wellbeing,BARCHESTER HEALTHCARE HOMES LTD,01/06/2015,112
Bath & North East Somerset Council,80470198,LM6,Nursing Care,P03,Wellbeing,BARCHESTER HEALTHCARE HOMES LTD,01/06/2015,112
Bath & North East Somerset Council,80470198,LM6,Nursing Care,P03,Wellbeing,BARCHESTER HEALTHCARE HOMES LTD,01/06/2015,112
Bath & North East Somerset Council,80470198,LM6,Nursing Care,P03,Wellbeing,BARCHESTER HEALTHCARE HOMES LTD,01/06/2015,112
Bath & North East Somerset Council,80470198,LM6,Nursing Care,P03,Wellbeing,BARCHESTER HEALTHCARE HOMES LTD,01/06/2015,112
Bath & North East Somerset Council,80470198,LM6,Nursing Care,P03,Wellbeing,BARCHESTER HEALTHCARE HOMES LTD,01/06/2015,112
Bath & North East Somerset Council,80470198,LM6,Nursing Care,P03,Wellbeing,BARCHESTER HEALTHCARE HOMES LTD,01/06/2015,112
Bath & North East Somerset Council,80470198,LM6,Nursing Care,P03,Wellbeing,BARCHESTER HEALTHCARE HOMES LTD,01/06/2015,112
Bath & North East Somerset Council,80470198,LM6,Nursing Care,P03,Wellbeing,BARCHESTER HEALTHCARE HOMES LTD,01/06/2015,112
Bath & North East Somerset Council,80470198,LM6,Nursing Care,P03,Wellbeing,BARCHESTER HEALTHCARE HOMES LTD,01/06/2015,112
Bath & North East Somerset Council,80470198,LM6,Nursing Care,P03,Wellbeing,BARCHESTER HEALTHCARE HOMES LTD,01/06/2015,112
Bath & North East Somerset Council,80470198,LM6,Nursing Care,P03,Wellbeing,BARCHESTER HEALTHCARE HOMES LTD,01/06/2015,112
Bath & North East Somerset Council,80470198,LM6,Nursing Care,P03,Wellbeing,BARCHESTER HEALTHCARE HOMES LTD,01/06/2015,112
Bath & North East Somerset Council,80470198,LM6,Nursing Care,P03,Wellbeing,BARCHESTER HEALTHCARE HOMES LTD,01/06/2015,112
Bath & North East Somerset Council,80470198,LM6,Nursing Care,P03,Wellbeing,BARCHESTER HEALTHCARE HOMES LTD,01/06/2015,112
Bath & North East Somerset Council,80470198,LM6,Nursing Care,P03,Wellbeing,BARCHESTER HEALTHCARE HOMES LTD,01/06/2015,112
Bath & North East Somerset Council,80470198,LM6,Nursing Care,P03,Wellbeing,BARCHESTER HEALTHCARE HOMES LTD,01/06/2015,112
Bath & North East Somerset Council,80470198,LM6,Nursing Care,P03,Wellbeing,BARCHESTER HEALTHCARE HOMES LTD,01/06/2015,112
Bath & North East Somerset Council,80470198,LM6,Nursing Care,P03,Wellbeing,BARCHESTER HEALTHCARE HOMES LTD,01/06/2015,112
Bath & North East Somerset Council,80470198,LM6,Nursing Care,P03,Wellbeing,BARCHESTER HEALTHCARE HOMES LTD,01/06/2015,112
Bath & North East Somerset Council,80470198,LM6,Nursing Care,P03,Wellbeing,BARCHESTER HEALTHCARE HOMES LTD,01/06/2015,112
Bath & North East Somerset Council,80470198,LM6,Nursing Care,P03,Wellbeing,BARCHESTER HEALTHCARE HOMES LTD,01/06/2015,112
Bath & North East Somerset Council,80470198,LM6,Nursing Care,P03,Wellbeing,BARCHESTER HEALTHCARE HOMES LTD,01/06/2015,112
Bath & North East Somerset Council,80470198,LM6,Nursing Care,P03,Wellbeing,BARCHESTER HEALTHCARE HOMES LTD,01/06/2015,112
Bath & North East Somerset Council,80470198,LM6,Nursing Care,P03,Wellbeing,BARCHESTER HEALTHCARE HOMES LTD,01/06/2015,112
Bath & North East Somerset Council,80470198,LM6,Nursing Care,P03,Wellbeing,BARCHESTER HEALTHCARE HOMES LTD,01/06/2015,112
Bath & North East Somerset Council,80470198,LM6,Nursing Care,P03,Wellbeing,BARCHESTER HEALTHCARE HOMES LTD,01/06/2015,112
Bath & North East Somerset Council,80470198,LM6,Nursing Care,P03,Wellbeing,BARCHESTER HEALTHCARE HOMES LTD,01/06/2015,112
Bath & North East Somerset Council,80470084,LM6,Nursing Care,P03,Wellbeing,BARCHESTER HEALTHCARE HOMES LTD,01/06/2015,321.43
Bath & North East Somerset Council,80470084,LM6,Nursing Care,P03,Wellbeing,BARCHESTER HEALTHCARE HOMES LTD,01/06/2015,471.43
Bath & North East Somerset Council,80470631,LM3,Residential Care,P03,Wellbeing,BARCHESTER HEALTHCARE HOMES LTD,01/06/2015,505
Bath & North East Somerset Council,80470631,LM3,Residential Care,P03,Wellbeing,BARCHESTER HEALTHCARE HOMES LTD,01/06/2015,505
Bath & North East Somerset Council,80470631,LM6,Nursing Care,P03,Wellbeing,BARCHESTER HEALTHCARE HOMES LTD,01/06/2015,564
Bath & North East Somerset Council,80470631,LM6,Nursing Care,P03,Wellbeing,BARCHESTER HEALTHCARE HOMES LTD,01/06/2015,564
Bath & North East Somerset Council,80470631,LM6,Nursing Care,P03,Wellbeing,BARCHESTER HEALTHCARE HOMES LTD,01/06/2015,564
Bath & North East Somerset Council,80470631,LM6,Nursing Care,P03,Wellbeing,BARCHESTER HEALTHCARE HOMES LTD,01/06/2015,564
Bath & North East Somerset Council,80470631,LM6,Nursing Care,P03,Wellbeing,BARCHESTER HEALTHCARE HOMES LTD,01/06/2015,564
Bath & North East Somerset Council,80470631,LM6,Nursing Care,P03,Wellbeing,BARCHESTER HEALTHCARE HOMES LTD,01/06/2015,564
Bath & North East Somerset Council,80470631,LM6,Nursing Care,P03,Wellbeing,BARCHESTER HEALTHCARE HOMES LTD,01/06/2015,564
Bath & North East Somerset Council,80470631,LM6,Nursing Care,P03,Wellbeing,BARCHESTER HEALTHCARE HOMES LTD,01/06/2015,564
Bath & North East Somerset Council,80470631,LM6,Nursing Care,P03,Wellbeing,BARCHESTER HEALTHCARE HOMES LTD,01/06/2015,564
Bath & North East Somerset Council,80470631,LM6,Nursing Care,P03,Wellbeing,BARCHESTER HEALTHCARE HOMES LTD,01/06/2015,564
Bath & North East Somerset Council,80470631,LM6,Nursing Care,P03,Wellbeing,BARCHESTER HEALTHCARE HOMES LTD,01/06/2015,588
Bath & North East Somerset Council,80470631,LM6,Nursing Care,P03,Wellbeing,BARCHESTER HEALTHCARE HOMES LTD,01/06/2015,588
Bath & North East Somerset Council,80470631,LM6,Nursing Care,P03,Wellbeing,BARCHESTER HEALTHCARE HOMES LTD,01/06/2015,650
Bath & North East Somerset Council,80470631,LM3,Residential Care,P03,Wellbeing,BARCHESTER HEALTHCARE HOMES LTD,01/06/2015,650
Bath & North East Somerset Council,80470631,LM6,Nursing Care,P03,Wellbeing,BARCHESTER HEALTHCARE HOMES LTD,01/06/2015,650
Bath & North East Somerset Council,80470631,LM3,Residential Care,P03,Wellbeing,BARCHESTER HEALTHCARE HOMES LTD,01/06/2015,650
Bath & North East Somerset Council,80470084,LM6,Nursing Care,P03,Wellbeing,BARCHESTER HEALTHCARE HOMES LTD,01/06/2015,746
Bath & North East Somerset Council,80470084,LM6,Nursing Care,P03,Wellbeing,BARCHESTER HEALTHCARE HOMES LTD,01/06/2015,746
Bath & North East Somerset Council,80470084,LM6,Nursing Care,P03,Wellbeing,BARCHESTER HEALTHCARE HOMES LTD,01/06/2015,750
Bath & North East Somerset Council,80470084,LM6,Nursing Care,P03,Wellbeing,BARCHESTER HEALTHCARE HOMES LTD,01/06/2015,750
Bath & North East Somerset Council,80470631,LM6,Nursing Care,P03,Wellbeing,BARCHESTER HEALTHCARE HOMES LTD,01/06/2015,750
Bath & North East Somerset Council,80470631,LM6,Nursing Care,P03,Wellbeing,BARCHESTER HEALTHCARE HOMES LTD,01/06/2015,750
Bath & North East Somerset Council,80470084,LM6,Nursing Care,P03,Wellbeing,BARCHESTER HEALTHCARE HOMES LTD,01/06/2015,755
Bath & North East Somerset Council,80470084,LM6,Nursing Care,P03,Wellbeing,BARCHESTER HEALTHCARE HOMES LTD,01/06/2015,755
Bath & North East Somerset Council,80470631,LM6,Nursing Care,P03,Wellbeing,BARCHESTER HEALTHCARE HOMES LTD,01/06/2015,816.66
Bath & North East Somerset Council,80470631,LM6,Nursing Care,P03,Wellbeing,BARCHESTER HEALTHCARE HOMES LTD,01/06/2015,816.66
Bath & North East Somerset Council,80470084,LM6,Nursing Care,P03,Wellbeing,BARCHESTER HEALTHCARE HOMES LTD,01/06/2015,850
Bath & North East Somerset Council,80470084,LM6,Nursing Care,P03,Wellbeing,BARCHESTER HEALTHCARE HOMES LTD,01/06/2015,850
Bath & North East Somerset Council,80470631,LM6,Nursing Care,P03,Wellbeing,BARCHESTER HEALTHCARE HOMES LTD,01/06/2015,850
Bath & North East Somerset Council,80470631,LM6,Nursing Care,P03,Wellbeing,BARCHESTER HEALTHCARE HOMES LTD,01/06/2015,850
Bath & North East Somerset Council,80470631,LM6,Nursing Care,P03,Wellbeing,BARCHESTER HEALTHCARE HOMES LTD,01/06/2015,850
Bath & North East Somerset Council,80470631,LM6,Nursing Care,P03,Wellbeing,BARCHESTER HEALTHCARE HOMES LTD,01/06/2015,850
Bath & North East Somerset Council,80470084,LM6,Nursing Care,P03,Wellbeing,BARCHESTER HEALTHCARE HOMES LTD,01/06/2015,874
Bath & North East Somerset Council,80470084,LM6,Nursing Care,P03,Wellbeing,BARCHESTER HEALTHCARE HOMES LTD,01/06/2015,874
Bath & North East Somerset Council,80470084,LM6,Nursing Care,P03,Wellbeing,BARCHESTER HEALTHCARE HOMES LTD,01/06/2015,874
Bath & North East Somerset Council,80470084,LM6,Nursing Care,P03,Wellbeing,BARCHESTER HEALTHCARE HOMES LTD,01/06/2015,874
Bath & North East Somerset Council,80470631,LM6,Nursing Care,P03,Wellbeing,BARCHESTER HEALTHCARE HOMES LTD,01/06/2015,900
Bath & North East Somerset Council,80470631,LM6,Nursing Care,P03,Wellbeing,BARCHESTER HEALTHCARE HOMES LTD,01/06/2015,900
Bath & North East Somerset Council,80470631,LM6,Nursing Care,P03,Wellbeing,BARCHESTER HEALTHCARE HOMES LTD,01/06/2015,900
Bath & North East Somerset Council,80470631,LM6,Nursing Care,P03,Wellbeing,BARCHESTER HEALTHCARE HOMES LTD,01/06/2015,900
Bath & North East Somerset Council,80470631,LM6,Nursing Care,P03,Wellbeing,BARCHESTER HEALTHCARE HOMES LTD,01/06/2015,900
Bath & North East Somerset Council,80470631,LM6,Nursing Care,P03,Wellbeing,BARCHESTER HEALTHCARE HOMES LTD,01/06/2015,900
Bath & North East Somerset Council,80470631,LM6,Nursing Care,P03,Wellbeing,BARCHESTER HEALTHCARE HOMES LTD,01/06/2015,900
Bath & North East Somerset Council,80470631,LM6,Nursing Care,P03,Wellbeing,BARCHESTER HEALTHCARE HOMES LTD,01/06/2015,900
Bath & North East Somerset Council,80470631,LM6,Nursing Care,P03,Wellbeing,BARCHESTER HEALTHCARE HOMES LTD,01/06/2015,900
Bath & North East Somerset Council,80470631,LM6,Nursing Care,P03,Wellbeing,BARCHESTER HEALTHCARE HOMES LTD,01/06/2015,900
Bath & North East Somerset Council,80470631,LM6,Nursing Care,P03,Wellbeing,BARCHESTER HEALTHCARE HOMES LTD,01/06/2015,900
Bath & North East Somerset Council,80470543,LM3,Residential Care,P03,Wellbeing,BARCHESTER HEALTHCARE HOMES LTD,01/06/2015,1735
Bath & North East Somerset Council,80470543,LM3,Residential Care,P03,Wellbeing,BARCHESTER HEALTHCARE HOMES LTD,01/06/2015,1735
Bath & North East Somerset Council,80470211,LM6,Nursing Care,P03,Wellbeing,BARKER CHEMICALS LTD T/A ST TERESA'S NH,01/06/2015,112
Bath & North East Somerset Council,80470211,LM6,Nursing Care,P03,Wellbeing,BARKER CHEMICALS LTD T/A ST TERESA'S NH,01/06/2015,112
Bath & North East Somerset Council,80470211,LM6,Nursing Care,P03,Wellbeing,BARKER CHEMICALS LTD T/A ST TERESA'S NH,01/06/2015,112
Bath & North East Somerset Council,80470211,LM6,Nursing Care,P03,Wellbeing,BARKER CHEMICALS LTD T/A ST TERESA'S NH,01/06/2015,112
Bath & North East Somerset Council,80470211,LM6,Nursing Care,P03,Wellbeing,BARKER CHEMICALS LTD T/A ST TERESA'S NH,01/06/2015,112
Bath & North East Somerset Council,80470211,LM6,Nursing Care,P03,Wellbeing,BARKER CHEMICALS LTD T/A ST TERESA'S NH,01/06/2015,112
Bath & North East Somerset Council,80470211,LM6,Nursing Care,P03,Wellbeing,BARKER CHEMICALS LTD T/A ST TERESA'S NH,01/06/2015,112
Bath & North East Somerset Council,80470211,LM6,Nursing Care,P03,Wellbeing,BARKER CHEMICALS LTD T/A ST TERESA'S NH,01/06/2015,112
Bath & North East Somerset Council,80470211,LM6,Nursing Care,P03,Wellbeing,BARKER CHEMICALS LTD T/A ST TERESA'S NH,01/06/2015,112
Bath & North East Somerset Council,80470211,LM6,Nursing Care,P03,Wellbeing,BARKER CHEMICALS LTD T/A ST TERESA'S NH,01/06/2015,112
Bath & North East Somerset Council,80470211,LM6,Nursing Care,P03,Wellbeing,BARKER CHEMICALS LTD T/A ST TERESA'S NH,01/06/2015,112
Bath & North East Somerset Council,80470211,LM6,Nursing Care,P03,Wellbeing,BARKER CHEMICALS LTD T/A ST TERESA'S NH,01/06/2015,112
Bath & North East Somerset Council,80470211,LM6,Nursing Care,P03,Wellbeing,BARKER CHEMICALS LTD T/A ST TERESA'S NH,01/06/2015,112
Bath & North East Somerset Council,80470211,LM6,Nursing Care,P03,Wellbeing,BARKER CHEMICALS LTD T/A ST TERESA'S NH,01/06/2015,112
Bath & North East Somerset Council,80470211,LM6,Nursing Care,P03,Wellbeing,BARKER CHEMICALS LTD T/A ST TERESA'S NH,01/06/2015,112
Bath & North East Somerset Council,80470211,LM6,Nursing Care,P03,Wellbeing,BARKER CHEMICALS LTD T/A ST TERESA'S NH,01/06/2015,112
Bath & North East Somerset Council,80470211,LM6,Nursing Care,P03,Wellbeing,BARKER CHEMICALS LTD T/A ST TERESA'S NH,01/06/2015,112
Bath & North East Somerset Council,80470211,LM6,Nursing Care,P03,Wellbeing,BARKER CHEMICALS LTD T/A ST TERESA'S NH,01/06/2015,112
Bath & North East Somerset Council,80470211,LM6,Nursing Care,P03,Wellbeing,BARKER CHEMICALS LTD T/A ST TERESA'S NH,01/06/2015,112
Bath & North East Somerset Council,80470211,LM6,Nursing Care,P03,Wellbeing,BARKER CHEMICALS LTD T/A ST TERESA'S NH,01/06/2015,112
Bath & North East Somerset Council,80470211,LM6,Nursing Care,P03,Wellbeing,BARKER CHEMICALS LTD T/A ST TERESA'S NH,01/06/2015,112
Bath & North East Somerset Council,80470211,LM6,Nursing Care,P03,Wellbeing,BARKER CHEMICALS LTD T/A ST TERESA'S NH,01/06/2015,112
Bath & North East Somerset Council,80470211,LM6,Nursing Care,P03,Wellbeing,BARKER CHEMICALS LTD T/A ST TERESA'S NH,01/06/2015,112
Bath & North East Somerset Council,80470211,LM6,Nursing Care,P03,Wellbeing,BARKER CHEMICALS LTD T/A ST TERESA'S NH,01/06/2015,112
Bath & North East Somerset Council,80470211,LM6,Nursing Care,P03,Wellbeing,BARKER CHEMICALS LTD T/A ST TERESA'S NH,01/06/2015,112
Bath & North East Somerset Council,80470211,LM6,Nursing Care,P03,Wellbeing,BARKER CHEMICALS LTD T/A ST TERESA'S NH,01/06/2015,112
Bath & North East Somerset Council,80470211,LM6,Nursing Care,P03,Wellbeing,BARKER CHEMICALS LTD T/A ST TERESA'S NH,01/06/2015,112
Bath & North East Somerset Council,80470211,LM6,Nursing Care,P03,Wellbeing,BARKER CHEMICALS LTD T/A ST TERESA'S NH,01/06/2015,112
Bath & North East Somerset Council,80470535,LM6,Nursing Care,P03,Wellbeing,BARKER CHEMICALS LTD T/A ST TERESA'S NH,01/06/2015,564
Bath & North East Somerset Council,80470535,LM6,Nursing Care,P03,Wellbeing,BARKER CHEMICALS LTD T/A ST TERESA'S NH,01/06/2015,564
Bath & North East Somerset Council,80470535,LM6,Nursing Care,P03,Wellbeing,BARKER CHEMICALS LTD T/A ST TERESA'S NH,01/06/2015,564
Bath & North East Somerset Council,80470535,LM6,Nursing Care,P03,Wellbeing,BARKER CHEMICALS LTD T/A ST TERESA'S NH,01/06/2015,564
Bath & North East Somerset Council,80470535,LM6,Nursing Care,P03,Wellbeing,BARKER CHEMICALS LTD T/A ST TERESA'S NH,01/06/2015,564
Bath & North East Somerset Council,80470535,LM6,Nursing Care,P03,Wellbeing,BARKER CHEMICALS LTD T/A ST TERESA'S NH,01/06/2015,564
Bath & North East Somerset Council,80470535,LM6,Nursing Care,P03,Wellbeing,BARKER CHEMICALS LTD T/A ST TERESA'S NH,01/06/2015,564
Bath & North East Somerset Council,80470535,LM6,Nursing Care,P03,Wellbeing,BARKER CHEMICALS LTD T/A ST TERESA'S NH,01/06/2015,564
Bath & North East Somerset Council,80470535,LM6,Nursing Care,P03,Wellbeing,BARKER CHEMICALS LTD T/A ST TERESA'S NH,01/06/2015,564
Bath & North East Somerset Council,80470535,LM6,Nursing Care,P03,Wellbeing,BARKER CHEMICALS LTD T/A ST TERESA'S NH,01/06/2015,564
Bath & North East Somerset Council,80470535,LM6,Nursing Care,P03,Wellbeing,BARKER CHEMICALS LTD T/A ST TERESA'S NH,01/06/2015,564
Bath & North East Somerset Council,80470535,LM6,Nursing Care,P03,Wellbeing,BARKER CHEMICALS LTD T/A ST TERESA'S NH,01/06/2015,564
Bath & North East Somerset Council,80470535,LM6,Nursing Care,P03,Wellbeing,BARKER CHEMICALS LTD T/A ST TERESA'S NH,01/06/2015,564
Bath & North East Somerset Council,80470535,LM6,Nursing Care,P03,Wellbeing,BARKER CHEMICALS LTD T/A ST TERESA'S NH,01/06/2015,564
Bath & North East Somerset Council,80470535,LM6,Nursing Care,P03,Wellbeing,BARKER CHEMICALS LTD T/A ST TERESA'S NH,01/06/2015,588
Bath & North East Somerset Council,80470535,LM6,Nursing Care,P03,Wellbeing,BARKER CHEMICALS LTD T/A ST TERESA'S NH,01/06/2015,588
Bath & North East Somerset Council,80470535,LM6,Nursing Care,P03,Wellbeing,BARKER CHEMICALS LTD T/A ST TERESA'S NH,01/06/2015,588
Bath & North East Somerset Council,80470535,LM6,Nursing Care,P03,Wellbeing,BARKER CHEMICALS LTD T/A ST TERESA'S NH,01/06/2015,588
Bath & North East Somerset Council,80470535,LM6,Nursing Care,P03,Wellbeing,BARKER CHEMICALS LTD T/A ST TERESA'S NH,01/06/2015,600
Bath & North East Somerset Council,80470535,LM6,Nursing Care,P03,Wellbeing,BARKER CHEMICALS LTD T/A ST TERESA'S NH,01/06/2015,600
Bath & North East Somerset Council,80470535,LM6,Nursing Care,P03,Wellbeing,BARKER CHEMICALS LTD T/A ST TERESA'S NH,01/06/2015,600
Bath & North East Somerset Council,80470535,LM6,Nursing Care,P03,Wellbeing,BARKER CHEMICALS LTD T/A ST TERESA'S NH,01/06/2015,600
Bath & North East Somerset Council,80470535,LM6,Nursing Care,P03,Wellbeing,BARKER CHEMICALS LTD T/A ST TERESA'S NH,01/06/2015,600
Bath & North East Somerset Council,80470535,LM6,Nursing Care,P03,Wellbeing,BARKER CHEMICALS LTD T/A ST TERESA'S NH,01/06/2015,600
Bath & North East Somerset Council,80470535,LM6,Nursing Care,P03,Wellbeing,BARKER CHEMICALS LTD T/A ST TERESA'S NH,01/06/2015,600
Bath & North East Somerset Council,80470535,LM6,Nursing Care,P03,Wellbeing,BARKER CHEMICALS LTD T/A ST TERESA'S NH,01/06/2015,600
Bath & North East Somerset Council,80470109,LM6,Nursing Care,P03,Wellbeing,BARKER CHEMICALS LTD T/A ST TERESA'S NH,01/06/2015,650
Bath & North East Somerset Council,80470109,LM6,Nursing Care,P03,Wellbeing,BARKER CHEMICALS LTD T/A ST TERESA'S NH,01/06/2015,650
Bath & North East Somerset Council,80470109,LM6,Nursing Care,P03,Wellbeing,BARKER CHEMICALS LTD T/A ST TERESA'S NH,01/06/2015,650
Bath & North East Somerset Council,80470109,LM6,Nursing Care,P03,Wellbeing,BARKER CHEMICALS LTD T/A ST TERESA'S NH,01/06/2015,650
Bath & North East Somerset Council,80470535,LM6,Nursing Care,P03,Wellbeing,BARKER CHEMICALS LTD T/A ST TERESA'S NH,01/06/2015,650
Bath & North East Somerset Council,80470535,LM6,Nursing Care,P03,Wellbeing,BARKER CHEMICALS LTD T/A ST TERESA'S NH,01/06/2015,650
Bath & North East Somerset Council,80470535,LM6,Nursing Care,P03,Wellbeing,BARKER CHEMICALS LTD T/A ST TERESA'S NH,01/06/2015,650
Bath & North East Somerset Council,80470535,LM6,Nursing Care,P03,Wellbeing,BARKER CHEMICALS LTD T/A ST TERESA'S NH,01/06/2015,650
Bath & North East Somerset Council,80470535,LM6,Nursing Care,P03,Wellbeing,BARKER CHEMICALS LTD T/A ST TERESA'S NH,01/06/2015,650
Bath & North East Somerset Council,80470535,LM6,Nursing Care,P03,Wellbeing,BARKER CHEMICALS LTD T/A ST TERESA'S NH,01/06/2015,650
Bath & North East Somerset Council,80470535,LM6,Nursing Care,P03,Wellbeing,BARKER CHEMICALS LTD T/A ST TERESA'S NH,01/06/2015,650
Bath & North East Somerset Council,80470535,LM6,Nursing Care,P03,Wellbeing,BARKER CHEMICALS LTD T/A ST TERESA'S NH,01/06/2015,650
Bath & North East Somerset Council,80470535,LM6,Nursing Care,P03,Wellbeing,BARKER CHEMICALS LTD T/A ST TERESA'S NH,01/06/2015,675
Bath & North East Somerset Council,80470535,LM6,Nursing Care,P03,Wellbeing,BARKER CHEMICALS LTD T/A ST TERESA'S NH,01/06/2015,675
Bath & North East Somerset Council,80470535,LM6,Nursing Care,P03,Wellbeing,BARKER CHEMICALS LTD T/A ST TERESA'S NH,01/06/2015,689
Bath & North East Somerset Council,80470535,LM6,Nursing Care,P03,Wellbeing,BARKER CHEMICALS LTD T/A ST TERESA'S NH,01/06/2015,689
Bath & North East Somerset Council,80470535,LM6,Nursing Care,P03,Wellbeing,BARKER CHEMICALS LTD T/A ST TERESA'S NH,01/06/2015,700
Bath & North East Somerset Council,80470535,LM6,Nursing Care,P03,Wellbeing,BARKER CHEMICALS LTD T/A ST TERESA'S NH,01/06/2015,700
Bath & North East Somerset Council,80470535,LM6,Nursing Care,P03,Wellbeing,BARKER CHEMICALS LTD T/A ST TERESA'S NH,01/06/2015,700
Bath & North East Somerset Council,80470535,LM6,Nursing Care,P03,Wellbeing,BARKER CHEMICALS LTD T/A ST TERESA'S NH,01/06/2015,700
Bath & North East Somerset Council,80470535,LM6,Nursing Care,P03,Wellbeing,BARKER CHEMICALS LTD T/A ST TERESA'S NH,01/06/2015,700
Bath & North East Somerset Council,80470535,LM6,Nursing Care,P03,Wellbeing,BARKER CHEMICALS LTD T/A ST TERESA'S NH,01/06/2015,700
Bath & North East Somerset Council,80470535,LM6,Nursing Care,P03,Wellbeing,BARKER CHEMICALS LTD T/A ST TERESA'S NH,01/06/2015,700
Bath & North East Somerset Council,80470535,LM6,Nursing Care,P03,Wellbeing,BARKER CHEMICALS LTD T/A ST TERESA'S NH,01/06/2015,700
Bath & North East Somerset Council,80470535,LM6,Nursing Care,P03,Wellbeing,BARKER CHEMICALS LTD T/A ST TERESA'S NH,01/06/2015,700
Bath & North East Somerset Council,80470535,LM6,Nursing Care,P03,Wellbeing,BARKER CHEMICALS LTD T/A ST TERESA'S NH,01/06/2015,700
Bath & North East Somerset Council,80470535,LM6,Nursing Care,P03,Wellbeing,BARKER CHEMICALS LTD T/A ST TERESA'S NH,01/06/2015,700
Bath & North East Somerset Council,80470535,LM6,Nursing Care,P03,Wellbeing,BARKER CHEMICALS LTD T/A ST TERESA'S NH,01/06/2015,700
Bath & North East Somerset Council,80470535,LM6,Nursing Care,P03,Wellbeing,BARKER CHEMICALS LTD T/A ST TERESA'S NH,01/06/2015,700
Bath & North East Somerset Council,80470535,LM6,Nursing Care,P03,Wellbeing,BARKER CHEMICALS LTD T/A ST TERESA'S NH,01/06/2015,700
Bath & North East Somerset Council,80470535,LM6,Nursing Care,P03,Wellbeing,BARKER CHEMICALS LTD T/A ST TERESA'S NH,01/06/2015,700
Bath & North East Somerset Council,80470535,LM6,Nursing Care,P03,Wellbeing,BARKER CHEMICALS LTD T/A ST TERESA'S NH,01/06/2015,700
Bath & North East Somerset Council,80470535,LM6,Nursing Care,P03,Wellbeing,BARKER CHEMICALS LTD T/A ST TERESA'S NH,01/06/2015,725
Bath & North East Somerset Council,80470535,LM6,Nursing Care,P03,Wellbeing,BARKER CHEMICALS LTD T/A ST TERESA'S NH,01/06/2015,725
Bath & North East Somerset Council,80470109,LM6,Nursing Care,P03,Wellbeing,BARKER CHEMICALS LTD T/A ST TERESA'S NH,01/06/2015,750
Bath & North East Somerset Council,80470109,LM6,Nursing Care,P03,Wellbeing,BARKER CHEMICALS LTD T/A ST TERESA'S NH,01/06/2015,750
Bath & North East Somerset Council,80470535,LM6,Nursing Care,P03,Wellbeing,BARKER CHEMICALS LTD T/A ST TERESA'S NH,01/06/2015,755
Bath & North East Somerset Council,80470535,LM6,Nursing Care,P03,Wellbeing,BARKER CHEMICALS LTD T/A ST TERESA'S NH,01/06/2015,755
Bath & North East Somerset Council,80470109,LM6,Nursing Care,P03,Wellbeing,BARKER CHEMICALS LTD T/A ST TERESA'S NH,01/06/2015,775
Bath & North East Somerset Council,80470109,LM6,Nursing Care,P03,Wellbeing,BARKER CHEMICALS LTD T/A ST TERESA'S NH,01/06/2015,775
Bath & North East Somerset Council,80470109,LM6,Nursing Care,P03,Wellbeing,BARKER CHEMICALS LTD T/A ST TERESA'S NH,01/06/2015,775
Bath & North East Somerset Council,80470109,LM6,Nursing Care,P03,Wellbeing,BARKER CHEMICALS LTD T/A ST TERESA'S NH,01/06/2015,775
Bath & North East Somerset Council,80470535,LM6,Nursing Care,P03,Wellbeing,BARKER CHEMICALS LTD T/A ST TERESA'S NH,01/06/2015,780
Bath & North East Somerset Council,80470535,LM6,Nursing Care,P03,Wellbeing,BARKER CHEMICALS LTD T/A ST TERESA'S NH,01/06/2015,780
Bath & North East Somerset Council,80470535,LM6,Nursing Care,P03,Wellbeing,BARKER CHEMICALS LTD T/A ST TERESA'S NH,01/06/2015,800
Bath & North East Somerset Council,80470535,LM6,Nursing Care,P03,Wellbeing,BARKER CHEMICALS LTD T/A ST TERESA'S NH,01/06/2015,800
Bath & North East Somerset Council,80470109,LM6,Nursing Care,P03,Wellbeing,BARKER CHEMICALS LTD T/A ST TERESA'S NH,01/06/2015,925
Bath & North East Somerset Council,80470109,LM6,Nursing Care,P03,Wellbeing,BARKER CHEMICALS LTD T/A ST TERESA'S NH,01/06/2015,925
Bath & North East Somerset Council,80470535,LM6,Nursing Care,P03,Wellbeing,BARKER CHEMICALS LTD T/A ST TERESA'S NH,01/06/2015,968
Bath & North East Somerset Council,80470535,LM6,Nursing Care,P03,Wellbeing,BARKER CHEMICALS LTD T/A ST TERESA'S NH,01/06/2015,968
Bath & North East Somerset Council,80470664,LM3,Residential Care,P03,Wellbeing,BATH MIND,01/06/2015,662.18
Bath & North East Somerset Council,80470664,LM3,Residential Care,P03,Wellbeing,BATH MIND,01/06/2015,662.18
Bath & North East Somerset Council,80470664,LM3,Residential Care,P03,Wellbeing,BATH MIND,01/06/2015,662.18
Bath & North East Somerset Council,80470664,LM3,Residential Care,P03,Wellbeing,BATH MIND,01/06/2015,662.18
Bath & North East Somerset Council,80470664,LM3,Residential Care,P03,Wellbeing,BATH MIND,01/06/2015,662.18
Bath & North East Somerset Council,80470664,LM3,Residential Care,P03,Wellbeing,BATH MIND,01/06/2015,662.18
Bath & North East Somerset Council,80470664,LM3,Residential Care,P03,Wellbeing,BATH MIND,01/06/2015,662.18
Bath & North East Somerset Council,80470664,LM3,Residential Care,P03,Wellbeing,BATH MIND,01/06/2015,662.18
Bath & North East Somerset Council,80470664,LM3,Residential Care,P03,Wellbeing,BATH MIND,01/06/2015,662.18
Bath & North East Somerset Council,80470664,LM3,Residential Care,P03,Wellbeing,BATH MIND,01/06/2015,662.18
Bath & North East Somerset Council,80470664,LM3,Residential Care,P03,Wellbeing,BATH MIND,01/06/2015,662.18
Bath & North East Somerset Council,80470664,LM3,Residential Care,P03,Wellbeing,BATH MIND,01/06/2015,662.18
Bath & North East Somerset Council,80470664,LM3,Residential Care,P03,Wellbeing,BATH MIND,01/06/2015,662.18
Bath & North East Somerset Council,80470664,LM3,Residential Care,P03,Wellbeing,BATH MIND,01/06/2015,662.18
Bath & North East Somerset Council,80470664,LM3,Residential Care,P03,Wellbeing,BATH MIND,01/06/2015,662.18
Bath & North East Somerset Council,80470664,LM3,Residential Care,P03,Wellbeing,BATH MIND,01/06/2015,662.18
Bath & North East Somerset Council,80470650,LM3,Residential Care,P03,Wellbeing,BCVS HOMES,01/06/2015,246.86
Bath & North East Somerset Council,80470650,LM3,Residential Care,P03,Wellbeing,BCVS HOMES,01/06/2015,329.14
Bath & North East Somerset Council,80470650,LM3,Residential Care,P03,Wellbeing,BCVS HOMES,01/06/2015,329.14
Bath & North East Somerset Council,80470650,LM3,Residential Care,P03,Wellbeing,BCVS HOMES,01/06/2015,411.43
Bath & North East Somerset Council,80470649,LM3,Residential Care,P03,Wellbeing,BCVS HOMES,01/06/2015,443
Bath & North East Somerset Council,80470649,LM3,Residential Care,P03,Wellbeing,BCVS HOMES,01/06/2015,443
Bath & North East Somerset Council,80470649,LM3,Residential Care,P03,Wellbeing,BCVS HOMES,01/06/2015,443
Bath & North East Somerset Council,80470649,LM3,Residential Care,P03,Wellbeing,BCVS HOMES,01/06/2015,443
Bath & North East Somerset Council,80470650,LM3,Residential Care,P03,Wellbeing,BCVS HOMES,01/06/2015,443
Bath & North East Somerset Council,80470650,LM3,Residential Care,P03,Wellbeing,BCVS HOMES,01/06/2015,443
Bath & North East Somerset Council,80470650,LM3,Residential Care,P03,Wellbeing,BCVS HOMES,01/06/2015,443
Bath & North East Somerset Council,80470650,LM3,Residential Care,P03,Wellbeing,BCVS HOMES,01/06/2015,443
Bath & North East Somerset Council,80470650,LM3,Residential Care,P03,Wellbeing,BCVS HOMES,01/06/2015,455.51
Bath & North East Somerset Council,80470650,LM3,Residential Care,P03,Wellbeing,BCVS HOMES,01/06/2015,455.51
Bath & North East Somerset Council,80470650,LM3,Residential Care,P03,Wellbeing,BCVS HOMES,01/06/2015,500
Bath & North East Somerset Council,80470650,LM3,Residential Care,P03,Wellbeing,BCVS HOMES,01/06/2015,500
Bath & North East Somerset Council,80470650,LM3,Residential Care,P03,Wellbeing,BCVS HOMES,01/06/2015,500
Bath & North East Somerset Council,80470650,LM3,Residential Care,P03,Wellbeing,BCVS HOMES,01/06/2015,500
Bath & North East Somerset Council,80470649,LM3,Residential Care,P03,Wellbeing,BCVS HOMES,01/06/2015,500.96
Bath & North East Somerset Council,80470649,LM3,Residential Care,P03,Wellbeing,BCVS HOMES,01/06/2015,500.96
Bath & North East Somerset Council,80470650,LM3,Residential Care,P03,Wellbeing,BCVS HOMES,01/06/2015,540
Bath & North East Somerset Council,80470650,LM3,Residential Care,P03,Wellbeing,BCVS HOMES,01/06/2015,540
Bath & North East Somerset Council,80470650,LM3,Residential Care,P03,Wellbeing,BCVS HOMES,01/06/2015,562
Bath & North East Somerset Council,80470650,LM3,Residential Care,P03,Wellbeing,BCVS HOMES,01/06/2015,562
Bath & North East Somerset Council,80470650,LM3,Residential Care,P03,Wellbeing,BCVS HOMES,01/06/2015,562
Bath & North East Somerset Council,80470650,LM3,Residential Care,P03,Wellbeing,BCVS HOMES,01/06/2015,562
Bath & North East Somerset Council,80470650,LM3,Residential Care,P03,Wellbeing,BCVS HOMES,01/06/2015,576
Bath & North East Somerset Council,80470650,LM3,Residential Care,P03,Wellbeing,BCVS HOMES,01/06/2015,576
Bath & North East Somerset Council,80470650,LM3,Residential Care,P03,Wellbeing,BCVS HOMES,01/06/2015,576
Bath & North East Somerset Council,80470487,LM3,Residential Care,P03,Wellbeing,BEDROCK LODGE,01/06/2015,789.7
Bath & North East Somerset Council,80470487,LM3,Residential Care,P03,Wellbeing,BEDROCK LODGE,01/06/2015,789.7
Bath & North East Somerset Council,80470529,LM3,Residential Care,P03,Wellbeing,BELMONT VILLA RESIDENTIAL NURSING HOME LTD,01/06/2015,550
Bath & North East Somerset Council,80470529,LM3,Residential Care,P03,Wellbeing,BELMONT VILLA RESIDENTIAL NURSING HOME LTD,01/06/2015,550
Bath & North East Somerset Council,80470529,LM6,Nursing Care,P03,Wellbeing,BELMONT VILLA RESIDENTIAL NURSING HOME LTD,01/06/2015,1000
Bath & North East Somerset Council,80470529,LM6,Nursing Care,P03,Wellbeing,BELMONT VILLA RESIDENTIAL NURSING HOME LTD,01/06/2015,1000
Bath & North East Somerset Council,80470525,LM3,Residential Care,P03,Wellbeing,BOLE ALLER HOUSE LTD,01/06/2015,728.63
Bath & North East Somerset Council,80470525,LM3,Residential Care,P03,Wellbeing,BOLE ALLER HOUSE LTD,01/06/2015,728.63
Bath & North East Somerset Council,80470561,LM3,Residential Care,P03,Wellbeing,BOROUGH CARE LIMITED,01/06/2015,386
Bath & North East Somerset Council,80470561,LM3,Residential Care,P03,Wellbeing,BOROUGH CARE LIMITED,01/06/2015,386
Bath & North East Somerset Council,80470606,LM3,Residential Care,P03,Wellbeing,BOYACK ENTERPRISES LTD T/A BEAUFORT HALL,01/06/2015,443
Bath & North East Somerset Council,80470606,LM3,Residential Care,P03,Wellbeing,BOYACK ENTERPRISES LTD T/A BEAUFORT HALL,01/06/2015,443
Bath & North East Somerset Council,80470208,LM6,Nursing Care,P03,Wellbeing,BRIDGE CARE LTD,01/06/2015,79.21
Bath & North East Somerset Council,80470208,LM6,Nursing Care,P03,Wellbeing,BRIDGE CARE LTD,01/06/2015,110.89
Bath & North East Somerset Council,80470208,LM6,Nursing Care,P03,Wellbeing,BRIDGE CARE LTD,01/06/2015,110.89
Bath & North East Somerset Council,80470208,LM6,Nursing Care,P03,Wellbeing,BRIDGE CARE LTD,01/06/2015,110.89
Bath & North East Somerset Council,80470208,LM6,Nursing Care,P03,Wellbeing,BRIDGE CARE LTD,01/06/2015,110.89
Bath & North East Somerset Council,80470208,LM6,Nursing Care,P03,Wellbeing,BRIDGE CARE LTD,01/06/2015,110.89
Bath & North East Somerset Council,80470208,LM6,Nursing Care,P03,Wellbeing,BRIDGE CARE LTD,01/06/2015,110.89
Bath & North East Somerset Council,80470208,LM6,Nursing Care,P03,Wellbeing,BRIDGE CARE LTD,01/06/2015,110.89
Bath & North East Somerset Council,80470208,LM6,Nursing Care,P03,Wellbeing,BRIDGE CARE LTD,01/06/2015,110.89
Bath & North East Somerset Council,80470208,LM6,Nursing Care,P03,Wellbeing,BRIDGE CARE LTD,01/06/2015,110.89
Bath & North East Somerset Council,80470208,LM6,Nursing Care,P03,Wellbeing,BRIDGE CARE LTD,01/06/2015,110.89
Bath & North East Somerset Council,80470208,LM6,Nursing Care,P03,Wellbeing,BRIDGE CARE LTD,01/06/2015,110.89
Bath & North East Somerset Council,80470208,LM6,Nursing Care,P03,Wellbeing,BRIDGE CARE LTD,01/06/2015,110.89
Bath & North East Somerset Council,80470208,LM6,Nursing Care,P03,Wellbeing,BRIDGE CARE LTD,01/06/2015,110.89
Bath & North East Somerset Council,80470208,LM6,Nursing Care,P03,Wellbeing,BRIDGE CARE LTD,01/06/2015,110.89
Bath & North East Somerset Council,80470208,LM6,Nursing Care,P03,Wellbeing,BRIDGE CARE LTD,01/06/2015,112
Bath & North East Somerset Council,80470208,LM6,Nursing Care,P03,Wellbeing,BRIDGE CARE LTD,01/06/2015,112
Bath & North East Somerset Council,80470208,LM6,Nursing Care,P03,Wellbeing,BRIDGE CARE LTD,01/06/2015,112
Bath & North East Somerset Council,80470208,LM6,Nursing Care,P03,Wellbeing,BRIDGE CARE LTD,01/06/2015,112
Bath & North East Somerset Council,80470208,LM6,Nursing Care,P03,Wellbeing,BRIDGE CARE LTD,01/06/2015,112
Bath & North East Somerset Council,80470208,LM6,Nursing Care,P03,Wellbeing,BRIDGE CARE LTD,01/06/2015,112
Bath & North East Somerset Council,80470208,LM6,Nursing Care,P03,Wellbeing,BRIDGE CARE LTD,01/06/2015,112
Bath & North East Somerset Council,80470208,LM6,Nursing Care,P03,Wellbeing,BRIDGE CARE LTD,01/06/2015,112
Bath & North East Somerset Council,80470208,LM6,Nursing Care,P03,Wellbeing,BRIDGE CARE LTD,01/06/2015,112
Bath & North East Somerset Council,80470208,LM6,Nursing Care,P03,Wellbeing,BRIDGE CARE LTD,01/06/2015,112
Bath & North East Somerset Council,80470208,LM6,Nursing Care,P03,Wellbeing,BRIDGE CARE LTD,01/06/2015,112
Bath & North East Somerset Council,80470208,LM6,Nursing Care,P03,Wellbeing,BRIDGE CARE LTD,01/06/2015,112
Bath & North East Somerset Council,80470208,LM6,Nursing Care,P03,Wellbeing,BRIDGE CARE LTD,01/06/2015,112
Bath & North East Somerset Council,80470208,LM6,Nursing Care,P03,Wellbeing,BRIDGE CARE LTD,01/06/2015,112
Bath & North East Somerset Council,80470208,LM6,Nursing Care,P03,Wellbeing,BRIDGE CARE LTD,01/06/2015,112
Bath & North East Somerset Council,80470208,LM6,Nursing Care,P03,Wellbeing,BRIDGE CARE LTD,01/06/2015,112
Bath & North East Somerset Council,80470208,LM6,Nursing Care,P03,Wellbeing,BRIDGE CARE LTD,01/06/2015,112
Bath & North East Somerset Council,80470208,LM6,Nursing Care,P03,Wellbeing,BRIDGE CARE LTD,01/06/2015,112
Bath & North East Somerset Council,80470208,LM6,Nursing Care,P03,Wellbeing,BRIDGE CARE LTD,01/06/2015,112
Bath & North East Somerset Council,80470208,LM6,Nursing Care,P03,Wellbeing,BRIDGE CARE LTD,01/06/2015,112
Bath & North East Somerset Council,80470208,LM6,Nursing Care,P03,Wellbeing,BRIDGE CARE LTD,01/06/2015,112
Bath & North East Somerset Council,80470208,LM6,Nursing Care,P03,Wellbeing,BRIDGE CARE LTD,01/06/2015,112
Bath & North East Somerset Council,80470208,LM6,Nursing Care,P03,Wellbeing,BRIDGE CARE LTD,01/06/2015,112
Bath & North East Somerset Council,80470208,LM6,Nursing Care,P03,Wellbeing,BRIDGE CARE LTD,01/06/2015,112
Bath & North East Somerset Council,80470208,LM6,Nursing Care,P03,Wellbeing,BRIDGE CARE LTD,01/06/2015,112
Bath & North East Somerset Council,80470208,LM6,Nursing Care,P03,Wellbeing,BRIDGE CARE LTD,01/06/2015,112
Bath & North East Somerset Council,80470208,LM6,Nursing Care,P03,Wellbeing,BRIDGE CARE LTD,01/06/2015,112
Bath & North East Somerset Council,80470208,LM6,Nursing Care,P03,Wellbeing,BRIDGE CARE LTD,01/06/2015,112
Bath & North East Somerset Council,80470555,LM3,Residential Care,P03,Wellbeing,BRIDGE CARE LTD,01/06/2015,443
Bath & North East Somerset Council,80470555,LM3,Residential Care,P03,Wellbeing,BRIDGE CARE LTD,01/06/2015,443
Bath & North East Somerset Council,80470555,LM3,Residential Care,P03,Wellbeing,BRIDGE CARE LTD,01/06/2015,443
Bath & North East Somerset Council,80470555,LM3,Residential Care,P03,Wellbeing,BRIDGE CARE LTD,01/06/2015,443
Bath & North East Somerset Council,80470555,LM3,Residential Care,P03,Wellbeing,BRIDGE CARE LTD,01/06/2015,443
Bath & North East Somerset Council,80470555,LM3,Residential Care,P03,Wellbeing,BRIDGE CARE LTD,01/06/2015,443
Bath & North East Somerset Council,80470555,LM3,Residential Care,P03,Wellbeing,BRIDGE CARE LTD,01/06/2015,443
Bath & North East Somerset Council,80470555,LM3,Residential Care,P03,Wellbeing,BRIDGE CARE LTD,01/06/2015,443
Bath & North East Somerset Council,80470555,LM6,Nursing Care,P03,Wellbeing,BRIDGE CARE LTD,01/06/2015,564
Bath & North East Somerset Council,80470555,LM6,Nursing Care,P03,Wellbeing,BRIDGE CARE LTD,01/06/2015,564
Bath & North East Somerset Council,80470555,LM6,Nursing Care,P03,Wellbeing,BRIDGE CARE LTD,01/06/2015,564
Bath & North East Somerset Council,80470555,LM6,Nursing Care,P03,Wellbeing,BRIDGE CARE LTD,01/06/2015,564
Bath & North East Somerset Council,80470555,LM6,Nursing Care,P03,Wellbeing,BRIDGE CARE LTD,01/06/2015,564
Bath & North East Somerset Council,80470555,LM6,Nursing Care,P03,Wellbeing,BRIDGE CARE LTD,01/06/2015,564
Bath & North East Somerset Council,80470555,LM6,Nursing Care,P03,Wellbeing,BRIDGE CARE LTD,01/06/2015,564
Bath & North East Somerset Council,80470555,LM6,Nursing Care,P03,Wellbeing,BRIDGE CARE LTD,01/06/2015,564
Bath & North East Somerset Council,80470555,LM6,Nursing Care,P03,Wellbeing,BRIDGE CARE LTD,01/06/2015,564
Bath & North East Somerset Council,80470555,LM6,Nursing Care,P03,Wellbeing,BRIDGE CARE LTD,01/06/2015,564
Bath & North East Somerset Council,80470555,LM6,Nursing Care,P03,Wellbeing,BRIDGE CARE LTD,01/06/2015,650
Bath & North East Somerset Council,80470555,LM6,Nursing Care,P03,Wellbeing,BRIDGE CARE LTD,01/06/2015,650
Bath & North East Somerset Council,80470555,LM6,Nursing Care,P03,Wellbeing,BRIDGE CARE LTD,01/06/2015,800
Bath & North East Somerset Council,80470555,LM6,Nursing Care,P03,Wellbeing,BRIDGE CARE LTD,01/06/2015,800
Bath & North East Somerset Council,80470555,LM6,Nursing Care,P03,Wellbeing,BRIDGE CARE LTD,01/06/2015,850
Bath & North East Somerset Council,80470555,LM6,Nursing Care,P03,Wellbeing,BRIDGE CARE LTD,01/06/2015,850
Bath & North East Somerset Council,80470111,LM6,Nursing Care,P03,Wellbeing,BRIDGE CARE LTD,01/06/2015,875
Bath & North East Somerset Council,80470111,LM6,Nursing Care,P03,Wellbeing,BRIDGE CARE LTD,01/06/2015,875
Bath & North East Somerset Council,80470111,LM6,Nursing Care,P03,Wellbeing,BRIDGE CARE LTD,01/06/2015,875
Bath & North East Somerset Council,80470111,LM6,Nursing Care,P03,Wellbeing,BRIDGE CARE LTD,01/06/2015,875
Bath & North East Somerset Council,80470122,LM6,Nursing Care,P03,Wellbeing,BRIGHTBOW LODGE,01/06/2015,632.7
Bath & North East Somerset Council,80470122,LM6,Nursing Care,P03,Wellbeing,BRIGHTBOW LODGE,01/06/2015,632.7
Bath & North East Somerset Council,80470566,LM3,Residential Care,P03,Wellbeing,BRIGHTBOW LODGE,01/06/2015,632.7
Bath & North East Somerset Council,80470566,LM3,Residential Care,P03,Wellbeing,BRIGHTBOW LODGE,01/06/2015,632.7
Bath & North East Somerset Council,80470566,LM6,Nursing Care,P03,Wellbeing,BRIGHTBOW LODGE,01/06/2015,673.22
Bath & North East Somerset Council,80470566,LM6,Nursing Care,P03,Wellbeing,BRIGHTBOW LODGE,01/06/2015,673.22
Bath & North East Somerset Council,80470566,LM6,Nursing Care,P03,Wellbeing,BRIGHTBOW LODGE,01/06/2015,673.22
Bath & North East Somerset Council,80470566,LM6,Nursing Care,P03,Wellbeing,BRIGHTBOW LODGE,01/06/2015,673.22
Bath & North East Somerset Council,80470566,LM3,Residential Care,P03,Wellbeing,BRIGHTBOW LODGE,01/06/2015,673.22
Bath & North East Somerset Council,80470566,LM3,Residential Care,P03,Wellbeing,BRIGHTBOW LODGE,01/06/2015,673.22
Bath & North East Somerset Council,80470566,LM6,Nursing Care,P03,Wellbeing,BRIGHTBOW LODGE,01/06/2015,715.83
Bath & North East Somerset Council,80470566,LM6,Nursing Care,P03,Wellbeing,BRIGHTBOW LODGE,01/06/2015,715.83
Bath & North East Somerset Council,80470653,LM6,Nursing Care,P03,Wellbeing,BRISTOL AGE CARE,01/06/2015,749.79
Bath & North East Somerset Council,80470653,LM6,Nursing Care,P03,Wellbeing,BRISTOL AGE CARE,01/06/2015,749.79
Bath & North East Somerset Council,80470090,LM6,Nursing Care,P03,Wellbeing,BRISTOL AGE CARE,01/06/2015,750
Bath & North East Somerset Council,80470090,LM6,Nursing Care,P03,Wellbeing,BRISTOL AGE CARE,01/06/2015,750
Bath & North East Somerset Council,80470090,LM6,Nursing Care,P03,Wellbeing,BRISTOL AGE CARE,01/06/2015,759.79
Bath & North East Somerset Council,80470090,LM6,Nursing Care,P03,Wellbeing,BRISTOL AGE CARE,01/06/2015,759.79
Bath & North East Somerset Council,80470653,LM6,Nursing Care,P03,Wellbeing,BRISTOL AGE CARE,01/06/2015,860.89
Bath & North East Somerset Council,80470653,LM6,Nursing Care,P03,Wellbeing,BRISTOL AGE CARE,01/06/2015,860.89
Bath & North East Somerset Council,80470096,LM6,Nursing Care,P03,Wellbeing,BROOKDALE HEALTHCARE LTD,01/06/2015,1386
Bath & North East Somerset Council,80470096,LM6,Nursing Care,P03,Wellbeing,BROOKDALE HEALTHCARE LTD,01/06/2015,3234
Bath & North East Somerset Council,80470096,LM6,Nursing Care,P03,Wellbeing,BROOKDALE HEALTHCARE LTD,01/06/2015,3234
Bath & North East Somerset Council,80470096,LM6,Nursing Care,P03,Wellbeing,BROOKDALE HEALTHCARE LTD,01/06/2015,3234
Bath & North East Somerset Council,80470096,LM6,Nursing Care,P03,Wellbeing,BROOKDALE HEALTHCARE LTD,01/06/2015,3234
Bath & North East Somerset Council,80470096,LM6,Nursing Care,P03,Wellbeing,BROOKDALE HEALTHCARE LTD,01/06/2015,3234
Bath & North East Somerset Council,80470096,LM6,Nursing Care,P03,Wellbeing,BROOKDALE HEALTHCARE LTD,01/06/2015,3234
Bath & North East Somerset Council,80470096,LM6,Nursing Care,P03,Wellbeing,BROOKDALE HEALTHCARE LTD,01/06/2015,3234
Bath & North East Somerset Council,80470096,LM6,Nursing Care,P03,Wellbeing,BROOKDALE HEALTHCARE LTD,01/06/2015,3234
Bath & North East Somerset Council,80470096,LM6,Nursing Care,P03,Wellbeing,BROOKDALE HEALTHCARE LTD,01/06/2015,3234
Bath & North East Somerset Council,80470096,LM6,Nursing Care,P03,Wellbeing,BROOKDALE HEALTHCARE LTD,01/06/2015,3234
Bath & North East Somerset Council,80470096,LM6,Nursing Care,P03,Wellbeing,BROOKDALE HEALTHCARE LTD,01/06/2015,3234
Bath & North East Somerset Council,80470096,LM6,Nursing Care,P03,Wellbeing,BROOKDALE HEALTHCARE LTD,01/06/2015,3234
Bath & North East Somerset Council,80470096,LM6,Nursing Care,P03,Wellbeing,BROOKDALE HEALTHCARE LTD,01/06/2015,3234
Bath & North East Somerset Council,80470096,LM6,Nursing Care,P03,Wellbeing,BROOKDALE HEALTHCARE LTD,01/06/2015,3234
Bath & North East Somerset Council,80470096,LM6,Nursing Care,P03,Wellbeing,BROOKDALE HEALTHCARE LTD,01/06/2015,3234
Bath & North East Somerset Council,80470096,LM6,Nursing Care,P03,Wellbeing,BROOKDALE HEALTHCARE LTD,01/06/2015,3234
Bath & North East Somerset Council,80470096,LM6,Nursing Care,P03,Wellbeing,BROOKDALE HEALTHCARE LTD,01/06/2015,3234
Bath & North East Somerset Council,80470096,LM6,Nursing Care,P03,Wellbeing,BROOKDALE HEALTHCARE LTD,01/06/2015,3234
Bath & North East Somerset Council,80470096,LM6,Nursing Care,P03,Wellbeing,BROOKDALE HEALTHCARE LTD,01/06/2015,3234
Bath & North East Somerset Council,80470096,LM6,Nursing Care,P03,Wellbeing,BROOKDALE HEALTHCARE LTD,01/06/2015,3234
Bath & North East Somerset Council,80470096,LM6,Nursing Care,P03,Wellbeing,BROOKDALE HEALTHCARE LTD,01/06/2015,3234
Bath & North East Somerset Council,80470096,LM6,Nursing Care,P03,Wellbeing,BROOKDALE HEALTHCARE LTD,01/06/2015,3234
Bath & North East Somerset Council,80470096,LM6,Nursing Care,P03,Wellbeing,BROOKDALE HEALTHCARE LTD,01/06/2015,3234
Bath & North East Somerset Council,80470096,LM6,Nursing Care,P03,Wellbeing,BROOKDALE HEALTHCARE LTD,01/06/2015,3234
Bath & North East Somerset Council,80470096,LM6,Nursing Care,P03,Wellbeing,BROOKDALE HEALTHCARE LTD,01/06/2015,3234
Bath & North East Somerset Council,80470549,LM3,Residential Care,P03,Wellbeing,BROUGHTON LODGE CARE HOME,01/06/2015,443
Bath & North East Somerset Council,80470549,LM3,Residential Care,P03,Wellbeing,BROUGHTON LODGE CARE HOME,01/06/2015,443
Bath & North East Somerset Council,80470613,LM6,Nursing Care,P03,Wellbeing,BRUNEL CARE HOME,01/06/2015,900
Bath & North East Somerset Council,80470613,LM6,Nursing Care,P03,Wellbeing,BRUNEL CARE HOME,01/06/2015,900
Bath & North East Somerset Council,80470480,LM6,Nursing Care,P03,Wellbeing,BUPA CARE SERVICES,01/06/2015,564
Bath & North East Somerset Council,80470480,LM6,Nursing Care,P03,Wellbeing,BUPA CARE SERVICES,01/06/2015,564
Bath & North East Somerset Council,80470128,LM6,Nursing Care,P03,Wellbeing,BUPA CARE SERVICES,01/06/2015,760
Bath & North East Somerset Council,80470128,LM6,Nursing Care,P03,Wellbeing,BUPA CARE SERVICES,01/06/2015,760
Bath & North East Somerset Council,80470491,LM6,Nursing Care,P03,Wellbeing,BUPA CARE SERVICES BACS RECEIPTS,01/06/2015,588
Bath & North East Somerset Council,80470491,LM6,Nursing Care,P03,Wellbeing,BUPA CARE SERVICES BACS RECEIPTS,01/06/2015,588
Bath & North East Somerset Council,80470600,LM6,Nursing Care,P03,Wellbeing,BUPA CARE SERVICES BACS RECEIPTS,01/06/2015,646.15
Bath & North East Somerset Council,80470600,LM6,Nursing Care,P03,Wellbeing,BUPA CARE SERVICES BACS RECEIPTS,01/06/2015,646.15
Bath & North East Somerset Council,80470220,LM6,Nursing Care,P03,Wellbeing,BYBROOK HOUSE,01/06/2015,112
Bath & North East Somerset Council,80470220,LM6,Nursing Care,P03,Wellbeing,BYBROOK HOUSE,01/06/2015,112
Bath & North East Somerset Council,80470220,LM6,Nursing Care,P03,Wellbeing,BYBROOK HOUSE,01/06/2015,112
Bath & North East Somerset Council,80470220,LM6,Nursing Care,P03,Wellbeing,BYBROOK HOUSE,01/06/2015,112
Bath & North East Somerset Council,80470220,LM6,Nursing Care,P03,Wellbeing,BYBROOK HOUSE,01/06/2015,112
Bath & North East Somerset Council,80470220,LM6,Nursing Care,P03,Wellbeing,BYBROOK HOUSE,01/06/2015,112
Bath & North East Somerset Council,80470220,LM6,Nursing Care,P03,Wellbeing,BYBROOK HOUSE,01/06/2015,112
Bath & North East Somerset Council,80470220,LM6,Nursing Care,P03,Wellbeing,BYBROOK HOUSE,01/06/2015,112
Bath & North East Somerset Council,80470220,LM6,Nursing Care,P03,Wellbeing,BYBROOK HOUSE,01/06/2015,112
Bath & North East Somerset Council,80470220,LM6,Nursing Care,P03,Wellbeing,BYBROOK HOUSE,01/06/2015,112
Bath & North East Somerset Council,80470220,LM6,Nursing Care,P03,Wellbeing,BYBROOK HOUSE,01/06/2015,112
Bath & North East Somerset Council,80470220,LM6,Nursing Care,P03,Wellbeing,BYBROOK HOUSE,01/06/2015,112
Bath & North East Somerset Council,80470220,LM6,Nursing Care,P03,Wellbeing,BYBROOK HOUSE,01/06/2015,112
Bath & North East Somerset Council,80470220,LM6,Nursing Care,P03,Wellbeing,BYBROOK HOUSE,01/06/2015,112
Bath & North East Somerset Council,80470220,LM6,Nursing Care,P03,Wellbeing,BYBROOK HOUSE,01/06/2015,112
Bath & North East Somerset Council,80470220,LM6,Nursing Care,P03,Wellbeing,BYBROOK HOUSE,01/06/2015,112
Bath & North East Somerset Council,80470624,LM6,Nursing Care,P03,Wellbeing,BYBROOK HOUSE,01/06/2015,750
Bath & North East Somerset Council,80470624,LM6,Nursing Care,P03,Wellbeing,BYBROOK HOUSE,01/06/2015,750
Bath & North East Somerset Council,80470081,LM6,Nursing Care,P03,Wellbeing,BYBROOK HOUSE,01/06/2015,985.94
Bath & North East Somerset Council,80470081,LM6,Nursing Care,P03,Wellbeing,BYBROOK HOUSE,01/06/2015,985.94
Bath & North East Somerset Council,80470557,LM3,Residential Care,P03,Wellbeing,CAMPANIA CARE HOME,01/06/2015,750
Bath & North East Somerset Council,80470557,LM3,Residential Care,P03,Wellbeing,CAMPANIA CARE HOME,01/06/2015,750
Bath & North East Somerset Council,80470552,LM3,Residential Care,P03,Wellbeing,CAMPHILL DEVON COMMUNITY LTD,01/06/2015,841.5
Bath & North East Somerset Council,80470552,LM3,Residential Care,P03,Wellbeing,CAMPHILL DEVON COMMUNITY LTD,01/06/2015,841.5
Bath & North East Somerset Council,80470212,LM6,Nursing Care,P03,Wellbeing,CARE FIRST CARE HOMES LTD,01/06/2015,112
Bath & North East Somerset Council,80470212,LM6,Nursing Care,P03,Wellbeing,CARE FIRST CARE HOMES LTD,01/06/2015,112
Bath & North East Somerset Council,80470212,LM6,Nursing Care,P03,Wellbeing,CARE FIRST CARE HOMES LTD,01/06/2015,112
Bath & North East Somerset Council,80470212,LM6,Nursing Care,P03,Wellbeing,CARE FIRST CARE HOMES LTD,01/06/2015,112
Bath & North East Somerset Council,80470212,LM6,Nursing Care,P03,Wellbeing,CARE FIRST CARE HOMES LTD,01/06/2015,112
Bath & North East Somerset Council,80470212,LM6,Nursing Care,P03,Wellbeing,CARE FIRST CARE HOMES LTD,01/06/2015,112
Bath & North East Somerset Council,80470212,LM6,Nursing Care,P03,Wellbeing,CARE FIRST CARE HOMES LTD,01/06/2015,112
Bath & North East Somerset Council,80470212,LM6,Nursing Care,P03,Wellbeing,CARE FIRST CARE HOMES LTD,01/06/2015,112
Bath & North East Somerset Council,80470212,LM6,Nursing Care,P03,Wellbeing,CARE FIRST CARE HOMES LTD,01/06/2015,112
Bath & North East Somerset Council,80470212,LM6,Nursing Care,P03,Wellbeing,CARE FIRST CARE HOMES LTD,01/06/2015,112
Bath & North East Somerset Council,80470212,LM6,Nursing Care,P03,Wellbeing,CARE FIRST CARE HOMES LTD,01/06/2015,112
Bath & North East Somerset Council,80470212,LM6,Nursing Care,P03,Wellbeing,CARE FIRST CARE HOMES LTD,01/06/2015,112
Bath & North East Somerset Council,80470212,LM6,Nursing Care,P03,Wellbeing,CARE FIRST CARE HOMES LTD,01/06/2015,112
Bath & North East Somerset Council,80470212,LM6,Nursing Care,P03,Wellbeing,CARE FIRST CARE HOMES LTD,01/06/2015,112
Bath & North East Somerset Council,80470212,LM6,Nursing Care,P03,Wellbeing,CARE FIRST CARE HOMES LTD,01/06/2015,112
Bath & North East Somerset Council,80470212,LM6,Nursing Care,P03,Wellbeing,CARE FIRST CARE HOMES LTD,01/06/2015,112
Bath & North East Somerset Council,80470212,LM6,Nursing Care,P03,Wellbeing,CARE FIRST CARE HOMES LTD,01/06/2015,112
Bath & North East Somerset Council,80470212,LM6,Nursing Care,P03,Wellbeing,CARE FIRST CARE HOMES LTD,01/06/2015,112
Bath & North East Somerset Council,80470114,LM6,Nursing Care,P03,Wellbeing,CARE FIRST CARE HOMES LTD,01/06/2015,542.86
Bath & North East Somerset Council,80470550,LM6,Nursing Care,P03,Wellbeing,CARE FIRST CARE HOMES LTD,01/06/2015,564
Bath & North East Somerset Council,80470550,LM6,Nursing Care,P03,Wellbeing,CARE FIRST CARE HOMES LTD,01/06/2015,564
Bath & North East Somerset Council,80470550,LM6,Nursing Care,P03,Wellbeing,CARE FIRST CARE HOMES LTD,01/06/2015,564
Bath & North East Somerset Council,80470550,LM6,Nursing Care,P03,Wellbeing,CARE FIRST CARE HOMES LTD,01/06/2015,564
Bath & North East Somerset Council,80470550,LM6,Nursing Care,P03,Wellbeing,CARE FIRST CARE HOMES LTD,01/06/2015,564
Bath & North East Somerset Council,80470550,LM6,Nursing Care,P03,Wellbeing,CARE FIRST CARE HOMES LTD,01/06/2015,564
Bath & North East Somerset Council,80470669,LM6,Nursing Care,P03,Wellbeing,CARE FIRST CARE HOMES LTD,01/06/2015,590.55
Bath & North East Somerset Council,80470669,LM6,Nursing Care,P03,Wellbeing,CARE FIRST CARE HOMES LTD,01/06/2015,590.55
Bath & North East Somerset Council,80470550,LM3,Residential Care,P03,Wellbeing,CARE FIRST CARE HOMES LTD,01/06/2015,650
Bath & North East Somerset Council,80470550,LM3,Residential Care,P03,Wellbeing,CARE FIRST CARE HOMES LTD,01/06/2015,650
Bath & North East Somerset Council,80470550,LM3,Residential Care,P03,Wellbeing,CARE FIRST CARE HOMES LTD,01/06/2015,696.1
Bath & North East Somerset Council,80470550,LM3,Residential Care,P03,Wellbeing,CARE FIRST CARE HOMES LTD,01/06/2015,696.1
Bath & North East Somerset Council,80470550,LM6,Nursing Care,P03,Wellbeing,CARE FIRST CARE HOMES LTD,01/06/2015,800
Bath & North East Somerset Council,80470550,LM6,Nursing Care,P03,Wellbeing,CARE FIRST CARE HOMES LTD,01/06/2015,800
Bath & North East Somerset Council,80470114,LM6,Nursing Care,P03,Wellbeing,CARE FIRST CARE HOMES LTD,01/06/2015,850
Bath & North East Somerset Council,80470114,LM6,Nursing Care,P03,Wellbeing,CARE FIRST CARE HOMES LTD,01/06/2015,850
Bath & North East Somerset Council,80470550,LM6,Nursing Care,P03,Wellbeing,CARE FIRST CARE HOMES LTD,01/06/2015,890
Bath & North East Somerset Council,80470550,LM6,Nursing Care,P03,Wellbeing,CARE FIRST CARE HOMES LTD,01/06/2015,890
Bath & North East Somerset Council,80470114,LM6,Nursing Care,P03,Wellbeing,CARE FIRST CARE HOMES LTD,01/06/2015,900
Bath & North East Somerset Council,80470114,LM6,Nursing Care,P03,Wellbeing,CARE FIRST CARE HOMES LTD,01/06/2015,900
Bath & North East Somerset Council,80470550,LM6,Nursing Care,P03,Wellbeing,CARE FIRST CARE HOMES LTD,01/06/2015,927.18
Bath & North East Somerset Council,80470550,LM6,Nursing Care,P03,Wellbeing,CARE FIRST CARE HOMES LTD,01/06/2015,927.18
Bath & North East Somerset Council,80470114,LM6,Nursing Care,P03,Wellbeing,CARE FIRST CARE HOMES LTD,01/06/2015,950
Bath & North East Somerset Council,80470114,LM6,Nursing Care,P03,Wellbeing,CARE FIRST CARE HOMES LTD,01/06/2015,950
Bath & North East Somerset Council,80470550,LM6,Nursing Care,P03,Wellbeing,CARE FIRST CARE HOMES LTD,01/06/2015,950
Bath & North East Somerset Council,80470550,LM6,Nursing Care,P03,Wellbeing,CARE FIRST CARE HOMES LTD,01/06/2015,950
Bath & North East Somerset Council,80470583,LM6,Nursing Care,P03,Wellbeing,CARE UK COMMUNITY PARTNERSHIP LIMITED,01/06/2015,498
Bath & North East Somerset Council,80470583,LM6,Nursing Care,P03,Wellbeing,CARE UK COMMUNITY PARTNERSHIP LIMITED,01/06/2015,581
Bath & North East Somerset Council,80470583,LM6,Nursing Care,P03,Wellbeing,CARE UK COMMUNITY PARTNERSHIP LIMITED,01/06/2015,581
Bath & North East Somerset Council,80470583,LM3,Residential Care,P03,Wellbeing,CARE UK COMMUNITY PARTNERSHIP LIMITED,01/06/2015,732.95
Bath & North East Somerset Council,80470583,LM3,Residential Care,P03,Wellbeing,CARE UK COMMUNITY PARTNERSHIP LIMITED,01/06/2015,732.95
Bath & North East Somerset Council,80470614,LM3,Residential Care,P03,Wellbeing,CARE UK COMMUNITY PARTNERSHIPS LTD,01/06/2015,486
Bath & North East Somerset Council,80470614,LM3,Residential Care,P03,Wellbeing,CARE UK COMMUNITY PARTNERSHIPS LTD,01/06/2015,486
Bath & North East Somerset Council,80470441,LL8,Individualised Budget,P03,Wellbeing,REDACTED,01/06/2015,842.39
Bath & North East Somerset Council,80470441,LL8,Individualised Budget,P03,Wellbeing,REDACTED,01/06/2015,842.39
Bath & North East Somerset Council,80470209,LM6,Nursing Care,P03,Wellbeing,CEDAR CARE HOMES LTD,01/06/2015,15.84
Bath & North East Somerset Council,80470213,LM6,Nursing Care,P03,Wellbeing,CEDAR CARE HOMES LTD,01/06/2015,109.79
Bath & North East Somerset Council,80470213,LM6,Nursing Care,P03,Wellbeing,CEDAR CARE HOMES LTD,01/06/2015,109.79
Bath & North East Somerset Council,80470213,LM6,Nursing Care,P03,Wellbeing,CEDAR CARE HOMES LTD,01/06/2015,109.79
Bath & North East Somerset Council,80470213,LM6,Nursing Care,P03,Wellbeing,CEDAR CARE HOMES LTD,01/06/2015,109.79
Bath & North East Somerset Council,80470213,LM6,Nursing Care,P03,Wellbeing,CEDAR CARE HOMES LTD,01/06/2015,109.79
Bath & North East Somerset Council,80470213,LM6,Nursing Care,P03,Wellbeing,CEDAR CARE HOMES LTD,01/06/2015,109.79
Bath & North East Somerset Council,80470213,LM6,Nursing Care,P03,Wellbeing,CEDAR CARE HOMES LTD,01/06/2015,109.79
Bath & North East Somerset Council,80470213,LM6,Nursing Care,P03,Wellbeing,CEDAR CARE HOMES LTD,01/06/2015,109.79
Bath & North East Somerset Council,80470213,LM6,Nursing Care,P03,Wellbeing,CEDAR CARE HOMES LTD,01/06/2015,109.79
Bath & North East Somerset Council,80470213,LM6,Nursing Care,P03,Wellbeing,CEDAR CARE HOMES LTD,01/06/2015,109.79
Bath & North East Somerset Council,80470213,LM6,Nursing Care,P03,Wellbeing,CEDAR CARE HOMES LTD,01/06/2015,109.79
Bath & North East Somerset Council,80470213,LM6,Nursing Care,P03,Wellbeing,CEDAR CARE HOMES LTD,01/06/2015,109.79
Bath & North East Somerset Council,80470213,LM6,Nursing Care,P03,Wellbeing,CEDAR CARE HOMES LTD,01/06/2015,109.79
Bath & North East Somerset Council,80470213,LM6,Nursing Care,P03,Wellbeing,CEDAR CARE HOMES LTD,01/06/2015,109.79
Bath & North East Somerset Council,80470213,LM6,Nursing Care,P03,Wellbeing,CEDAR CARE HOMES LTD,01/06/2015,109.79
Bath & North East Somerset Council,80470213,LM6,Nursing Care,P03,Wellbeing,CEDAR CARE HOMES LTD,01/06/2015,109.79
Bath & North East Somerset Council,80470213,LM6,Nursing Care,P03,Wellbeing,CEDAR CARE HOMES LTD,01/06/2015,109.79
Bath & North East Somerset Council,80470213,LM6,Nursing Care,P03,Wellbeing,CEDAR CARE HOMES LTD,01/06/2015,109.79
Bath & North East Somerset Council,80470213,LM6,Nursing Care,P03,Wellbeing,CEDAR CARE HOMES LTD,01/06/2015,109.79
Bath & North East Somerset Council,80470213,LM6,Nursing Care,P03,Wellbeing,CEDAR CARE HOMES LTD,01/06/2015,109.79
Bath & North East Somerset Council,80470213,LM6,Nursing Care,P03,Wellbeing,CEDAR CARE HOMES LTD,01/06/2015,109.79
Bath & North East Somerset Council,80470213,LM6,Nursing Care,P03,Wellbeing,CEDAR CARE HOMES LTD,01/06/2015,109.79
Bath & North East Somerset Council,80470213,LM6,Nursing Care,P03,Wellbeing,CEDAR CARE HOMES LTD,01/06/2015,109.79
Bath & North East Somerset Council,80470213,LM6,Nursing Care,P03,Wellbeing,CEDAR CARE HOMES LTD,01/06/2015,109.79
Bath & North East Somerset Council,80470209,LM6,Nursing Care,P03,Wellbeing,CEDAR CARE HOMES LTD,01/06/2015,110.89
Bath & North East Somerset Council,80470209,LM6,Nursing Care,P03,Wellbeing,CEDAR CARE HOMES LTD,01/06/2015,110.89
Bath & North East Somerset Council,80470209,LM6,Nursing Care,P03,Wellbeing,CEDAR CARE HOMES LTD,01/06/2015,110.89
Bath & North East Somerset Council,80470209,LM6,Nursing Care,P03,Wellbeing,CEDAR CARE HOMES LTD,01/06/2015,110.89
Bath & North East Somerset Council,80470209,LM6,Nursing Care,P03,Wellbeing,CEDAR CARE HOMES LTD,01/06/2015,110.89
Bath & North East Somerset Council,80470209,LM6,Nursing Care,P03,Wellbeing,CEDAR CARE HOMES LTD,01/06/2015,110.89
Bath & North East Somerset Council,80470209,LM6,Nursing Care,P03,Wellbeing,CEDAR CARE HOMES LTD,01/06/2015,110.89
Bath & North East Somerset Council,80470209,LM6,Nursing Care,P03,Wellbeing,CEDAR CARE HOMES LTD,01/06/2015,110.89
Bath & North East Somerset Council,80470209,LM6,Nursing Care,P03,Wellbeing,CEDAR CARE HOMES LTD,01/06/2015,110.89
Bath & North East Somerset Council,80470209,LM6,Nursing Care,P03,Wellbeing,CEDAR CARE HOMES LTD,01/06/2015,110.89
Bath & North East Somerset Council,80470209,LM6,Nursing Care,P03,Wellbeing,CEDAR CARE HOMES LTD,01/06/2015,110.89
Bath & North East Somerset Council,80470209,LM6,Nursing Care,P03,Wellbeing,CEDAR CARE HOMES LTD,01/06/2015,110.89
Bath & North East Somerset Council,80470209,LM6,Nursing Care,P03,Wellbeing,CEDAR CARE HOMES LTD,01/06/2015,110.89
Bath & North East Somerset Council,80470209,LM6,Nursing Care,P03,Wellbeing,CEDAR CARE HOMES LTD,01/06/2015,110.89
Bath & North East Somerset Council,80470209,LM6,Nursing Care,P03,Wellbeing,CEDAR CARE HOMES LTD,01/06/2015,110.89
Bath & North East Somerset Council,80470209,LM6,Nursing Care,P03,Wellbeing,CEDAR CARE HOMES LTD,01/06/2015,110.89
Bath & North East Somerset Council,80470209,LM6,Nursing Care,P03,Wellbeing,CEDAR CARE HOMES LTD,01/06/2015,110.89
Bath & North East Somerset Council,80470209,LM6,Nursing Care,P03,Wellbeing,CEDAR CARE HOMES LTD,01/06/2015,110.89
Bath & North East Somerset Council,80470209,LM6,Nursing Care,P03,Wellbeing,CEDAR CARE HOMES LTD,01/06/2015,110.89
Bath & North East Somerset Council,80470209,LM6,Nursing Care,P03,Wellbeing,CEDAR CARE HOMES LTD,01/06/2015,110.89
Bath & North East Somerset Council,80470209,LM6,Nursing Care,P03,Wellbeing,CEDAR CARE HOMES LTD,01/06/2015,110.89
Bath & North East Somerset Council,80470209,LM6,Nursing Care,P03,Wellbeing,CEDAR CARE HOMES LTD,01/06/2015,110.89
Bath & North East Somerset Council,80470209,LM6,Nursing Care,P03,Wellbeing,CEDAR CARE HOMES LTD,01/06/2015,110.89
Bath & North East Somerset Council,80470209,LM6,Nursing Care,P03,Wellbeing,CEDAR CARE HOMES LTD,01/06/2015,110.89
Bath & North East Somerset Council,80470209,LM6,Nursing Care,P03,Wellbeing,CEDAR CARE HOMES LTD,01/06/2015,110.89
Bath & North East Somerset Council,80470209,LM6,Nursing Care,P03,Wellbeing,CEDAR CARE HOMES LTD,01/06/2015,110.89
Bath & North East Somerset Council,80470209,LM6,Nursing Care,P03,Wellbeing,CEDAR CARE HOMES LTD,01/06/2015,110.89
Bath & North East Somerset Council,80470209,LM6,Nursing Care,P03,Wellbeing,CEDAR CARE HOMES LTD,01/06/2015,110.89
Bath & North East Somerset Council,80470209,LM6,Nursing Care,P03,Wellbeing,CEDAR CARE HOMES LTD,01/06/2015,110.89
Bath & North East Somerset Council,80470209,LM6,Nursing Care,P03,Wellbeing,CEDAR CARE HOMES LTD,01/06/2015,110.89
Bath & North East Somerset Council,80470209,LM6,Nursing Care,P03,Wellbeing,CEDAR CARE HOMES LTD,01/06/2015,110.89
Bath & North East Somerset Council,80470209,LM6,Nursing Care,P03,Wellbeing,CEDAR CARE HOMES LTD,01/06/2015,110.89
Bath & North East Somerset Council,80470209,LM6,Nursing Care,P03,Wellbeing,CEDAR CARE HOMES LTD,01/06/2015,110.89
Bath & North East Somerset Council,80470209,LM6,Nursing Care,P03,Wellbeing,CEDAR CARE HOMES LTD,01/06/2015,110.89
Bath & North East Somerset Council,80470209,LM6,Nursing Care,P03,Wellbeing,CEDAR CARE HOMES LTD,01/06/2015,110.89
Bath & North East Somerset Council,80470209,LM6,Nursing Care,P03,Wellbeing,CEDAR CARE HOMES LTD,01/06/2015,110.89
Bath & North East Somerset Council,80470209,LM6,Nursing Care,P03,Wellbeing,CEDAR CARE HOMES LTD,01/06/2015,110.89
Bath & North East Somerset Council,80470209,LM6,Nursing Care,P03,Wellbeing,CEDAR CARE HOMES LTD,01/06/2015,110.89
Bath & North East Somerset Council,80470209,LM6,Nursing Care,P03,Wellbeing,CEDAR CARE HOMES LTD,01/06/2015,110.89
Bath & North East Somerset Council,80470209,LM6,Nursing Care,P03,Wellbeing,CEDAR CARE HOMES LTD,01/06/2015,110.89
Bath & North East Somerset Council,80470209,LM6,Nursing Care,P03,Wellbeing,CEDAR CARE HOMES LTD,01/06/2015,110.89
Bath & North East Somerset Council,80470209,LM6,Nursing Care,P03,Wellbeing,CEDAR CARE HOMES LTD,01/06/2015,110.89
Bath & North East Somerset Council,80470209,LM6,Nursing Care,P03,Wellbeing,CEDAR CARE HOMES LTD,01/06/2015,110.89
Bath & North East Somerset Council,80470209,LM6,Nursing Care,P03,Wellbeing,CEDAR CARE HOMES LTD,01/06/2015,110.89
Bath & North East Somerset Council,80470213,LM6,Nursing Care,P03,Wellbeing,CEDAR CARE HOMES LTD,01/06/2015,110.89
Bath & North East Somerset Council,80470213,LM6,Nursing Care,P03,Wellbeing,CEDAR CARE HOMES LTD,01/06/2015,110.89
Bath & North East Somerset Council,80470213,LM6,Nursing Care,P03,Wellbeing,CEDAR CARE HOMES LTD,01/06/2015,110.89
Bath & North East Somerset Council,80470213,LM6,Nursing Care,P03,Wellbeing,CEDAR CARE HOMES LTD,01/06/2015,110.89
Bath & North East Somerset Council,80470213,LM6,Nursing Care,P03,Wellbeing,CEDAR CARE HOMES LTD,01/06/2015,110.89
Bath & North East Somerset Council,80470213,LM6,Nursing Care,P03,Wellbeing,CEDAR CARE HOMES LTD,01/06/2015,110.89
Bath & North East Somerset Council,80470213,LM6,Nursing Care,P03,Wellbeing,CEDAR CARE HOMES LTD,01/06/2015,110.89
Bath & North East Somerset Council,80470209,LM6,Nursing Care,P03,Wellbeing,CEDAR CARE HOMES LTD,01/06/2015,112
Bath & North East Somerset Council,80470209,LM6,Nursing Care,P03,Wellbeing,CEDAR CARE HOMES LTD,01/06/2015,112
Bath & North East Somerset Council,80470209,LM6,Nursing Care,P03,Wellbeing,CEDAR CARE HOMES LTD,01/06/2015,112
Bath & North East Somerset Council,80470209,LM6,Nursing Care,P03,Wellbeing,CEDAR CARE HOMES LTD,01/06/2015,112
Bath & North East Somerset Council,80470209,LM6,Nursing Care,P03,Wellbeing,CEDAR CARE HOMES LTD,01/06/2015,112
Bath & North East Somerset Council,80470209,LM6,Nursing Care,P03,Wellbeing,CEDAR CARE HOMES LTD,01/06/2015,112
Bath & North East Somerset Council,80470209,LM6,Nursing Care,P03,Wellbeing,CEDAR CARE HOMES LTD,01/06/2015,112
Bath & North East Somerset Council,80470209,LM6,Nursing Care,P03,Wellbeing,CEDAR CARE HOMES LTD,01/06/2015,112
Bath & North East Somerset Council,80470209,LM6,Nursing Care,P03,Wellbeing,CEDAR CARE HOMES LTD,01/06/2015,112
Bath & North East Somerset Council,80470209,LM6,Nursing Care,P03,Wellbeing,CEDAR CARE HOMES LTD,01/06/2015,112
Bath & North East Somerset Council,80470209,LM6,Nursing Care,P03,Wellbeing,CEDAR CARE HOMES LTD,01/06/2015,112
Bath & North East Somerset Council,80470209,LM6,Nursing Care,P03,Wellbeing,CEDAR CARE HOMES LTD,01/06/2015,112
Bath & North East Somerset Council,80470209,LM6,Nursing Care,P03,Wellbeing,CEDAR CARE HOMES LTD,01/06/2015,112
Bath & North East Somerset Council,80470209,LM6,Nursing Care,P03,Wellbeing,CEDAR CARE HOMES LTD,01/06/2015,112
Bath & North East Somerset Council,80470209,LM6,Nursing Care,P03,Wellbeing,CEDAR CARE HOMES LTD,01/06/2015,112
Bath & North East Somerset Council,80470209,LM6,Nursing Care,P03,Wellbeing,CEDAR CARE HOMES LTD,01/06/2015,112
Bath & North East Somerset Council,80470209,LM6,Nursing Care,P03,Wellbeing,CEDAR CARE HOMES LTD,01/06/2015,112
Bath & North East Somerset Council,80470209,LM6,Nursing Care,P03,Wellbeing,CEDAR CARE HOMES LTD,01/06/2015,112
Bath & North East Somerset Council,80470209,LM6,Nursing Care,P03,Wellbeing,CEDAR CARE HOMES LTD,01/06/2015,112
Bath & North East Somerset Council,80470209,LM6,Nursing Care,P03,Wellbeing,CEDAR CARE HOMES LTD,01/06/2015,112
Bath & North East Somerset Council,80470209,LM6,Nursing Care,P03,Wellbeing,CEDAR CARE HOMES LTD,01/06/2015,112
Bath & North East Somerset Council,80470209,LM6,Nursing Care,P03,Wellbeing,CEDAR CARE HOMES LTD,01/06/2015,112
Bath & North East Somerset Council,80470209,LM6,Nursing Care,P03,Wellbeing,CEDAR CARE HOMES LTD,01/06/2015,112
Bath & North East Somerset Council,80470209,LM6,Nursing Care,P03,Wellbeing,CEDAR CARE HOMES LTD,01/06/2015,112
Bath & North East Somerset Council,80470209,LM6,Nursing Care,P03,Wellbeing,CEDAR CARE HOMES LTD,01/06/2015,112
Bath & North East Somerset Council,80470209,LM6,Nursing Care,P03,Wellbeing,CEDAR CARE HOMES LTD,01/06/2015,112
Bath & North East Somerset Council,80470209,LM6,Nursing Care,P03,Wellbeing,CEDAR CARE HOMES LTD,01/06/2015,112
Bath & North East Somerset Council,80470209,LM6,Nursing Care,P03,Wellbeing,CEDAR CARE HOMES LTD,01/06/2015,112
Bath & North East Somerset Council,80470209,LM6,Nursing Care,P03,Wellbeing,CEDAR CARE HOMES LTD,01/06/2015,112
Bath & North East Somerset Council,80470209,LM6,Nursing Care,P03,Wellbeing,CEDAR CARE HOMES LTD,01/06/2015,112
Bath & North East Somerset Council,80470209,LM6,Nursing Care,P03,Wellbeing,CEDAR CARE HOMES LTD,01/06/2015,112
Bath & North East Somerset Council,80470209,LM6,Nursing Care,P03,Wellbeing,CEDAR CARE HOMES LTD,01/06/2015,112
Bath & North East Somerset Council,80470209,LM6,Nursing Care,P03,Wellbeing,CEDAR CARE HOMES LTD,01/06/2015,112
Bath & North East Somerset Council,80470209,LM6,Nursing Care,P03,Wellbeing,CEDAR CARE HOMES LTD,01/06/2015,112
Bath & North East Somerset Council,80470213,LM6,Nursing Care,P03,Wellbeing,CEDAR CARE HOMES LTD,01/06/2015,112
Bath & North East Somerset Council,80470213,LM6,Nursing Care,P03,Wellbeing,CEDAR CARE HOMES LTD,01/06/2015,112
Bath & North East Somerset Council,80470213,LM6,Nursing Care,P03,Wellbeing,CEDAR CARE HOMES LTD,01/06/2015,112
Bath & North East Somerset Council,80470213,LM6,Nursing Care,P03,Wellbeing,CEDAR CARE HOMES LTD,01/06/2015,112
Bath & North East Somerset Council,80470213,LM6,Nursing Care,P03,Wellbeing,CEDAR CARE HOMES LTD,01/06/2015,112
Bath & North East Somerset Council,80470213,LM6,Nursing Care,P03,Wellbeing,CEDAR CARE HOMES LTD,01/06/2015,112
Bath & North East Somerset Council,80470213,LM6,Nursing Care,P03,Wellbeing,CEDAR CARE HOMES LTD,01/06/2015,112
Bath & North East Somerset Council,80470213,LM6,Nursing Care,P03,Wellbeing,CEDAR CARE HOMES LTD,01/06/2015,112
Bath & North East Somerset Council,80470213,LM6,Nursing Care,P03,Wellbeing,CEDAR CARE HOMES LTD,01/06/2015,112
Bath & North East Somerset Council,80470213,LM6,Nursing Care,P03,Wellbeing,CEDAR CARE HOMES LTD,01/06/2015,112
Bath & North East Somerset Council,80470213,LM6,Nursing Care,P03,Wellbeing,CEDAR CARE HOMES LTD,01/06/2015,112
Bath & North East Somerset Council,80470213,LM6,Nursing Care,P03,Wellbeing,CEDAR CARE HOMES LTD,01/06/2015,112
Bath & North East Somerset Council,80470213,LM6,Nursing Care,P03,Wellbeing,CEDAR CARE HOMES LTD,01/06/2015,112
Bath & North East Somerset Council,80470213,LM6,Nursing Care,P03,Wellbeing,CEDAR CARE HOMES LTD,01/06/2015,112
Bath & North East Somerset Council,80470213,LM6,Nursing Care,P03,Wellbeing,CEDAR CARE HOMES LTD,01/06/2015,112
Bath & North East Somerset Council,80470213,LM6,Nursing Care,P03,Wellbeing,CEDAR CARE HOMES LTD,01/06/2015,112
Bath & North East Somerset Council,80470213,LM6,Nursing Care,P03,Wellbeing,CEDAR CARE HOMES LTD,01/06/2015,112
Bath & North East Somerset Council,80470213,LM6,Nursing Care,P03,Wellbeing,CEDAR CARE HOMES LTD,01/06/2015,112
Bath & North East Somerset Council,80470213,LM6,Nursing Care,P03,Wellbeing,CEDAR CARE HOMES LTD,01/06/2015,112
Bath & North East Somerset Council,80470213,LM6,Nursing Care,P03,Wellbeing,CEDAR CARE HOMES LTD,01/06/2015,112
Bath & North East Somerset Council,80470213,LM6,Nursing Care,P03,Wellbeing,CEDAR CARE HOMES LTD,01/06/2015,112
Bath & North East Somerset Council,80470213,LM6,Nursing Care,P03,Wellbeing,CEDAR CARE HOMES LTD,01/06/2015,112
Bath & North East Somerset Council,80470213,LM6,Nursing Care,P03,Wellbeing,CEDAR CARE HOMES LTD,01/06/2015,112
Bath & North East Somerset Council,80470213,LM6,Nursing Care,P03,Wellbeing,CEDAR CARE HOMES LTD,01/06/2015,112
Bath & North East Somerset Council,80470213,LM6,Nursing Care,P03,Wellbeing,CEDAR CARE HOMES LTD,01/06/2015,112
Bath & North East Somerset Council,80470213,LM6,Nursing Care,P03,Wellbeing,CEDAR CARE HOMES LTD,01/06/2015,112
Bath & North East Somerset Council,80470213,LM6,Nursing Care,P03,Wellbeing,CEDAR CARE HOMES LTD,01/06/2015,112
Bath & North East Somerset Council,80470213,LM6,Nursing Care,P03,Wellbeing,CEDAR CARE HOMES LTD,01/06/2015,112
Bath & North East Somerset Council,80470213,LM6,Nursing Care,P03,Wellbeing,CEDAR CARE HOMES LTD,01/06/2015,112
Bath & North East Somerset Council,80470213,LM6,Nursing Care,P03,Wellbeing,CEDAR CARE HOMES LTD,01/06/2015,112
Bath & North East Somerset Council,80470213,LM6,Nursing Care,P03,Wellbeing,CEDAR CARE HOMES LTD,01/06/2015,112
Bath & North East Somerset Council,80470213,LM6,Nursing Care,P03,Wellbeing,CEDAR CARE HOMES LTD,01/06/2015,112
Bath & North East Somerset Council,80470213,LM6,Nursing Care,P03,Wellbeing,CEDAR CARE HOMES LTD,01/06/2015,112
Bath & North East Somerset Council,80470213,LM6,Nursing Care,P03,Wellbeing,CEDAR CARE HOMES LTD,01/06/2015,112
Bath & North East Somerset Council,80470213,LM6,Nursing Care,P03,Wellbeing,CEDAR CARE HOMES LTD,01/06/2015,112
Bath & North East Somerset Council,80470213,LM6,Nursing Care,P03,Wellbeing,CEDAR CARE HOMES LTD,01/06/2015,112
Bath & North East Somerset Council,80470213,LM6,Nursing Care,P03,Wellbeing,CEDAR CARE HOMES LTD,01/06/2015,112
Bath & North East Somerset Council,80470213,LM6,Nursing Care,P03,Wellbeing,CEDAR CARE HOMES LTD,01/06/2015,112
Bath & North East Somerset Council,80470213,LM6,Nursing Care,P03,Wellbeing,CEDAR CARE HOMES LTD,01/06/2015,112
Bath & North East Somerset Council,80470213,LM6,Nursing Care,P03,Wellbeing,CEDAR CARE HOMES LTD,01/06/2015,112
Bath & North East Somerset Council,80470213,LM6,Nursing Care,P03,Wellbeing,CEDAR CARE HOMES LTD,01/06/2015,112
Bath & North East Somerset Council,80470213,LM6,Nursing Care,P03,Wellbeing,CEDAR CARE HOMES LTD,01/06/2015,112
Bath & North East Somerset Council,80470115,LM6,Nursing Care,P03,Wellbeing,CEDAR CARE HOMES LTD,01/06/2015,342.86
Bath & North East Somerset Council,80470516,LM6,Nursing Care,P03,Wellbeing,CEDAR CARE HOMES LTD,01/06/2015,462.86
Bath & North East Somerset Council,80470492,LM3,Residential Care,P03,Wellbeing,CEDAR CARE HOMES LTD,01/06/2015,475.5
Bath & North East Somerset Council,80470492,LM3,Residential Care,P03,Wellbeing,CEDAR CARE HOMES LTD,01/06/2015,475.5
Bath & North East Somerset Council,80470492,LM3,Residential Care,P03,Wellbeing,CEDAR CARE HOMES LTD,01/06/2015,486
Bath & North East Somerset Council,80470492,LM3,Residential Care,P03,Wellbeing,CEDAR CARE HOMES LTD,01/06/2015,486
Bath & North East Somerset Council,80470492,LM3,Residential Care,P03,Wellbeing,CEDAR CARE HOMES LTD,01/06/2015,486
Bath & North East Somerset Council,80470492,LM3,Residential Care,P03,Wellbeing,CEDAR CARE HOMES LTD,01/06/2015,486
Bath & North East Somerset Council,80470492,LM3,Residential Care,P03,Wellbeing,CEDAR CARE HOMES LTD,01/06/2015,500
Bath & North East Somerset Council,80470492,LM3,Residential Care,P03,Wellbeing,CEDAR CARE HOMES LTD,01/06/2015,500
Bath & North East Somerset Council,80470492,LM3,Residential Care,P03,Wellbeing,CEDAR CARE HOMES LTD,01/06/2015,510
Bath & North East Somerset Council,80470492,LM3,Residential Care,P03,Wellbeing,CEDAR CARE HOMES LTD,01/06/2015,510
Bath & North East Somerset Council,80470492,LM3,Residential Care,P03,Wellbeing,CEDAR CARE HOMES LTD,01/06/2015,510
Bath & North East Somerset Council,80470492,LM3,Residential Care,P03,Wellbeing,CEDAR CARE HOMES LTD,01/06/2015,510
Bath & North East Somerset Council,80470492,LM3,Residential Care,P03,Wellbeing,CEDAR CARE HOMES LTD,01/06/2015,510
Bath & North East Somerset Council,80470492,LM3,Residential Care,P03,Wellbeing,CEDAR CARE HOMES LTD,01/06/2015,510
Bath & North East Somerset Council,80470492,LM3,Residential Care,P03,Wellbeing,CEDAR CARE HOMES LTD,01/06/2015,520
Bath & North East Somerset Council,80470492,LM3,Residential Care,P03,Wellbeing,CEDAR CARE HOMES LTD,01/06/2015,520
Bath & North East Somerset Council,80470115,LM6,Nursing Care,P03,Wellbeing,CEDAR CARE HOMES LTD,01/06/2015,546
Bath & North East Somerset Council,80470115,LM6,Nursing Care,P03,Wellbeing,CEDAR CARE HOMES LTD,01/06/2015,546
Bath & North East Somerset Council,80470115,LM6,Nursing Care,P03,Wellbeing,CEDAR CARE HOMES LTD,01/06/2015,546
Bath & North East Somerset Council,80470115,LM6,Nursing Care,P03,Wellbeing,CEDAR CARE HOMES LTD,01/06/2015,546
Bath & North East Somerset Council,80470115,LM6,Nursing Care,P03,Wellbeing,CEDAR CARE HOMES LTD,01/06/2015,546
Bath & North East Somerset Council,80470492,LM3,Residential Care,P03,Wellbeing,CEDAR CARE HOMES LTD,01/06/2015,550
Bath & North East Somerset Council,80470492,LM3,Residential Care,P03,Wellbeing,CEDAR CARE HOMES LTD,01/06/2015,550
Bath & North East Somerset Council,80470554,LM6,Nursing Care,P03,Wellbeing,CEDAR CARE HOMES LTD,01/06/2015,564
Bath & North East Somerset Council,80470554,LM6,Nursing Care,P03,Wellbeing,CEDAR CARE HOMES LTD,01/06/2015,564
Bath & North East Somerset Council,80470554,LM6,Nursing Care,P03,Wellbeing,CEDAR CARE HOMES LTD,01/06/2015,564
Bath & North East Somerset Council,80470554,LM6,Nursing Care,P03,Wellbeing,CEDAR CARE HOMES LTD,01/06/2015,564
Bath & North East Somerset Council,80470554,LM6,Nursing Care,P03,Wellbeing,CEDAR CARE HOMES LTD,01/06/2015,564
Bath & North East Somerset Council,80470554,LM6,Nursing Care,P03,Wellbeing,CEDAR CARE HOMES LTD,01/06/2015,564
Bath & North East Somerset Council,80470554,LM6,Nursing Care,P03,Wellbeing,CEDAR CARE HOMES LTD,01/06/2015,564
Bath & North East Somerset Council,80470554,LM6,Nursing Care,P03,Wellbeing,CEDAR CARE HOMES LTD,01/06/2015,564
Bath & North East Somerset Council,80470516,LM3,Residential Care,P03,Wellbeing,CEDAR CARE HOMES LTD,01/06/2015,569
Bath & North East Somerset Council,80470516,LM3,Residential Care,P03,Wellbeing,CEDAR CARE HOMES LTD,01/06/2015,569
Bath & North East Somerset Council,80470516,LM6,Nursing Care,P03,Wellbeing,CEDAR CARE HOMES LTD,01/06/2015,588
Bath & North East Somerset Council,80470516,LM6,Nursing Care,P03,Wellbeing,CEDAR CARE HOMES LTD,01/06/2015,588
Bath & North East Somerset Council,80470554,LM6,Nursing Care,P03,Wellbeing,CEDAR CARE HOMES LTD,01/06/2015,588
Bath & North East Somerset Council,80470554,LM6,Nursing Care,P03,Wellbeing,CEDAR CARE HOMES LTD,01/06/2015,588
Bath & North East Somerset Council,80470516,LM6,Nursing Care,P03,Wellbeing,CEDAR CARE HOMES LTD,01/06/2015,600
Bath & North East Somerset Council,80470516,LM6,Nursing Care,P03,Wellbeing,CEDAR CARE HOMES LTD,01/06/2015,600
Bath & North East Somerset Council,80470554,LM6,Nursing Care,P03,Wellbeing,CEDAR CARE HOMES LTD,01/06/2015,600
Bath & North East Somerset Council,80470554,LM6,Nursing Care,P03,Wellbeing,CEDAR CARE HOMES LTD,01/06/2015,600
Bath & North East Somerset Council,80470099,LM6,Nursing Care,P03,Wellbeing,CEDAR CARE HOMES LTD,01/06/2015,650
Bath & North East Somerset Council,80470099,LM6,Nursing Care,P03,Wellbeing,CEDAR CARE HOMES LTD,01/06/2015,650
Bath & North East Somerset Council,80470516,LM6,Nursing Care,P03,Wellbeing,CEDAR CARE HOMES LTD,01/06/2015,650
Bath & North East Somerset Council,80470516,LM6,Nursing Care,P03,Wellbeing,CEDAR CARE HOMES LTD,01/06/2015,650
Bath & North East Somerset Council,80470516,LM6,Nursing Care,P03,Wellbeing,CEDAR CARE HOMES LTD,01/06/2015,650
Bath & North East Somerset Council,80470516,LM6,Nursing Care,P03,Wellbeing,CEDAR CARE HOMES LTD,01/06/2015,650
Bath & North East Somerset Council,80470554,LM6,Nursing Care,P03,Wellbeing,CEDAR CARE HOMES LTD,01/06/2015,667
Bath & North East Somerset Council,80470554,LM6,Nursing Care,P03,Wellbeing,CEDAR CARE HOMES LTD,01/06/2015,667
Bath & North East Somerset Council,80470554,LM6,Nursing Care,P03,Wellbeing,CEDAR CARE HOMES LTD,01/06/2015,700
Bath & North East Somerset Council,80470554,LM6,Nursing Care,P03,Wellbeing,CEDAR CARE HOMES LTD,01/06/2015,700
Bath & North East Somerset Council,80470516,LM6,Nursing Care,P03,Wellbeing,CEDAR CARE HOMES LTD,01/06/2015,750
Bath & North East Somerset Council,80470516,LM6,Nursing Care,P03,Wellbeing,CEDAR CARE HOMES LTD,01/06/2015,750
Bath & North East Somerset Council,80470554,LM6,Nursing Care,P03,Wellbeing,CEDAR CARE HOMES LTD,01/06/2015,750
Bath & North East Somerset Council,80470554,LM6,Nursing Care,P03,Wellbeing,CEDAR CARE HOMES LTD,01/06/2015,750
Bath & North East Somerset Council,80470554,LM6,Nursing Care,P03,Wellbeing,CEDAR CARE HOMES LTD,01/06/2015,750
Bath & North East Somerset Council,80470554,LM6,Nursing Care,P03,Wellbeing,CEDAR CARE HOMES LTD,01/06/2015,750
Bath & North East Somerset Council,80470554,LM6,Nursing Care,P03,Wellbeing,CEDAR CARE HOMES LTD,01/06/2015,750
Bath & North East Somerset Council,80470554,LM6,Nursing Care,P03,Wellbeing,CEDAR CARE HOMES LTD,01/06/2015,750
Bath & North East Somerset Council,80470554,LM6,Nursing Care,P03,Wellbeing,CEDAR CARE HOMES LTD,01/06/2015,750
Bath & North East Somerset Council,80470554,LM6,Nursing Care,P03,Wellbeing,CEDAR CARE HOMES LTD,01/06/2015,750
Bath & North East Somerset Council,80470554,LM6,Nursing Care,P03,Wellbeing,CEDAR CARE HOMES LTD,01/06/2015,775
Bath & North East Somerset Council,80470554,LM6,Nursing Care,P03,Wellbeing,CEDAR CARE HOMES LTD,01/06/2015,775
Bath & North East Somerset Council,80470115,LM6,Nursing Care,P03,Wellbeing,CEDAR CARE HOMES LTD,01/06/2015,800
Bath & North East Somerset Council,80470115,LM6,Nursing Care,P03,Wellbeing,CEDAR CARE HOMES LTD,01/06/2015,800
Bath & North East Somerset Council,80470115,LM6,Nursing Care,P03,Wellbeing,CEDAR CARE HOMES LTD,01/06/2015,800
Bath & North East Somerset Council,80470115,LM6,Nursing Care,P03,Wellbeing,CEDAR CARE HOMES LTD,01/06/2015,800
Bath & North East Somerset Council,80470115,LM6,Nursing Care,P03,Wellbeing,CEDAR CARE HOMES LTD,01/06/2015,800
Bath & North East Somerset Council,80470115,LM6,Nursing Care,P03,Wellbeing,CEDAR CARE HOMES LTD,01/06/2015,800
Bath & North East Somerset Council,80470115,LM6,Nursing Care,P03,Wellbeing,CEDAR CARE HOMES LTD,01/06/2015,800
Bath & North East Somerset Council,80470115,LM6,Nursing Care,P03,Wellbeing,CEDAR CARE HOMES LTD,01/06/2015,800
Bath & North East Somerset Council,80470115,LM6,Nursing Care,P03,Wellbeing,CEDAR CARE HOMES LTD,01/06/2015,800
Bath & North East Somerset Council,80470115,LM6,Nursing Care,P03,Wellbeing,CEDAR CARE HOMES LTD,01/06/2015,800
Bath & North East Somerset Council,80470115,LM6,Nursing Care,P03,Wellbeing,CEDAR CARE HOMES LTD,01/06/2015,800
Bath & North East Somerset Council,80470115,LM6,Nursing Care,P03,Wellbeing,CEDAR CARE HOMES LTD,01/06/2015,800
Bath & North East Somerset Council,80470115,LM6,Nursing Care,P03,Wellbeing,CEDAR CARE HOMES LTD,01/06/2015,800
Bath & North East Somerset Council,80470115,LM6,Nursing Care,P03,Wellbeing,CEDAR CARE HOMES LTD,01/06/2015,800
Bath & North East Somerset Council,80470099,LM6,Nursing Care,P03,Wellbeing,CEDAR CARE HOMES LTD,01/06/2015,810
Bath & North East Somerset Council,80470099,LM6,Nursing Care,P03,Wellbeing,CEDAR CARE HOMES LTD,01/06/2015,810
Bath & North East Somerset Council,80470099,LM6,Nursing Care,P03,Wellbeing,CEDAR CARE HOMES LTD,01/06/2015,810
Bath & North East Somerset Council,80470099,LM6,Nursing Care,P03,Wellbeing,CEDAR CARE HOMES LTD,01/06/2015,810
Bath & North East Somerset Council,80470099,LM6,Nursing Care,P03,Wellbeing,CEDAR CARE HOMES LTD,01/06/2015,810
Bath & North East Somerset Council,80470099,LM6,Nursing Care,P03,Wellbeing,CEDAR CARE HOMES LTD,01/06/2015,810
Bath & North East Somerset Council,80470099,LM6,Nursing Care,P03,Wellbeing,CEDAR CARE HOMES LTD,01/06/2015,810
Bath & North East Somerset Council,80470099,LM6,Nursing Care,P03,Wellbeing,CEDAR CARE HOMES LTD,01/06/2015,810
Bath & North East Somerset Council,80470516,LM6,Nursing Care,P03,Wellbeing,CEDAR CARE HOMES LTD,01/06/2015,810
Bath & North East Somerset Council,80470516,LM6,Nursing Care,P03,Wellbeing,CEDAR CARE HOMES LTD,01/06/2015,810
Bath & North East Somerset Council,80470516,LM6,Nursing Care,P03,Wellbeing,CEDAR CARE HOMES LTD,01/06/2015,810
Bath & North East Somerset Council,80470516,LM6,Nursing Care,P03,Wellbeing,CEDAR CARE HOMES LTD,01/06/2015,810
Bath & North East Somerset Council,80470516,LM6,Nursing Care,P03,Wellbeing,CEDAR CARE HOMES LTD,01/06/2015,810
Bath & North East Somerset Council,80470516,LM6,Nursing Care,P03,Wellbeing,CEDAR CARE HOMES LTD,01/06/2015,810
Bath & North East Somerset Council,80470516,LM6,Nursing Care,P03,Wellbeing,CEDAR CARE HOMES LTD,01/06/2015,810
Bath & North East Somerset Council,80470516,LM6,Nursing Care,P03,Wellbeing,CEDAR CARE HOMES LTD,01/06/2015,810
Bath & North East Somerset Council,80470516,LM6,Nursing Care,P03,Wellbeing,CEDAR CARE HOMES LTD,01/06/2015,810
Bath & North East Somerset Council,80470516,LM6,Nursing Care,P03,Wellbeing,CEDAR CARE HOMES LTD,01/06/2015,810
Bath & North East Somerset Council,80470115,LM6,Nursing Care,P03,Wellbeing,CEDAR CARE HOMES LTD,01/06/2015,840
Bath & North East Somerset Council,80470115,LM6,Nursing Care,P03,Wellbeing,CEDAR CARE HOMES LTD,01/06/2015,840
Bath & North East Somerset Council,80470516,LM6,Nursing Care,P03,Wellbeing,CEDAR CARE HOMES LTD,01/06/2015,920
Bath & North East Somerset Council,80470516,LM6,Nursing Care,P03,Wellbeing,CEDAR CARE HOMES LTD,01/06/2015,920
Bath & North East Somerset Council,80470099,LM6,Nursing Care,P03,Wellbeing,CEDAR CARE HOMES LTD,01/06/2015,960
Bath & North East Somerset Council,80470099,LM6,Nursing Care,P03,Wellbeing,CEDAR CARE HOMES LTD,01/06/2015,960
Bath & North East Somerset Council,80470115,LM6,Nursing Care,P03,Wellbeing,CEDAR CARE HOMES LTD,01/06/2015,1300.19
Bath & North East Somerset Council,80470115,LM6,Nursing Care,P03,Wellbeing,CEDAR CARE HOMES LTD,01/06/2015,1300.19
Bath & North East Somerset Council,80470099,LM6,Nursing Care,P03,Wellbeing,CEDAR CARE HOMES LTD,01/06/2015,2019
Bath & North East Somerset Council,80470099,LM6,Nursing Care,P03,Wellbeing,CEDAR CARE HOMES LTD,01/06/2015,2019
Bath & North East Somerset Council,80470620,YF2,Fees & Charges,P03,Wellbeing,CEDAR PARK NURSING HOME,01/06/2015,100.61
Bath & North East Somerset Council,80470219,LM6,Nursing Care,P03,Wellbeing,CEDAR PARK NURSING HOME,01/06/2015,112
Bath & North East Somerset Council,80470219,LM6,Nursing Care,P03,Wellbeing,CEDAR PARK NURSING HOME,01/06/2015,112
Bath & North East Somerset Council,80470219,LM6,Nursing Care,P03,Wellbeing,CEDAR PARK NURSING HOME,01/06/2015,112
Bath & North East Somerset Council,80470219,LM6,Nursing Care,P03,Wellbeing,CEDAR PARK NURSING HOME,01/06/2015,112
Bath & North East Somerset Council,80470219,LM6,Nursing Care,P03,Wellbeing,CEDAR PARK NURSING HOME,01/06/2015,112
Bath & North East Somerset Council,80470219,LM6,Nursing Care,P03,Wellbeing,CEDAR PARK NURSING HOME,01/06/2015,112
Bath & North East Somerset Council,80470219,LM6,Nursing Care,P03,Wellbeing,CEDAR PARK NURSING HOME,01/06/2015,112
Bath & North East Somerset Council,80470219,LM6,Nursing Care,P03,Wellbeing,CEDAR PARK NURSING HOME,01/06/2015,112
Bath & North East Somerset Council,80470219,LM6,Nursing Care,P03,Wellbeing,CEDAR PARK NURSING HOME,01/06/2015,112
Bath & North East Somerset Council,80470219,LM6,Nursing Care,P03,Wellbeing,CEDAR PARK NURSING HOME,01/06/2015,112
Bath & North East Somerset Council,80470219,LM6,Nursing Care,P03,Wellbeing,CEDAR PARK NURSING HOME,01/06/2015,112
Bath & North East Somerset Council,80470219,LM6,Nursing Care,P03,Wellbeing,CEDAR PARK NURSING HOME,01/06/2015,112
Bath & North East Somerset Council,80470219,LM6,Nursing Care,P03,Wellbeing,CEDAR PARK NURSING HOME,01/06/2015,112
Bath & North East Somerset Council,80470219,LM6,Nursing Care,P03,Wellbeing,CEDAR PARK NURSING HOME,01/06/2015,112
Bath & North East Somerset Council,80470219,LM6,Nursing Care,P03,Wellbeing,CEDAR PARK NURSING HOME,01/06/2015,112
Bath & North East Somerset Council,80470219,LM6,Nursing Care,P03,Wellbeing,CEDAR PARK NURSING HOME,01/06/2015,112
Bath & North East Somerset Council,80470219,LM6,Nursing Care,P03,Wellbeing,CEDAR PARK NURSING HOME,01/06/2015,112
Bath & North East Somerset Council,80470219,LM6,Nursing Care,P03,Wellbeing,CEDAR PARK NURSING HOME,01/06/2015,112
Bath & North East Somerset Council,80470219,LM6,Nursing Care,P03,Wellbeing,CEDAR PARK NURSING HOME,01/06/2015,112
Bath & North East Somerset Council,80470219,LM6,Nursing Care,P03,Wellbeing,CEDAR PARK NURSING HOME,01/06/2015,112
Bath & North East Somerset Council,80470219,LM6,Nursing Care,P03,Wellbeing,CEDAR PARK NURSING HOME,01/06/2015,112
Bath & North East Somerset Council,80470219,LM6,Nursing Care,P03,Wellbeing,CEDAR PARK NURSING HOME,01/06/2015,112
Bath & North East Somerset Council,80470219,LM6,Nursing Care,P03,Wellbeing,CEDAR PARK NURSING HOME,01/06/2015,112
Bath & North East Somerset Council,80470219,LM6,Nursing Care,P03,Wellbeing,CEDAR PARK NURSING HOME,01/06/2015,112
Bath & North East Somerset Council,80470219,LM6,Nursing Care,P03,Wellbeing,CEDAR PARK NURSING HOME,01/06/2015,112
Bath & North East Somerset Council,80470219,LM6,Nursing Care,P03,Wellbeing,CEDAR PARK NURSING HOME,01/06/2015,112
Bath & North East Somerset Council,80470219,LM6,Nursing Care,P03,Wellbeing,CEDAR PARK NURSING HOME,01/06/2015,112
Bath & North East Somerset Council,80470219,LM6,Nursing Care,P03,Wellbeing,CEDAR PARK NURSING HOME,01/06/2015,112
Bath & North East Somerset Council,80470219,LM6,Nursing Care,P03,Wellbeing,CEDAR PARK NURSING HOME,01/06/2015,112
Bath & North East Somerset Council,80470219,LM6,Nursing Care,P03,Wellbeing,CEDAR PARK NURSING HOME,01/06/2015,112
Bath & North East Somerset Council,80470219,LM6,Nursing Care,P03,Wellbeing,CEDAR PARK NURSING HOME,01/06/2015,112
Bath & North East Somerset Council,80470219,LM6,Nursing Care,P03,Wellbeing,CEDAR PARK NURSING HOME,01/06/2015,112
Bath & North East Somerset Council,80470620,LM6,Nursing Care,P03,Wellbeing,CEDAR PARK NURSING HOME,01/06/2015,278.57
Bath & North East Somerset Council,80470620,LM6,Nursing Care,P03,Wellbeing,CEDAR PARK NURSING HOME,01/06/2015,371.43
Bath & North East Somerset Council,80470620,LM3,Residential Care,P03,Wellbeing,CEDAR PARK NURSING HOME,01/06/2015,486
Bath & North East Somerset Council,80470620,LM3,Residential Care,P03,Wellbeing,CEDAR PARK NURSING HOME,01/06/2015,486
Bath & North East Somerset Council,80470620,LM6,Nursing Care,P03,Wellbeing,CEDAR PARK NURSING HOME,01/06/2015,564
Bath & North East Somerset Council,80470620,LM6,Nursing Care,P03,Wellbeing,CEDAR PARK NURSING HOME,01/06/2015,564
Bath & North East Somerset Council,80470620,LM6,Nursing Care,P03,Wellbeing,CEDAR PARK NURSING HOME,01/06/2015,564
Bath & North East Somerset Council,80470620,LM6,Nursing Care,P03,Wellbeing,CEDAR PARK NURSING HOME,01/06/2015,564
Bath & North East Somerset Council,80470620,LM6,Nursing Care,P03,Wellbeing,CEDAR PARK NURSING HOME,01/06/2015,564
Bath & North East Somerset Council,80470620,LM6,Nursing Care,P03,Wellbeing,CEDAR PARK NURSING HOME,01/06/2015,564
Bath & North East Somerset Council,80470620,LM6,Nursing Care,P03,Wellbeing,CEDAR PARK NURSING HOME,01/06/2015,564
Bath & North East Somerset Council,80470620,LM6,Nursing Care,P03,Wellbeing,CEDAR PARK NURSING HOME,01/06/2015,564
Bath & North East Somerset Council,80470620,LM6,Nursing Care,P03,Wellbeing,CEDAR PARK NURSING HOME,01/06/2015,564
Bath & North East Somerset Council,80470620,LM6,Nursing Care,P03,Wellbeing,CEDAR PARK NURSING HOME,01/06/2015,564
Bath & North East Somerset Council,80470620,LM6,Nursing Care,P03,Wellbeing,CEDAR PARK NURSING HOME,01/06/2015,564
Bath & North East Somerset Council,80470620,LM6,Nursing Care,P03,Wellbeing,CEDAR PARK NURSING HOME,01/06/2015,564
Bath & North East Somerset Council,80470620,LM6,Nursing Care,P03,Wellbeing,CEDAR PARK NURSING HOME,01/06/2015,564
Bath & North East Somerset Council,80470620,LM6,Nursing Care,P03,Wellbeing,CEDAR PARK NURSING HOME,01/06/2015,564
Bath & North East Somerset Council,80470620,LM6,Nursing Care,P03,Wellbeing,CEDAR PARK NURSING HOME,01/06/2015,564
Bath & North East Somerset Council,80470620,LM6,Nursing Care,P03,Wellbeing,CEDAR PARK NURSING HOME,01/06/2015,564
Bath & North East Somerset Council,80470620,LM6,Nursing Care,P03,Wellbeing,CEDAR PARK NURSING HOME,01/06/2015,564
Bath & North East Somerset Council,80470620,LM6,Nursing Care,P03,Wellbeing,CEDAR PARK NURSING HOME,01/06/2015,564
Bath & North East Somerset Council,80470620,LM6,Nursing Care,P03,Wellbeing,CEDAR PARK NURSING HOME,01/06/2015,564
Bath & North East Somerset Council,80470620,LM6,Nursing Care,P03,Wellbeing,CEDAR PARK NURSING HOME,01/06/2015,564
Bath & North East Somerset Council,80470620,LM6,Nursing Care,P03,Wellbeing,CEDAR PARK NURSING HOME,01/06/2015,564
Bath & North East Somerset Council,80470620,LM6,Nursing Care,P03,Wellbeing,CEDAR PARK NURSING HOME,01/06/2015,564
Bath & North East Somerset Council,80470620,LM6,Nursing Care,P03,Wellbeing,CEDAR PARK NURSING HOME,01/06/2015,564
Bath & North East Somerset Council,80470620,LM6,Nursing Care,P03,Wellbeing,CEDAR PARK NURSING HOME,01/06/2015,564
Bath & North East Somerset Council,80470620,LM6,Nursing Care,P03,Wellbeing,CEDAR PARK NURSING HOME,01/06/2015,564
Bath & North East Somerset Council,80470620,LM6,Nursing Care,P03,Wellbeing,CEDAR PARK NURSING HOME,01/06/2015,564
Bath & North East Somerset Council,80470620,LM6,Nursing Care,P03,Wellbeing,CEDAR PARK NURSING HOME,01/06/2015,564
Bath & North East Somerset Council,80470620,LM6,Nursing Care,P03,Wellbeing,CEDAR PARK NURSING HOME,01/06/2015,564
Bath & North East Somerset Council,80470620,LM6,Nursing Care,P03,Wellbeing,CEDAR PARK NURSING HOME,01/06/2015,564
Bath & North East Somerset Council,80470620,LM6,Nursing Care,P03,Wellbeing,CEDAR PARK NURSING HOME,01/06/2015,564
Bath & North East Somerset Council,80470620,LM6,Nursing Care,P03,Wellbeing,CEDAR PARK NURSING HOME,01/06/2015,588
Bath & North East Somerset Council,80470620,LM6,Nursing Care,P03,Wellbeing,CEDAR PARK NURSING HOME,01/06/2015,588
Bath & North East Somerset Council,80470620,LM6,Nursing Care,P03,Wellbeing,CEDAR PARK NURSING HOME,01/06/2015,588
Bath & North East Somerset Council,80470620,LM6,Nursing Care,P03,Wellbeing,CEDAR PARK NURSING HOME,01/06/2015,588
Bath & North East Somerset Council,80470620,LM6,Nursing Care,P03,Wellbeing,CEDAR PARK NURSING HOME,01/06/2015,602
Bath & North East Somerset Council,80470620,LM6,Nursing Care,P03,Wellbeing,CEDAR PARK NURSING HOME,01/06/2015,602
Bath & North East Somerset Council,80470620,LM6,Nursing Care,P03,Wellbeing,CEDAR PARK NURSING HOME,01/06/2015,620
Bath & North East Somerset Council,80470620,LM6,Nursing Care,P03,Wellbeing,CEDAR PARK NURSING HOME,01/06/2015,620
Bath & North East Somerset Council,80470620,LM6,Nursing Care,P03,Wellbeing,CEDAR PARK NURSING HOME,01/06/2015,650
Bath & North East Somerset Council,80470620,LM6,Nursing Care,P03,Wellbeing,CEDAR PARK NURSING HOME,01/06/2015,650
Bath & North East Somerset Council,80470620,LM6,Nursing Care,P03,Wellbeing,CEDAR PARK NURSING HOME,01/06/2015,650
Bath & North East Somerset Council,80470620,LM6,Nursing Care,P03,Wellbeing,CEDAR PARK NURSING HOME,01/06/2015,650
Bath & North East Somerset Council,80470620,LM6,Nursing Care,P03,Wellbeing,CEDAR PARK NURSING HOME,01/06/2015,650
Bath & North East Somerset Council,80470620,LM6,Nursing Care,P03,Wellbeing,CEDAR PARK NURSING HOME,01/06/2015,650
Bath & North East Somerset Council,80470620,LM6,Nursing Care,P03,Wellbeing,CEDAR PARK NURSING HOME,01/06/2015,650
Bath & North East Somerset Council,80470620,LM6,Nursing Care,P03,Wellbeing,CEDAR PARK NURSING HOME,01/06/2015,650
Bath & North East Somerset Council,80470620,LM6,Nursing Care,P03,Wellbeing,CEDAR PARK NURSING HOME,01/06/2015,675
Bath & North East Somerset Council,80470620,LM6,Nursing Care,P03,Wellbeing,CEDAR PARK NURSING HOME,01/06/2015,675
Bath & North East Somerset Council,80470620,LM6,Nursing Care,P03,Wellbeing,CEDAR PARK NURSING HOME,01/06/2015,700
Bath & North East Somerset Council,80470620,LM6,Nursing Care,P03,Wellbeing,CEDAR PARK NURSING HOME,01/06/2015,700
Bath & North East Somerset Council,80470079,LM6,Nursing Care,P03,Wellbeing,CEDAR PARK NURSING HOME,01/06/2015,770
Bath & North East Somerset Council,80470079,LM6,Nursing Care,P03,Wellbeing,CEDAR PARK NURSING HOME,01/06/2015,770
Bath & North East Somerset Council,80470079,LM6,Nursing Care,P03,Wellbeing,CEDAR PARK NURSING HOME,01/06/2015,775
Bath & North East Somerset Council,80470079,LM6,Nursing Care,P03,Wellbeing,CEDAR PARK NURSING HOME,01/06/2015,775
Bath & North East Somerset Council,80470620,LM6,Nursing Care,P03,Wellbeing,CEDAR PARK NURSING HOME,01/06/2015,775
Bath & North East Somerset Council,80470620,LM6,Nursing Care,P03,Wellbeing,CEDAR PARK NURSING HOME,01/06/2015,775
Bath & North East Somerset Council,80470560,LM6,Nursing Care,P03,Wellbeing,CEDARS CARE (WINSCOMBE HALL) LTD,01/06/2015,597
Bath & North East Somerset Council,80470560,LM6,Nursing Care,P03,Wellbeing,CEDARS CARE (WINSCOMBE HALL) LTD,01/06/2015,597
Bath & North East Somerset Council,80470569,LM3,Residential Care,P03,Wellbeing,CEPEN LODGE CARE HOME,01/06/2015,580
Bath & North East Somerset Council,80470569,LM3,Residential Care,P03,Wellbeing,CEPEN LODGE CARE HOME,01/06/2015,580
Bath & North East Somerset Council,80470569,LM3,Residential Care,P03,Wellbeing,CEPEN LODGE CARE HOME,01/06/2015,650
Bath & North East Somerset Council,80470569,LM3,Residential Care,P03,Wellbeing,CEPEN LODGE CARE HOME,01/06/2015,650
Bath & North East Somerset Council,80470214,LM6,Nursing Care,P03,Wellbeing,CHERRY GARDEN PROPERTIES LTD,01/06/2015,112
Bath & North East Somerset Council,80470214,LM6,Nursing Care,P03,Wellbeing,CHERRY GARDEN PROPERTIES LTD,01/06/2015,112
Bath & North East Somerset Council,80470214,LM6,Nursing Care,P03,Wellbeing,CHERRY GARDEN PROPERTIES LTD,01/06/2015,112
Bath & North East Somerset Council,80470214,LM6,Nursing Care,P03,Wellbeing,CHERRY GARDEN PROPERTIES LTD,01/06/2015,112
Bath & North East Somerset Council,80470214,LM6,Nursing Care,P03,Wellbeing,CHERRY GARDEN PROPERTIES LTD,01/06/2015,112
Bath & North East Somerset Council,80470214,LM6,Nursing Care,P03,Wellbeing,CHERRY GARDEN PROPERTIES LTD,01/06/2015,112
Bath & North East Somerset Council,80470214,LM6,Nursing Care,P03,Wellbeing,CHERRY GARDEN PROPERTIES LTD,01/06/2015,112
Bath & North East Somerset Council,80470214,LM6,Nursing Care,P03,Wellbeing,CHERRY GARDEN PROPERTIES LTD,01/06/2015,112
Bath & North East Somerset Council,80470214,LM6,Nursing Care,P03,Wellbeing,CHERRY GARDEN PROPERTIES LTD,01/06/2015,112
Bath & North East Somerset Council,80470214,LM6,Nursing Care,P03,Wellbeing,CHERRY GARDEN PROPERTIES LTD,01/06/2015,112
Bath & North East Somerset Council,80470214,LM6,Nursing Care,P03,Wellbeing,CHERRY GARDEN PROPERTIES LTD,01/06/2015,112
Bath & North East Somerset Council,80470214,LM6,Nursing Care,P03,Wellbeing,CHERRY GARDEN PROPERTIES LTD,01/06/2015,112
Bath & North East Somerset Council,80470214,LM6,Nursing Care,P03,Wellbeing,CHERRY GARDEN PROPERTIES LTD,01/06/2015,112
Bath & North East Somerset Council,80470214,LM6,Nursing Care,P03,Wellbeing,CHERRY GARDEN PROPERTIES LTD,01/06/2015,112
Bath & North East Somerset Council,80470214,LM6,Nursing Care,P03,Wellbeing,CHERRY GARDEN PROPERTIES LTD,01/06/2015,112
Bath & North East Somerset Council,80470214,LM6,Nursing Care,P03,Wellbeing,CHERRY GARDEN PROPERTIES LTD,01/06/2015,112
Bath & North East Somerset Council,80470214,LM6,Nursing Care,P03,Wellbeing,CHERRY GARDEN PROPERTIES LTD,01/06/2015,112
Bath & North East Somerset Council,80470214,LM6,Nursing Care,P03,Wellbeing,CHERRY GARDEN PROPERTIES LTD,01/06/2015,112
Bath & North East Somerset Council,80470214,LM6,Nursing Care,P03,Wellbeing,CHERRY GARDEN PROPERTIES LTD,01/06/2015,112
Bath & North East Somerset Council,80470214,LM6,Nursing Care,P03,Wellbeing,CHERRY GARDEN PROPERTIES LTD,01/06/2015,112
Bath & North East Somerset Council,80470214,LM6,Nursing Care,P03,Wellbeing,CHERRY GARDEN PROPERTIES LTD,01/06/2015,112
Bath & North East Somerset Council,80470214,LM6,Nursing Care,P03,Wellbeing,CHERRY GARDEN PROPERTIES LTD,01/06/2015,112
Bath & North East Somerset Council,80470214,LM6,Nursing Care,P03,Wellbeing,CHERRY GARDEN PROPERTIES LTD,01/06/2015,112
Bath & North East Somerset Council,80470214,LM6,Nursing Care,P03,Wellbeing,CHERRY GARDEN PROPERTIES LTD,01/06/2015,112
Bath & North East Somerset Council,80470214,LM6,Nursing Care,P03,Wellbeing,CHERRY GARDEN PROPERTIES LTD,01/06/2015,112
Bath & North East Somerset Council,80470214,LM6,Nursing Care,P03,Wellbeing,CHERRY GARDEN PROPERTIES LTD,01/06/2015,112
Bath & North East Somerset Council,80470214,LM6,Nursing Care,P03,Wellbeing,CHERRY GARDEN PROPERTIES LTD,01/06/2015,112
Bath & North East Somerset Council,80470214,LM6,Nursing Care,P03,Wellbeing,CHERRY GARDEN PROPERTIES LTD,01/06/2015,112
Bath & North East Somerset Council,80470581,LM6,Nursing Care,P03,Wellbeing,CHERRY GARDEN PROPERTIES LTD,01/06/2015,564
Bath & North East Somerset Council,80470581,LM6,Nursing Care,P03,Wellbeing,CHERRY GARDEN PROPERTIES LTD,01/06/2015,564
Bath & North East Somerset Council,80470581,LM6,Nursing Care,P03,Wellbeing,CHERRY GARDEN PROPERTIES LTD,01/06/2015,564
Bath & North East Somerset Council,80470581,LM6,Nursing Care,P03,Wellbeing,CHERRY GARDEN PROPERTIES LTD,01/06/2015,564
Bath & North East Somerset Council,80470581,LM6,Nursing Care,P03,Wellbeing,CHERRY GARDEN PROPERTIES LTD,01/06/2015,564
Bath & North East Somerset Council,80470581,LM6,Nursing Care,P03,Wellbeing,CHERRY GARDEN PROPERTIES LTD,01/06/2015,564
Bath & North East Somerset Council,80470581,LM6,Nursing Care,P03,Wellbeing,CHERRY GARDEN PROPERTIES LTD,01/06/2015,564
Bath & North East Somerset Council,80470581,LM6,Nursing Care,P03,Wellbeing,CHERRY GARDEN PROPERTIES LTD,01/06/2015,564
Bath & North East Somerset Council,80470581,LM6,Nursing Care,P03,Wellbeing,CHERRY GARDEN PROPERTIES LTD,01/06/2015,564
Bath & North East Somerset Council,80470581,LM6,Nursing Care,P03,Wellbeing,CHERRY GARDEN PROPERTIES LTD,01/06/2015,564
Bath & North East Somerset Council,80470581,LM6,Nursing Care,P03,Wellbeing,CHERRY GARDEN PROPERTIES LTD,01/06/2015,564
Bath & North East Somerset Council,80470581,LM6,Nursing Care,P03,Wellbeing,CHERRY GARDEN PROPERTIES LTD,01/06/2015,564
Bath & North East Somerset Council,80470581,LM6,Nursing Care,P03,Wellbeing,CHERRY GARDEN PROPERTIES LTD,01/06/2015,564
Bath & North East Somerset Council,80470581,LM6,Nursing Care,P03,Wellbeing,CHERRY GARDEN PROPERTIES LTD,01/06/2015,564
Bath & North East Somerset Council,80470581,LM6,Nursing Care,P03,Wellbeing,CHERRY GARDEN PROPERTIES LTD,01/06/2015,564
Bath & North East Somerset Council,80470581,LM6,Nursing Care,P03,Wellbeing,CHERRY GARDEN PROPERTIES LTD,01/06/2015,564
Bath & North East Somerset Council,80470581,LM6,Nursing Care,P03,Wellbeing,CHERRY GARDEN PROPERTIES LTD,01/06/2015,564
Bath & North East Somerset Council,80470581,LM6,Nursing Care,P03,Wellbeing,CHERRY GARDEN PROPERTIES LTD,01/06/2015,564
Bath & North East Somerset Council,80470581,LM6,Nursing Care,P03,Wellbeing,CHERRY GARDEN PROPERTIES LTD,01/06/2015,564
Bath & North East Somerset Council,80470581,LM6,Nursing Care,P03,Wellbeing,CHERRY GARDEN PROPERTIES LTD,01/06/2015,564
Bath & North East Somerset Council,80470581,LM6,Nursing Care,P03,Wellbeing,CHERRY GARDEN PROPERTIES LTD,01/06/2015,564
Bath & North East Somerset Council,80470581,LM6,Nursing Care,P03,Wellbeing,CHERRY GARDEN PROPERTIES LTD,01/06/2015,564
Bath & North East Somerset Council,80470118,LM6,Nursing Care,P03,Wellbeing,CHERRY GARDEN PROPERTIES LTD,01/06/2015,650
Bath & North East Somerset Council,80470118,LM6,Nursing Care,P03,Wellbeing,CHERRY GARDEN PROPERTIES LTD,01/06/2015,650
Bath & North East Somerset Council,80470581,LM6,Nursing Care,P03,Wellbeing,CHERRY GARDEN PROPERTIES LTD,01/06/2015,800
Bath & North East Somerset Council,80470581,LM6,Nursing Care,P03,Wellbeing,CHERRY GARDEN PROPERTIES LTD,01/06/2015,800
Bath & North East Somerset Council,80470623,LM3,Residential Care,P03,Wellbeing,CHESCOMBE TRUST,01/06/2015,907.91
Bath & North East Somerset Council,80470623,LM3,Residential Care,P03,Wellbeing,CHESCOMBE TRUST,01/06/2015,907.91
Bath & North East Somerset Council,80470520,LM3,Residential Care,P03,Wellbeing,CHOICE LTD,01/06/2015,2074.51
Bath & North East Somerset Council,80470520,LM3,Residential Care,P03,Wellbeing,CHOICE LTD,01/06/2015,2074.51
Bath & North East Somerset Council,80470603,LM6,Nursing Care,P03,Wellbeing,CHOLWELL CARE (NAILSEA) LTD,01/06/2015,800
Bath & North East Somerset Council,80470603,LM6,Nursing Care,P03,Wellbeing,CHOLWELL CARE (NAILSEA) LTD,01/06/2015,800
Bath & North East Somerset Council,80470603,LM6,Nursing Care,P03,Wellbeing,CHOLWELL CARE (NAILSEA) LTD,01/06/2015,800
Bath & North East Somerset Council,80470603,LM6,Nursing Care,P03,Wellbeing,CHOLWELL CARE (NAILSEA) LTD,01/06/2015,800
Bath & North East Somerset Council,80470197,LM6,Nursing Care,P03,Wellbeing,CHOLWELL HOUSE NURSING HOME,01/06/2015,112
Bath & North East Somerset Council,80470197,LM6,Nursing Care,P03,Wellbeing,CHOLWELL HOUSE NURSING HOME,01/06/2015,112
Bath & North East Somerset Council,80470197,LM6,Nursing Care,P03,Wellbeing,CHOLWELL HOUSE NURSING HOME,01/06/2015,112
Bath & North East Somerset Council,80470197,LM6,Nursing Care,P03,Wellbeing,CHOLWELL HOUSE NURSING HOME,01/06/2015,112
Bath & North East Somerset Council,80470197,LM6,Nursing Care,P03,Wellbeing,CHOLWELL HOUSE NURSING HOME,01/06/2015,112
Bath & North East Somerset Council,80470197,LM6,Nursing Care,P03,Wellbeing,CHOLWELL HOUSE NURSING HOME,01/06/2015,112
Bath & North East Somerset Council,80470197,LM6,Nursing Care,P03,Wellbeing,CHOLWELL HOUSE NURSING HOME,01/06/2015,112
Bath & North East Somerset Council,80470197,LM6,Nursing Care,P03,Wellbeing,CHOLWELL HOUSE NURSING HOME,01/06/2015,112
Bath & North East Somerset Council,80470197,LM6,Nursing Care,P03,Wellbeing,CHOLWELL HOUSE NURSING HOME,01/06/2015,112
Bath & North East Somerset Council,80470197,LM6,Nursing Care,P03,Wellbeing,CHOLWELL HOUSE NURSING HOME,01/06/2015,112
Bath & North East Somerset Council,80470197,LM6,Nursing Care,P03,Wellbeing,CHOLWELL HOUSE NURSING HOME,01/06/2015,112
Bath & North East Somerset Council,80470197,LM6,Nursing Care,P03,Wellbeing,CHOLWELL HOUSE NURSING HOME,01/06/2015,112
Bath & North East Somerset Council,80470197,LM6,Nursing Care,P03,Wellbeing,CHOLWELL HOUSE NURSING HOME,01/06/2015,112
Bath & North East Somerset Council,80470197,LM6,Nursing Care,P03,Wellbeing,CHOLWELL HOUSE NURSING HOME,01/06/2015,112
Bath & North East Somerset Council,80470197,LM6,Nursing Care,P03,Wellbeing,CHOLWELL HOUSE NURSING HOME,01/06/2015,112
Bath & North East Somerset Council,80470197,LM6,Nursing Care,P03,Wellbeing,CHOLWELL HOUSE NURSING HOME,01/06/2015,112
Bath & North East Somerset Council,80470197,LM6,Nursing Care,P03,Wellbeing,CHOLWELL HOUSE NURSING HOME,01/06/2015,112
Bath & North East Somerset Council,80470197,LM6,Nursing Care,P03,Wellbeing,CHOLWELL HOUSE NURSING HOME,01/06/2015,112
Bath & North East Somerset Council,80470197,LM6,Nursing Care,P03,Wellbeing,CHOLWELL HOUSE NURSING HOME,01/06/2015,112
Bath & North East Somerset Council,80470197,LM6,Nursing Care,P03,Wellbeing,CHOLWELL HOUSE NURSING HOME,01/06/2015,112
Bath & North East Somerset Council,80470197,LM6,Nursing Care,P03,Wellbeing,CHOLWELL HOUSE NURSING HOME,01/06/2015,112
Bath & North East Somerset Council,80470197,LM6,Nursing Care,P03,Wellbeing,CHOLWELL HOUSE NURSING HOME,01/06/2015,112
Bath & North East Somerset Council,80470522,LM6,Nursing Care,P03,Wellbeing,CHOLWELL HOUSE NURSING HOME,01/06/2015,195
Bath & North East Somerset Council,80470522,LM6,Nursing Care,P03,Wellbeing,CHOLWELL HOUSE NURSING HOME,01/06/2015,195
Bath & North East Somerset Council,80470522,LM6,Nursing Care,P03,Wellbeing,CHOLWELL HOUSE NURSING HOME,01/06/2015,195
Bath & North East Somerset Council,80470522,LM6,Nursing Care,P03,Wellbeing,CHOLWELL HOUSE NURSING HOME,01/06/2015,195
Bath & North East Somerset Council,80470522,LM6,Nursing Care,P03,Wellbeing,CHOLWELL HOUSE NURSING HOME,01/06/2015,195
Bath & North East Somerset Council,80470522,LM6,Nursing Care,P03,Wellbeing,CHOLWELL HOUSE NURSING HOME,01/06/2015,195
Bath & North East Somerset Council,80470089,LM6,Nursing Care,P03,Wellbeing,CHOLWELL HOUSE NURSING HOME,01/06/2015,310.71
Bath & North East Somerset Council,80470089,LM6,Nursing Care,P03,Wellbeing,CHOLWELL HOUSE NURSING HOME,01/06/2015,650
Bath & North East Somerset Council,80470089,LM6,Nursing Care,P03,Wellbeing,CHOLWELL HOUSE NURSING HOME,01/06/2015,650
Bath & North East Somerset Council,80470089,LM6,Nursing Care,P03,Wellbeing,CHOLWELL HOUSE NURSING HOME,01/06/2015,675
Bath & North East Somerset Council,80470089,LM6,Nursing Care,P03,Wellbeing,CHOLWELL HOUSE NURSING HOME,01/06/2015,675
Bath & North East Somerset Council,80470522,LM6,Nursing Care,P03,Wellbeing,CHOLWELL HOUSE NURSING HOME,01/06/2015,675
Bath & North East Somerset Council,80470522,LM6,Nursing Care,P03,Wellbeing,CHOLWELL HOUSE NURSING HOME,01/06/2015,675
Bath & North East Somerset Council,80470089,LM6,Nursing Care,P03,Wellbeing,CHOLWELL HOUSE NURSING HOME,01/06/2015,711.9
Bath & North East Somerset Council,80470089,LM6,Nursing Care,P03,Wellbeing,CHOLWELL HOUSE NURSING HOME,01/06/2015,711.9
Bath & North East Somerset Council,80470089,LM6,Nursing Care,P03,Wellbeing,CHOLWELL HOUSE NURSING HOME,01/06/2015,725
Bath & North East Somerset Council,80470089,LM6,Nursing Care,P03,Wellbeing,CHOLWELL HOUSE NURSING HOME,01/06/2015,725
Bath & North East Somerset Council,80470522,LM6,Nursing Care,P03,Wellbeing,CHOLWELL HOUSE NURSING HOME,01/06/2015,725
Bath & North East Somerset Council,80470522,LM6,Nursing Care,P03,Wellbeing,CHOLWELL HOUSE NURSING HOME,01/06/2015,725
Bath & North East Somerset Council,80470522,LM6,Nursing Care,P03,Wellbeing,CHOLWELL HOUSE NURSING HOME,01/06/2015,725
Bath & North East Somerset Council,80470522,LM6,Nursing Care,P03,Wellbeing,CHOLWELL HOUSE NURSING HOME,01/06/2015,725
Bath & North East Somerset Council,80470540,LM3,Residential Care,P03,Wellbeing,CLEEVE LODGE CARE LTD,01/06/2015,443
Bath & North East Somerset Council,80470540,LM3,Residential Care,P03,Wellbeing,CLEEVE LODGE CARE LTD,01/06/2015,443
Bath & North East Somerset Council,80470642,LM3,Residential Care,P03,Wellbeing,COCKLEBURY FARMHOUSE,01/06/2015,985.3
Bath & North East Somerset Council,80470642,LM3,Residential Care,P03,Wellbeing,COCKLEBURY FARMHOUSE,01/06/2015,985.3
Bath & North East Somerset Council,80470104,LM6,Nursing Care,P03,Wellbeing,COMMUNITY OF ST ANTONY & ST ELIAS & REV FR BGPR &,01/06/2015,1665
Bath & North East Somerset Council,80470104,LM6,Nursing Care,P03,Wellbeing,COMMUNITY OF ST ANTONY & ST ELIAS & REV FR BGPR &,01/06/2015,1665
Bath & North East Somerset Council,80470523,LL3,Supported Living,P03,Wellbeing,COMMUNITY OF ST ANTONY & ST ELIAS & REV FR BGPR &,01/06/2015,1780
Bath & North East Somerset Council,80470523,LL3,Supported Living,P03,Wellbeing,COMMUNITY OF ST ANTONY & ST ELIAS & REV FR BGPR &,01/06/2015,1780
Bath & North East Somerset Council,80470567,LM3,Residential Care,P03,Wellbeing,COMMUNITY THERAPEUTIC SERVICES LTD,01/06/2015,2637.83
Bath & North East Somerset Council,80470567,LM3,Residential Care,P03,Wellbeing,COMMUNITY THERAPEUTIC SERVICES LTD,01/06/2015,2637.83
Bath & North East Somerset Council,80470548,LM3,Residential Care,P03,Wellbeing,CONSENSUS SUPPORT SERVICES LTD,01/06/2015,1917.74
Bath & North East Somerset Council,80470548,LM3,Residential Care,P03,Wellbeing,CONSENSUS SUPPORT SERVICES LTD,01/06/2015,1917.74
Bath & North East Somerset Council,80470548,LM3,Residential Care,P03,Wellbeing,CONSENSUS SUPPORT SERVICES LTD,01/06/2015,1956.88
Bath & North East Somerset Council,80470548,LM3,Residential Care,P03,Wellbeing,CONSENSUS SUPPORT SERVICES LTD,01/06/2015,1956.88
Bath & North East Somerset Council,80470548,LM3,Residential Care,P03,Wellbeing,CONSENSUS SUPPORT SERVICES LTD,01/06/2015,1996.01
Bath & North East Somerset Council,80470548,LM3,Residential Care,P03,Wellbeing,CONSENSUS SUPPORT SERVICES LTD,01/06/2015,1996.01
Bath & North East Somerset Council,80470548,LM3,Residential Care,P03,Wellbeing,CONSENSUS SUPPORT SERVICES LTD,01/06/2015,1996.01
Bath & North East Somerset Council,80470548,LM3,Residential Care,P03,Wellbeing,CONSENSUS SUPPORT SERVICES LTD,01/06/2015,1996.01
Bath & North East Somerset Council,80470548,LM3,Residential Care,P03,Wellbeing,CONSENSUS SUPPORT SERVICES LTD,01/06/2015,3921.83
Bath & North East Somerset Council,80470548,LM3,Residential Care,P03,Wellbeing,CONSENSUS SUPPORT SERVICES LTD,01/06/2015,3921.83
Bath & North East Somerset Council,80470439,LL8,Individualised Budget,P03,Wellbeing,REDACTED,01/06/2015,360
Bath & North East Somerset Council,80470439,LL8,Individualised Budget,P03,Wellbeing,REDACTED,01/06/2015,360
Bath & North East Somerset Council,80470644,LM3,Residential Care,P03,Wellbeing,CORNERSTONES UK LTD,01/06/2015,737.11
Bath & North East Somerset Council,80470644,LM3,Residential Care,P03,Wellbeing,CORNERSTONES UK LTD,01/06/2015,737.11
Bath & North East Somerset Council,80470494,LM3,Residential Care,P03,Wellbeing,CORNERSTONES UK LTD,01/06/2015,1037.8
Bath & North East Somerset Council,80470494,LM3,Residential Care,P03,Wellbeing,CORNERSTONES UK LTD,01/06/2015,1037.8
Bath & North East Somerset Council,80470508,LM3,Residential Care,P03,Wellbeing,CRAEGMOOR FACILITIES - ALEXANDRA HOUSE,01/06/2015,1666.78
Bath & North East Somerset Council,80470508,LM3,Residential Care,P03,Wellbeing,CRAEGMOOR FACILITIES - ALEXANDRA HOUSE,01/06/2015,1666.78
Bath & North East Somerset Council,80470539,LM3,Residential Care,P03,Wellbeing,CRAEGMOOR FACILITIES - CHERRYWOOD HOU,01/06/2015,783.47
Bath & North East Somerset Council,80470539,LM3,Residential Care,P03,Wellbeing,CRAEGMOOR FACILITIES - CHERRYWOOD HOU,01/06/2015,783.47
Bath & North East Somerset Council,80470511,LM3,Residential Care,P03,Wellbeing,CRAEGMOOR FACILITIES - ELM TREE HOUSE,01/06/2015,974.68
Bath & North East Somerset Council,80470511,LM3,Residential Care,P03,Wellbeing,CRAEGMOOR FACILITIES - ELM TREE HOUSE,01/06/2015,974.68
Bath & North East Somerset Council,80470511,LM3,Residential Care,P03,Wellbeing,CRAEGMOOR FACILITIES - ELM TREE HOUSE,01/06/2015,1121.04
Bath & North East Somerset Council,80470511,LM3,Residential Care,P03,Wellbeing,CRAEGMOOR FACILITIES - ELM TREE HOUSE,01/06/2015,1121.04
Bath & North East Somerset Council,80470643,LM3,Residential Care,P03,Wellbeing,CRAEGMOOR FACILITIES - OLD VICARAGE,01/06/2015,1217.39
Bath & North East Somerset Council,80470643,LM3,Residential Care,P03,Wellbeing,CRAEGMOOR FACILITIES - OLD VICARAGE,01/06/2015,1217.39
Bath & North East Somerset Council,80470125,LM6,Nursing Care,P03,Wellbeing,CRAEGMOOR HOSPITAL LTD,01/06/2015,2816.24
Bath & North East Somerset Council,80470125,LM6,Nursing Care,P03,Wellbeing,CRAEGMOOR HOSPITAL LTD,01/06/2015,2816.24
Bath & North East Somerset Council,80470218,LM6,Nursing Care,P03,Wellbeing,CRANHILL NURSING HOME LTD,01/06/2015,112
Bath & North East Somerset Council,80470218,LM6,Nursing Care,P03,Wellbeing,CRANHILL NURSING HOME LTD,01/06/2015,112
Bath & North East Somerset Council,80470218,LM6,Nursing Care,P03,Wellbeing,CRANHILL NURSING HOME LTD,01/06/2015,112
Bath & North East Somerset Council,80470218,LM6,Nursing Care,P03,Wellbeing,CRANHILL NURSING HOME LTD,01/06/2015,112
Bath & North East Somerset Council,80470218,LM6,Nursing Care,P03,Wellbeing,CRANHILL NURSING HOME LTD,01/06/2015,112
Bath & North East Somerset Council,80470218,LM6,Nursing Care,P03,Wellbeing,CRANHILL NURSING HOME LTD,01/06/2015,112
Bath & North East Somerset Council,80470218,LM6,Nursing Care,P03,Wellbeing,CRANHILL NURSING HOME LTD,01/06/2015,112
Bath & North East Somerset Council,80470218,LM6,Nursing Care,P03,Wellbeing,CRANHILL NURSING HOME LTD,01/06/2015,112
Bath & North East Somerset Council,80470218,LM6,Nursing Care,P03,Wellbeing,CRANHILL NURSING HOME LTD,01/06/2015,112
Bath & North East Somerset Council,80470218,LM6,Nursing Care,P03,Wellbeing,CRANHILL NURSING HOME LTD,01/06/2015,112
Bath & North East Somerset Council,80470218,LM6,Nursing Care,P03,Wellbeing,CRANHILL NURSING HOME LTD,01/06/2015,112
Bath & North East Somerset Council,80470218,LM6,Nursing Care,P03,Wellbeing,CRANHILL NURSING HOME LTD,01/06/2015,112
Bath & North East Somerset Council,80470218,LM6,Nursing Care,P03,Wellbeing,CRANHILL NURSING HOME LTD,01/06/2015,112
Bath & North East Somerset Council,80470218,LM6,Nursing Care,P03,Wellbeing,CRANHILL NURSING HOME LTD,01/06/2015,112
Bath & North East Somerset Council,80470218,LM6,Nursing Care,P03,Wellbeing,CRANHILL NURSING HOME LTD,01/06/2015,112
Bath & North East Somerset Council,80470218,LM6,Nursing Care,P03,Wellbeing,CRANHILL NURSING HOME LTD,01/06/2015,112
Bath & North East Somerset Council,80470218,LM6,Nursing Care,P03,Wellbeing,CRANHILL NURSING HOME LTD,01/06/2015,112
Bath & North East Somerset Council,80470218,LM6,Nursing Care,P03,Wellbeing,CRANHILL NURSING HOME LTD,01/06/2015,112
Bath & North East Somerset Council,80470218,LM6,Nursing Care,P03,Wellbeing,CRANHILL NURSING HOME LTD,01/06/2015,112
Bath & North East Somerset Council,80470218,LM6,Nursing Care,P03,Wellbeing,CRANHILL NURSING HOME LTD,01/06/2015,112
Bath & North East Somerset Council,80470218,LM6,Nursing Care,P03,Wellbeing,CRANHILL NURSING HOME LTD,01/06/2015,112
Bath & North East Somerset Council,80470218,LM6,Nursing Care,P03,Wellbeing,CRANHILL NURSING HOME LTD,01/06/2015,112
Bath & North East Somerset Council,80470218,LM6,Nursing Care,P03,Wellbeing,CRANHILL NURSING HOME LTD,01/06/2015,112
Bath & North East Somerset Council,80470218,LM6,Nursing Care,P03,Wellbeing,CRANHILL NURSING HOME LTD,01/06/2015,112
Bath & North East Somerset Council,80470218,LM6,Nursing Care,P03,Wellbeing,CRANHILL NURSING HOME LTD,01/06/2015,112
Bath & North East Somerset Council,80470218,LM6,Nursing Care,P03,Wellbeing,CRANHILL NURSING HOME LTD,01/06/2015,112
Bath & North East Somerset Council,80470218,LM6,Nursing Care,P03,Wellbeing,CRANHILL NURSING HOME LTD,01/06/2015,112
Bath & North East Somerset Council,80470218,LM6,Nursing Care,P03,Wellbeing,CRANHILL NURSING HOME LTD,01/06/2015,112
Bath & North East Somerset Council,80470218,LM6,Nursing Care,P03,Wellbeing,CRANHILL NURSING HOME LTD,01/06/2015,112
Bath & North East Somerset Council,80470218,LM6,Nursing Care,P03,Wellbeing,CRANHILL NURSING HOME LTD,01/06/2015,112
Bath & North East Somerset Council,80470218,LM6,Nursing Care,P03,Wellbeing,CRANHILL NURSING HOME LTD,01/06/2015,112
Bath & North East Somerset Council,80470218,LM6,Nursing Care,P03,Wellbeing,CRANHILL NURSING HOME LTD,01/06/2015,112
Bath & North East Somerset Council,80470131,LM6,Nursing Care,P03,Wellbeing,CRANHILL NURSING HOME LTD,01/06/2015,750
Bath & North East Somerset Council,80470131,LM6,Nursing Care,P03,Wellbeing,CRANHILL NURSING HOME LTD,01/06/2015,750
Bath & North East Somerset Council,80470611,LM6,Nursing Care,P03,Wellbeing,CRANHILL NURSING HOME LTD,01/06/2015,750
Bath & North East Somerset Council,80470611,LM6,Nursing Care,P03,Wellbeing,CRANHILL NURSING HOME LTD,01/06/2015,750
Bath & North East Somerset Council,80470131,LM6,Nursing Care,P03,Wellbeing,CRANHILL NURSING HOME LTD,01/06/2015,850
Bath & North East Somerset Council,80470131,LM6,Nursing Care,P03,Wellbeing,CRANHILL NURSING HOME LTD,01/06/2015,850
Bath & North East Somerset Council,80470131,LM6,Nursing Care,P03,Wellbeing,CRANHILL NURSING HOME LTD,01/06/2015,875
Bath & North East Somerset Council,80470131,LM6,Nursing Care,P03,Wellbeing,CRANHILL NURSING HOME LTD,01/06/2015,875
Bath & North East Somerset Council,80470575,LM3,Residential Care,P03,Wellbeing,CREAM HOLDING (TAUNTON) LTD,01/06/2015,2483
Bath & North East Somerset Council,80470575,LM3,Residential Care,P03,Wellbeing,CREAM HOLDING (TAUNTON) LTD,01/06/2015,2483
Bath & North East Somerset Council,80470530,LM3,Residential Care,P03,Wellbeing,CREAM I LTD,01/06/2015,1682
Bath & North East Somerset Council,80470530,LM3,Residential Care,P03,Wellbeing,CREAM I LTD,01/06/2015,1682
Bath & North East Somerset Council,80470530,LM3,Residential Care,P03,Wellbeing,CREAM I LTD,01/06/2015,1722.79
Bath & North East Somerset Council,80470530,LM3,Residential Care,P03,Wellbeing,CREAM I LTD,01/06/2015,1722.79
Bath & North East Somerset Council,80470221,LM6,Nursing Care,P03,Wellbeing,CULVERHAY NURSING HOME,01/06/2015,47.52
Bath & North East Somerset Council,80470221,LM6,Nursing Care,P03,Wellbeing,CULVERHAY NURSING HOME,01/06/2015,48
Bath & North East Somerset Council,80470221,LM6,Nursing Care,P03,Wellbeing,CULVERHAY NURSING HOME,01/06/2015,112
Bath & North East Somerset Council,80470221,LM6,Nursing Care,P03,Wellbeing,CULVERHAY NURSING HOME,01/06/2015,112
Bath & North East Somerset Council,80470221,LM6,Nursing Care,P03,Wellbeing,CULVERHAY NURSING HOME,01/06/2015,112
Bath & North East Somerset Council,80470221,LM6,Nursing Care,P03,Wellbeing,CULVERHAY NURSING HOME,01/06/2015,112
Bath & North East Somerset Council,80470221,LM6,Nursing Care,P03,Wellbeing,CULVERHAY NURSING HOME,01/06/2015,112
Bath & North East Somerset Council,80470221,LM6,Nursing Care,P03,Wellbeing,CULVERHAY NURSING HOME,01/06/2015,112
Bath & North East Somerset Council,80470221,LM6,Nursing Care,P03,Wellbeing,CULVERHAY NURSING HOME,01/06/2015,112
Bath & North East Somerset Council,80470221,LM6,Nursing Care,P03,Wellbeing,CULVERHAY NURSING HOME,01/06/2015,112
Bath & North East Somerset Council,80470221,LM6,Nursing Care,P03,Wellbeing,CULVERHAY NURSING HOME,01/06/2015,112
Bath & North East Somerset Council,80470221,LM6,Nursing Care,P03,Wellbeing,CULVERHAY NURSING HOME,01/06/2015,112
Bath & North East Somerset Council,80470221,LM6,Nursing Care,P03,Wellbeing,CULVERHAY NURSING HOME,01/06/2015,112
Bath & North East Somerset Council,80470221,LM6,Nursing Care,P03,Wellbeing,CULVERHAY NURSING HOME,01/06/2015,112
Bath & North East Somerset Council,80470221,LM6,Nursing Care,P03,Wellbeing,CULVERHAY NURSING HOME,01/06/2015,112
Bath & North East Somerset Council,80470221,LM6,Nursing Care,P03,Wellbeing,CULVERHAY NURSING HOME,01/06/2015,112
Bath & North East Somerset Council,80470221,LM6,Nursing Care,P03,Wellbeing,CULVERHAY NURSING HOME,01/06/2015,112
Bath & North East Somerset Council,80470221,LM6,Nursing Care,P03,Wellbeing,CULVERHAY NURSING HOME,01/06/2015,112
Bath & North East Somerset Council,80470221,LM6,Nursing Care,P03,Wellbeing,CULVERHAY NURSING HOME,01/06/2015,112
Bath & North East Somerset Council,80470221,LM6,Nursing Care,P03,Wellbeing,CULVERHAY NURSING HOME,01/06/2015,112
Bath & North East Somerset Council,80470221,LM6,Nursing Care,P03,Wellbeing,CULVERHAY NURSING HOME,01/06/2015,112
Bath & North East Somerset Council,80470221,LM6,Nursing Care,P03,Wellbeing,CULVERHAY NURSING HOME,01/06/2015,112
Bath & North East Somerset Council,80470221,LM6,Nursing Care,P03,Wellbeing,CULVERHAY NURSING HOME,01/06/2015,112
Bath & North East Somerset Council,80470221,LM6,Nursing Care,P03,Wellbeing,CULVERHAY NURSING HOME,01/06/2015,112
Bath & North East Somerset Council,80470625,YF2,Fees & Charges,P03,Wellbeing,CULVERHAY NURSING HOME,01/06/2015,157.21
Bath & North East Somerset Council,80470625,YF2,Fees & Charges,P03,Wellbeing,CULVERHAY NURSING HOME,01/06/2015,157.21
Bath & North East Somerset Council,80470625,YF2,Fees & Charges,P03,Wellbeing,CULVERHAY NURSING HOME,01/06/2015,157.21
Bath & North East Somerset Council,80470625,YF2,Fees & Charges,P03,Wellbeing,CULVERHAY NURSING HOME,01/06/2015,157.21
Bath & North East Somerset Council,80470625,YF2,Fees & Charges,P03,Wellbeing,CULVERHAY NURSING HOME,01/06/2015,157.21
Bath & North East Somerset Council,80470625,YF2,Fees & Charges,P03,Wellbeing,CULVERHAY NURSING HOME,01/06/2015,157.21
Bath & North East Somerset Council,80470625,YF2,Fees & Charges,P03,Wellbeing,CULVERHAY NURSING HOME,01/06/2015,157.21
Bath & North East Somerset Council,80470082,LM6,Nursing Care,P03,Wellbeing,CULVERHAY NURSING HOME,01/06/2015,347.14
Bath & North East Somerset Council,80470082,LM6,Nursing Care,P03,Wellbeing,CULVERHAY NURSING HOME,01/06/2015,347.14
Bath & North East Somerset Council,80470082,LM6,Nursing Care,P03,Wellbeing,CULVERHAY NURSING HOME,01/06/2015,810
Bath & North East Somerset Council,80470082,LM6,Nursing Care,P03,Wellbeing,CULVERHAY NURSING HOME,01/06/2015,810
Bath & North East Somerset Council,80470082,LM6,Nursing Care,P03,Wellbeing,CULVERHAY NURSING HOME,01/06/2015,810
Bath & North East Somerset Council,80470082,LM6,Nursing Care,P03,Wellbeing,CULVERHAY NURSING HOME,01/06/2015,810
Bath & North East Somerset Council,80470082,LM6,Nursing Care,P03,Wellbeing,CULVERHAY NURSING HOME,01/06/2015,810
Bath & North East Somerset Council,80470082,LM6,Nursing Care,P03,Wellbeing,CULVERHAY NURSING HOME,01/06/2015,810
Bath & North East Somerset Council,80470082,LM6,Nursing Care,P03,Wellbeing,CULVERHAY NURSING HOME,01/06/2015,810
Bath & North East Somerset Council,80470082,LM6,Nursing Care,P03,Wellbeing,CULVERHAY NURSING HOME,01/06/2015,810
Bath & North East Somerset Council,80470082,LM6,Nursing Care,P03,Wellbeing,CULVERHAY NURSING HOME,01/06/2015,810
Bath & North East Somerset Council,80470082,LM6,Nursing Care,P03,Wellbeing,CULVERHAY NURSING HOME,01/06/2015,810
Bath & North East Somerset Council,80470082,LM6,Nursing Care,P03,Wellbeing,CULVERHAY NURSING HOME,01/06/2015,810
Bath & North East Somerset Council,80470082,LM6,Nursing Care,P03,Wellbeing,CULVERHAY NURSING HOME,01/06/2015,810
Bath & North East Somerset Council,80470082,LM6,Nursing Care,P03,Wellbeing,CULVERHAY NURSING HOME,01/06/2015,810
Bath & North East Somerset Council,80470082,LM6,Nursing Care,P03,Wellbeing,CULVERHAY NURSING HOME,01/06/2015,810
Bath & North East Somerset Council,80470082,LM6,Nursing Care,P03,Wellbeing,CULVERHAY NURSING HOME,01/06/2015,810
Bath & North East Somerset Council,80470082,LM6,Nursing Care,P03,Wellbeing,CULVERHAY NURSING HOME,01/06/2015,810
Bath & North East Somerset Council,80470082,LM6,Nursing Care,P03,Wellbeing,CULVERHAY NURSING HOME,01/06/2015,810
Bath & North East Somerset Council,80470082,LM6,Nursing Care,P03,Wellbeing,CULVERHAY NURSING HOME,01/06/2015,810
Bath & North East Somerset Council,80470082,LM6,Nursing Care,P03,Wellbeing,CULVERHAY NURSING HOME,01/06/2015,810
Bath & North East Somerset Council,80470082,LM6,Nursing Care,P03,Wellbeing,CULVERHAY NURSING HOME,01/06/2015,810
Bath & North East Somerset Council,80470082,LM6,Nursing Care,P03,Wellbeing,CULVERHAY NURSING HOME,01/06/2015,810
Bath & North East Somerset Council,80470082,LM6,Nursing Care,P03,Wellbeing,CULVERHAY NURSING HOME,01/06/2015,810
Bath & North East Somerset Council,80470625,LM6,Nursing Care,P03,Wellbeing,CULVERHAY NURSING HOME,01/06/2015,810
Bath & North East Somerset Council,80470625,LM6,Nursing Care,P03,Wellbeing,CULVERHAY NURSING HOME,01/06/2015,810
Bath & North East Somerset Council,80470625,LM6,Nursing Care,P03,Wellbeing,CULVERHAY NURSING HOME,01/06/2015,810
Bath & North East Somerset Council,80470625,LM6,Nursing Care,P03,Wellbeing,CULVERHAY NURSING HOME,01/06/2015,810
Bath & North East Somerset Council,80470625,LM6,Nursing Care,P03,Wellbeing,CULVERHAY NURSING HOME,01/06/2015,810
Bath & North East Somerset Council,80470625,LM6,Nursing Care,P03,Wellbeing,CULVERHAY NURSING HOME,01/06/2015,810
Bath & North East Somerset Council,80470625,LM6,Nursing Care,P03,Wellbeing,CULVERHAY NURSING HOME,01/06/2015,810
Bath & North East Somerset Council,80470625,LM6,Nursing Care,P03,Wellbeing,CULVERHAY NURSING HOME,01/06/2015,810
Bath & North East Somerset Council,80470625,LM6,Nursing Care,P03,Wellbeing,CULVERHAY NURSING HOME,01/06/2015,810
Bath & North East Somerset Council,80470625,LM6,Nursing Care,P03,Wellbeing,CULVERHAY NURSING HOME,01/06/2015,810
Bath & North East Somerset Council,80470625,LM6,Nursing Care,P03,Wellbeing,CULVERHAY NURSING HOME,01/06/2015,810
Bath & North East Somerset Council,80470625,LM6,Nursing Care,P03,Wellbeing,CULVERHAY NURSING HOME,01/06/2015,810
Bath & North East Somerset Council,80470625,LM6,Nursing Care,P03,Wellbeing,CULVERHAY NURSING HOME,01/06/2015,810
Bath & North East Somerset Council,80470625,LM6,Nursing Care,P03,Wellbeing,CULVERHAY NURSING HOME,01/06/2015,810
Bath & North East Somerset Council,80470625,LM6,Nursing Care,P03,Wellbeing,CULVERHAY NURSING HOME,01/06/2015,810
Bath & North East Somerset Council,80470625,LM6,Nursing Care,P03,Wellbeing,CULVERHAY NURSING HOME,01/06/2015,810
Bath & North East Somerset Council,80470625,LM6,Nursing Care,P03,Wellbeing,CULVERHAY NURSING HOME,01/06/2015,810
Bath & North East Somerset Council,80470625,LM6,Nursing Care,P03,Wellbeing,CULVERHAY NURSING HOME,01/06/2015,810
Bath & North East Somerset Council,80470625,LM6,Nursing Care,P03,Wellbeing,CULVERHAY NURSING HOME,01/06/2015,810
Bath & North East Somerset Council,80470625,LM6,Nursing Care,P03,Wellbeing,CULVERHAY NURSING HOME,01/06/2015,810
Bath & North East Somerset Council,80470625,LM6,Nursing Care,P03,Wellbeing,CULVERHAY NURSING HOME,01/06/2015,810
Bath & North East Somerset Council,80470625,LM6,Nursing Care,P03,Wellbeing,CULVERHAY NURSING HOME,01/06/2015,810
Bath & North East Somerset Council,80470625,LM6,Nursing Care,P03,Wellbeing,CULVERHAY NURSING HOME,01/06/2015,810
Bath & North East Somerset Council,80470625,LM6,Nursing Care,P03,Wellbeing,CULVERHAY NURSING HOME,01/06/2015,810
Bath & North East Somerset Council,80470625,LM6,Nursing Care,P03,Wellbeing,CULVERHAY NURSING HOME,01/06/2015,810
Bath & North East Somerset Council,80470625,LM6,Nursing Care,P03,Wellbeing,CULVERHAY NURSING HOME,01/06/2015,810
Bath & North East Somerset Council,80470625,LM6,Nursing Care,P03,Wellbeing,CULVERHAY NURSING HOME,01/06/2015,810
Bath & North East Somerset Council,80470625,LM6,Nursing Care,P03,Wellbeing,CULVERHAY NURSING HOME,01/06/2015,810
Bath & North East Somerset Council,80470625,LM6,Nursing Care,P03,Wellbeing,CULVERHAY NURSING HOME,01/06/2015,810
Bath & North East Somerset Council,80470625,LM6,Nursing Care,P03,Wellbeing,CULVERHAY NURSING HOME,01/06/2015,810
Bath & North East Somerset Council,80470625,LM6,Nursing Care,P03,Wellbeing,CULVERHAY NURSING HOME,01/06/2015,810
Bath & North East Somerset Council,80470625,LM6,Nursing Care,P03,Wellbeing,CULVERHAY NURSING HOME,01/06/2015,810
Bath & North East Somerset Council,80470625,LM6,Nursing Care,P03,Wellbeing,CULVERHAY NURSING HOME,01/06/2015,810
Bath & North East Somerset Council,80470625,LM6,Nursing Care,P03,Wellbeing,CULVERHAY NURSING HOME,01/06/2015,810
Bath & North East Somerset Council,80470625,LM6,Nursing Care,P03,Wellbeing,CULVERHAY NURSING HOME,01/06/2015,810
Bath & North East Somerset Council,80470625,LM6,Nursing Care,P03,Wellbeing,CULVERHAY NURSING HOME,01/06/2015,810
Bath & North East Somerset Council,80470625,LM6,Nursing Care,P03,Wellbeing,CULVERHAY NURSING HOME,01/06/2015,810
Bath & North East Somerset Council,80470625,LM6,Nursing Care,P03,Wellbeing,CULVERHAY NURSING HOME,01/06/2015,810
Bath & North East Somerset Council,80470082,LM6,Nursing Care,P03,Wellbeing,CULVERHAY NURSING HOME,01/06/2015,910
Bath & North East Somerset Council,80470082,LM6,Nursing Care,P03,Wellbeing,CULVERHAY NURSING HOME,01/06/2015,910
Bath & North East Somerset Council,80470625,LM6,Nursing Care,P03,Wellbeing,CULVERHAY NURSING HOME,01/06/2015,910
Bath & North East Somerset Council,80470625,LM6,Nursing Care,P03,Wellbeing,CULVERHAY NURSING HOME,01/06/2015,910
Bath & North East Somerset Council,80470082,LM6,Nursing Care,P03,Wellbeing,CULVERHAY NURSING HOME,01/06/2015,935
Bath & North East Somerset Council,80470082,LM6,Nursing Care,P03,Wellbeing,CULVERHAY NURSING HOME,01/06/2015,935
Bath & North East Somerset Council,80470625,LM6,Nursing Care,P03,Wellbeing,CULVERHAY NURSING HOME,01/06/2015,935
Bath & North East Somerset Council,80470625,LM6,Nursing Care,P03,Wellbeing,CULVERHAY NURSING HOME,01/06/2015,935
Bath & North East Somerset Council,80470625,LM6,Nursing Care,P03,Wellbeing,CULVERHAY NURSING HOME,01/06/2015,3042
Bath & North East Somerset Council,80470625,LM6,Nursing Care,P03,Wellbeing,CULVERHAY NURSING HOME,01/06/2015,3042
Bath & North East Somerset Council,80470126,LM6,Nursing Care,P03,Wellbeing,CYGNET HEALTH CARE LTD,01/06/2015,2525
Bath & North East Somerset Council,80470126,LM6,Nursing Care,P03,Wellbeing,CYGNET HEALTH CARE LTD,01/06/2015,2525
Bath & North East Somerset Council,80470609,LM3,Residential Care,P03,Wellbeing,D & C AUTISTIC COMM TRUST,01/06/2015,2162.56
Bath & North East Somerset Council,80470609,LM3,Residential Care,P03,Wellbeing,D & C AUTISTIC COMM TRUST,01/06/2015,2162.56
Bath & North East Somerset Council,80470298,LL8,Individualised Budget,P03,Wellbeing,REDACTED,01/06/2015,1487.45
Bath & North East Somerset Council,80470298,LL8,Individualised Budget,P03,Wellbeing,REDACTED,01/06/2015,1487.45
Bath & North East Somerset Council,80470585,LM3,Residential Care,P03,Wellbeing,DAVID NERY LTD,01/06/2015,443
Bath & North East Somerset Council,80470585,LM3,Residential Care,P03,Wellbeing,DAVID NERY LTD,01/06/2015,443
Bath & North East Somerset Council,80470585,LM3,Residential Care,P03,Wellbeing,DAVID NERY LTD,01/06/2015,443
Bath & North East Somerset Council,80470585,LM3,Residential Care,P03,Wellbeing,DAVID NERY LTD,01/06/2015,443
Bath & North East Somerset Council,80470338,LL8,Individualised Budget,P03,Wellbeing,REDACTED,01/06/2015,1419.81
Bath & North East Somerset Council,80470338,LL8,Individualised Budget,P03,Wellbeing,REDACTED,01/06/2015,1419.81
Bath & North East Somerset Council,80470565,LM6,Nursing Care,P03,Wellbeing,DELPHINE HOME CARE,01/06/2015,274.29
Bath & North East Somerset Council,80470565,LM6,Nursing Care,P03,Wellbeing,DELPHINE HOME CARE,01/06/2015,624.4
Bath & North East Somerset Council,80470565,LM6,Nursing Care,P03,Wellbeing,DELPHINE HOME CARE,01/06/2015,624.4
Bath & North East Somerset Council,80470390,LL8,Individualised Budget,P03,Wellbeing,REDACTED,01/06/2015,302.5
Bath & North East Somerset Council,80470390,LL8,Individualised Budget,P03,Wellbeing,REDACTED,01/06/2015,302.5
Bath & North East Somerset Council,80470413,LL8,Individualised Budget,P03,Wellbeing,DEVELOPING HEALTH AND INDEPENDENCE,01/06/2015,0.49
Bath & North East Somerset Council,80470413,LL8,Individualised Budget,P03,Wellbeing,DEVELOPING HEALTH AND INDEPENDENCE,01/06/2015,0.57
Bath & North East Somerset Council,80470413,LL8,Individualised Budget,P03,Wellbeing,DEVELOPING HEALTH AND INDEPENDENCE,01/06/2015,0.57
Bath & North East Somerset Council,80470413,LL8,Individualised Budget,P03,Wellbeing,DEVELOPING HEALTH AND INDEPENDENCE,01/06/2015,0.57
Bath & North East Somerset Council,80470413,LL8,Individualised Budget,P03,Wellbeing,DEVELOPING HEALTH AND INDEPENDENCE,01/06/2015,0.57
Bath & North East Somerset Council,80470413,LL8,Individualised Budget,P03,Wellbeing,DEVELOPING HEALTH AND INDEPENDENCE,01/06/2015,0.57
Bath & North East Somerset Council,80470413,LL8,Individualised Budget,P03,Wellbeing,DEVELOPING HEALTH AND INDEPENDENCE,01/06/2015,0.57
Bath & North East Somerset Council,80470413,LL8,Individualised Budget,P03,Wellbeing,DEVELOPING HEALTH AND INDEPENDENCE,01/06/2015,0.57
Bath & North East Somerset Council,80470413,LL8,Individualised Budget,P03,Wellbeing,DEVELOPING HEALTH AND INDEPENDENCE,01/06/2015,12
Bath & North East Somerset Council,80470413,LL8,Individualised Budget,P03,Wellbeing,DEVELOPING HEALTH AND INDEPENDENCE,01/06/2015,12
Bath & North East Somerset Council,80470413,LL8,Individualised Budget,P03,Wellbeing,DEVELOPING HEALTH AND INDEPENDENCE,01/06/2015,20.16
Bath & North East Somerset Council,80470413,LL8,Individualised Budget,P03,Wellbeing,DEVELOPING HEALTH AND INDEPENDENCE,01/06/2015,20.16
Bath & North East Somerset Council,80470413,LL8,Individualised Budget,P03,Wellbeing,DEVELOPING HEALTH AND INDEPENDENCE,01/06/2015,20.16
Bath & North East Somerset Council,80470413,LL8,Individualised Budget,P03,Wellbeing,DEVELOPING HEALTH AND INDEPENDENCE,01/06/2015,20.16
Bath & North East Somerset Council,80470413,LL8,Individualised Budget,P03,Wellbeing,DEVELOPING HEALTH AND INDEPENDENCE,01/06/2015,32
Bath & North East Somerset Council,80470413,LL8,Individualised Budget,P03,Wellbeing,DEVELOPING HEALTH AND INDEPENDENCE,01/06/2015,32
Bath & North East Somerset Council,80470413,LL8,Individualised Budget,P03,Wellbeing,DEVELOPING HEALTH AND INDEPENDENCE,01/06/2015,33.67
Bath & North East Somerset Council,80470413,LL8,Individualised Budget,P03,Wellbeing,DEVELOPING HEALTH AND INDEPENDENCE,01/06/2015,33.67
Bath & North East Somerset Council,80470413,LL8,Individualised Budget,P03,Wellbeing,DEVELOPING HEALTH AND INDEPENDENCE,01/06/2015,33.67
Bath & North East Somerset Council,80470413,LL8,Individualised Budget,P03,Wellbeing,DEVELOPING HEALTH AND INDEPENDENCE,01/06/2015,39.51
Bath & North East Somerset Council,80470413,LL8,Individualised Budget,P03,Wellbeing,DEVELOPING HEALTH AND INDEPENDENCE,01/06/2015,39.51
Bath & North East Somerset Council,80470413,LL8,Individualised Budget,P03,Wellbeing,DEVELOPING HEALTH AND INDEPENDENCE,01/06/2015,41.48
Bath & North East Somerset Council,80470413,LL8,Individualised Budget,P03,Wellbeing,DEVELOPING HEALTH AND INDEPENDENCE,01/06/2015,41.48
Bath & North East Somerset Council,80470413,YF2,Fees & Charges,P03,Wellbeing,DEVELOPING HEALTH AND INDEPENDENCE,01/06/2015,43.83
Bath & North East Somerset Council,80470413,YF2,Fees & Charges,P03,Wellbeing,DEVELOPING HEALTH AND INDEPENDENCE,01/06/2015,43.83
Bath & North East Somerset Council,80470413,YF2,Fees & Charges,P03,Wellbeing,DEVELOPING HEALTH AND INDEPENDENCE,01/06/2015,43.83
Bath & North East Somerset Council,80470413,YF2,Fees & Charges,P03,Wellbeing,DEVELOPING HEALTH AND INDEPENDENCE,01/06/2015,43.83
Bath & North East Somerset Council,80470413,YF2,Fees & Charges,P03,Wellbeing,DEVELOPING HEALTH AND INDEPENDENCE,01/06/2015,43.83
Bath & North East Somerset Council,80470413,YF2,Fees & Charges,P03,Wellbeing,DEVELOPING HEALTH AND INDEPENDENCE,01/06/2015,43.83
Bath & North East Somerset Council,80470413,YF2,Fees & Charges,P03,Wellbeing,DEVELOPING HEALTH AND INDEPENDENCE,01/06/2015,43.83
Bath & North East Somerset Council,80470413,LL8,Individualised Budget,P03,Wellbeing,DEVELOPING HEALTH AND INDEPENDENCE,01/06/2015,52.61
Bath & North East Somerset Council,80470413,LL8,Individualised Budget,P03,Wellbeing,DEVELOPING HEALTH AND INDEPENDENCE,01/06/2015,52.61
Bath & North East Somerset Council,80470413,LL8,Individualised Budget,P03,Wellbeing,DEVELOPING HEALTH AND INDEPENDENCE,01/06/2015,52.99
Bath & North East Somerset Council,80470413,LL8,Individualised Budget,P03,Wellbeing,DEVELOPING HEALTH AND INDEPENDENCE,01/06/2015,52.99
Bath & North East Somerset Council,80470413,LL8,Individualised Budget,P03,Wellbeing,DEVELOPING HEALTH AND INDEPENDENCE,01/06/2015,55.06
Bath & North East Somerset Council,80470413,LL8,Individualised Budget,P03,Wellbeing,DEVELOPING HEALTH AND INDEPENDENCE,01/06/2015,55.06
Bath & North East Somerset Council,80470413,LL8,Individualised Budget,P03,Wellbeing,DEVELOPING HEALTH AND INDEPENDENCE,01/06/2015,57.78
Bath & North East Somerset Council,80470413,LL8,Individualised Budget,P03,Wellbeing,DEVELOPING HEALTH AND INDEPENDENCE,01/06/2015,57.78
Bath & North East Somerset Council,80470413,LL8,Individualised Budget,P03,Wellbeing,DEVELOPING HEALTH AND INDEPENDENCE,01/06/2015,58.25
Bath & North East Somerset Council,80470413,LL8,Individualised Budget,P03,Wellbeing,DEVELOPING HEALTH AND INDEPENDENCE,01/06/2015,58.25
Bath & North East Somerset Council,80470413,LL8,Individualised Budget,P03,Wellbeing,DEVELOPING HEALTH AND INDEPENDENCE,01/06/2015,58.94
Bath & North East Somerset Council,80470413,LL8,Individualised Budget,P03,Wellbeing,DEVELOPING HEALTH AND INDEPENDENCE,01/06/2015,58.94
Bath & North East Somerset Council,80470413,LL8,Individualised Budget,P03,Wellbeing,DEVELOPING HEALTH AND INDEPENDENCE,01/06/2015,58.94
Bath & North East Somerset Council,80470413,LL8,Individualised Budget,P03,Wellbeing,DEVELOPING HEALTH AND INDEPENDENCE,01/06/2015,58.94
Bath & North East Somerset Council,80470413,LL8,Individualised Budget,P03,Wellbeing,DEVELOPING HEALTH AND INDEPENDENCE,01/06/2015,59.41
Bath & North East Somerset Council,80470413,LL8,Individualised Budget,P03,Wellbeing,DEVELOPING HEALTH AND INDEPENDENCE,01/06/2015,59.41
Bath & North East Somerset Council,80470413,LL8,Individualised Budget,P03,Wellbeing,DEVELOPING HEALTH AND INDEPENDENCE,01/06/2015,59.41
Bath & North East Somerset Council,80470413,LL8,Individualised Budget,P03,Wellbeing,DEVELOPING HEALTH AND INDEPENDENCE,01/06/2015,59.41
Bath & North East Somerset Council,80470413,LL8,Individualised Budget,P03,Wellbeing,DEVELOPING HEALTH AND INDEPENDENCE,01/06/2015,59.41
Bath & North East Somerset Council,80470413,LL8,Individualised Budget,P03,Wellbeing,DEVELOPING HEALTH AND INDEPENDENCE,01/06/2015,59.41
Bath & North East Somerset Council,80470413,LL8,Individualised Budget,P03,Wellbeing,DEVELOPING HEALTH AND INDEPENDENCE,01/06/2015,59.41
Bath & North East Somerset Council,80470413,LL8,Individualised Budget,P03,Wellbeing,DEVELOPING HEALTH AND INDEPENDENCE,01/06/2015,59.41
Bath & North East Somerset Council,80470413,LL8,Individualised Budget,P03,Wellbeing,DEVELOPING HEALTH AND INDEPENDENCE,01/06/2015,59.41
Bath & North East Somerset Council,80470413,LL8,Individualised Budget,P03,Wellbeing,DEVELOPING HEALTH AND INDEPENDENCE,01/06/2015,59.41
Bath & North East Somerset Council,80470413,LL8,Individualised Budget,P03,Wellbeing,DEVELOPING HEALTH AND INDEPENDENCE,01/06/2015,59.41
Bath & North East Somerset Council,80470413,LL8,Individualised Budget,P03,Wellbeing,DEVELOPING HEALTH AND INDEPENDENCE,01/06/2015,59.41
Bath & North East Somerset Council,80470413,LL8,Individualised Budget,P03,Wellbeing,DEVELOPING HEALTH AND INDEPENDENCE,01/06/2015,59.41
Bath & North East Somerset Council,80470413,LL8,Individualised Budget,P03,Wellbeing,DEVELOPING HEALTH AND INDEPENDENCE,01/06/2015,59.41
Bath & North East Somerset Council,80470413,LL8,Individualised Budget,P03,Wellbeing,DEVELOPING HEALTH AND INDEPENDENCE,01/06/2015,59.41
Bath & North East Somerset Council,80470413,LL8,Individualised Budget,P03,Wellbeing,DEVELOPING HEALTH AND INDEPENDENCE,01/06/2015,59.41
Bath & North East Somerset Council,80470413,LL8,Individualised Budget,P03,Wellbeing,DEVELOPING HEALTH AND INDEPENDENCE,01/06/2015,59.41
Bath & North East Somerset Council,80470413,LL8,Individualised Budget,P03,Wellbeing,DEVELOPING HEALTH AND INDEPENDENCE,01/06/2015,59.41
Bath & North East Somerset Council,80470413,LL8,Individualised Budget,P03,Wellbeing,DEVELOPING HEALTH AND INDEPENDENCE,01/06/2015,59.41
Bath & North East Somerset Council,80470413,LL8,Individualised Budget,P03,Wellbeing,DEVELOPING HEALTH AND INDEPENDENCE,01/06/2015,59.41
Bath & North East Somerset Council,80470413,LL8,Individualised Budget,P03,Wellbeing,DEVELOPING HEALTH AND INDEPENDENCE,01/06/2015,59.41
Bath & North East Somerset Council,80470413,LL8,Individualised Budget,P03,Wellbeing,DEVELOPING HEALTH AND INDEPENDENCE,01/06/2015,59.41
Bath & North East Somerset Council,80470413,LL8,Individualised Budget,P03,Wellbeing,DEVELOPING HEALTH AND INDEPENDENCE,01/06/2015,59.41
Bath & North East Somerset Council,80470413,LL8,Individualised Budget,P03,Wellbeing,DEVELOPING HEALTH AND INDEPENDENCE,01/06/2015,59.41
Bath & North East Somerset Council,80470413,LL8,Individualised Budget,P03,Wellbeing,DEVELOPING HEALTH AND INDEPENDENCE,01/06/2015,59.41
Bath & North East Somerset Council,80470413,LL8,Individualised Budget,P03,Wellbeing,DEVELOPING HEALTH AND INDEPENDENCE,01/06/2015,59.41
Bath & North East Somerset Council,80470413,LL8,Individualised Budget,P03,Wellbeing,DEVELOPING HEALTH AND INDEPENDENCE,01/06/2015,59.41
Bath & North East Somerset Council,80470413,LL8,Individualised Budget,P03,Wellbeing,DEVELOPING HEALTH AND INDEPENDENCE,01/06/2015,59.41
Bath & North East Somerset Council,80470413,LL8,Individualised Budget,P03,Wellbeing,DEVELOPING HEALTH AND INDEPENDENCE,01/06/2015,59.41
Bath & North East Somerset Council,80470413,LL8,Individualised Budget,P03,Wellbeing,DEVELOPING HEALTH AND INDEPENDENCE,01/06/2015,59.41
Bath & North East Somerset Council,80470413,LL8,Individualised Budget,P03,Wellbeing,DEVELOPING HEALTH AND INDEPENDENCE,01/06/2015,59.41
Bath & North East Somerset Council,80470413,LL8,Individualised Budget,P03,Wellbeing,DEVELOPING HEALTH AND INDEPENDENCE,01/06/2015,59.41
Bath & North East Somerset Council,80470413,LL8,Individualised Budget,P03,Wellbeing,DEVELOPING HEALTH AND INDEPENDENCE,01/06/2015,59.41
Bath & North East Somerset Council,80470413,LL8,Individualised Budget,P03,Wellbeing,DEVELOPING HEALTH AND INDEPENDENCE,01/06/2015,59.41
Bath & North East Somerset Council,80470413,LL8,Individualised Budget,P03,Wellbeing,DEVELOPING HEALTH AND INDEPENDENCE,01/06/2015,59.41
Bath & North East Somerset Council,80470413,LL8,Individualised Budget,P03,Wellbeing,DEVELOPING HEALTH AND INDEPENDENCE,01/06/2015,59.41
Bath & North East Somerset Council,80470413,LL8,Individualised Budget,P03,Wellbeing,DEVELOPING HEALTH AND INDEPENDENCE,01/06/2015,59.41
Bath & North East Somerset Council,80470413,LL8,Individualised Budget,P03,Wellbeing,DEVELOPING HEALTH AND INDEPENDENCE,01/06/2015,59.41
Bath & North East Somerset Council,80470413,LL8,Individualised Budget,P03,Wellbeing,DEVELOPING HEALTH AND INDEPENDENCE,01/06/2015,59.41
Bath & North East Somerset Council,80470413,LL8,Individualised Budget,P03,Wellbeing,DEVELOPING HEALTH AND INDEPENDENCE,01/06/2015,60.01
Bath & North East Somerset Council,80470413,LL8,Individualised Budget,P03,Wellbeing,DEVELOPING HEALTH AND INDEPENDENCE,01/06/2015,60.01
Bath & North East Somerset Council,80470413,LL8,Individualised Budget,P03,Wellbeing,DEVELOPING HEALTH AND INDEPENDENCE,01/06/2015,61.79
Bath & North East Somerset Council,80470413,LL8,Individualised Budget,P03,Wellbeing,DEVELOPING HEALTH AND INDEPENDENCE,01/06/2015,61.79
Bath & North East Somerset Council,80470413,LL8,Individualised Budget,P03,Wellbeing,DEVELOPING HEALTH AND INDEPENDENCE,01/06/2015,63
Bath & North East Somerset Council,80470413,LL8,Individualised Budget,P03,Wellbeing,DEVELOPING HEALTH AND INDEPENDENCE,01/06/2015,63
Bath & North East Somerset Council,80470413,LL8,Individualised Budget,P03,Wellbeing,DEVELOPING HEALTH AND INDEPENDENCE,01/06/2015,63.34
Bath & North East Somerset Council,80470413,LL8,Individualised Budget,P03,Wellbeing,DEVELOPING HEALTH AND INDEPENDENCE,01/06/2015,63.34
Bath & North East Somerset Council,80470413,LL8,Individualised Budget,P03,Wellbeing,DEVELOPING HEALTH AND INDEPENDENCE,01/06/2015,64.35
Bath & North East Somerset Council,80470413,LL8,Individualised Budget,P03,Wellbeing,DEVELOPING HEALTH AND INDEPENDENCE,01/06/2015,64.35
Bath & North East Somerset Council,80470413,LL8,Individualised Budget,P03,Wellbeing,DEVELOPING HEALTH AND INDEPENDENCE,01/06/2015,65.09
Bath & North East Somerset Council,80470413,LL8,Individualised Budget,P03,Wellbeing,DEVELOPING HEALTH AND INDEPENDENCE,01/06/2015,65.09
Bath & North East Somerset Council,80470413,LL8,Individualised Budget,P03,Wellbeing,DEVELOPING HEALTH AND INDEPENDENCE,01/06/2015,66.3
Bath & North East Somerset Council,80470413,LL8,Individualised Budget,P03,Wellbeing,DEVELOPING HEALTH AND INDEPENDENCE,01/06/2015,66.3
Bath & North East Somerset Council,80470413,LL8,Individualised Budget,P03,Wellbeing,DEVELOPING HEALTH AND INDEPENDENCE,01/06/2015,66.31
Bath & North East Somerset Council,80470413,LL8,Individualised Budget,P03,Wellbeing,DEVELOPING HEALTH AND INDEPENDENCE,01/06/2015,66.31
Bath & North East Somerset Council,80470413,LL8,Individualised Budget,P03,Wellbeing,DEVELOPING HEALTH AND INDEPENDENCE,01/06/2015,69.6
Bath & North East Somerset Council,80470413,LL8,Individualised Budget,P03,Wellbeing,DEVELOPING HEALTH AND INDEPENDENCE,01/06/2015,69.6
Bath & North East Somerset Council,80470413,LL8,Individualised Budget,P03,Wellbeing,DEVELOPING HEALTH AND INDEPENDENCE,01/06/2015,73.13
Bath & North East Somerset Council,80470413,LL8,Individualised Budget,P03,Wellbeing,DEVELOPING HEALTH AND INDEPENDENCE,01/06/2015,73.13
Bath & North East Somerset Council,80470413,LL8,Individualised Budget,P03,Wellbeing,DEVELOPING HEALTH AND INDEPENDENCE,01/06/2015,73.15
Bath & North East Somerset Council,80470413,LL8,Individualised Budget,P03,Wellbeing,DEVELOPING HEALTH AND INDEPENDENCE,01/06/2015,73.15
Bath & North East Somerset Council,80470413,LL8,Individualised Budget,P03,Wellbeing,DEVELOPING HEALTH AND INDEPENDENCE,01/06/2015,79.61
Bath & North East Somerset Council,80470176,LL4,Direct Payments,P02,"Early Years, Children & Youth",WECIL LTD,01/06/2015,222.01
Bath & North East Somerset Council,80470176,LL4,Direct Payments,P02,"Early Years, Children & Youth",WECIL LTD,01/06/2015,222.01
Bath & North East Somerset Council,80470413,LL8,Individualised Budget,P03,Wellbeing,DEVELOPING HEALTH AND INDEPENDENCE,01/06/2015,79.61
Bath & North East Somerset Council,80470413,LL8,Individualised Budget,P03,Wellbeing,DEVELOPING HEALTH AND INDEPENDENCE,01/06/2015,80
Bath & North East Somerset Council,80470413,LL8,Individualised Budget,P03,Wellbeing,DEVELOPING HEALTH AND INDEPENDENCE,01/06/2015,80
Bath & North East Somerset Council,80470413,LL8,Individualised Budget,P03,Wellbeing,DEVELOPING HEALTH AND INDEPENDENCE,01/06/2015,80.82
Bath & North East Somerset Council,80470413,LL8,Individualised Budget,P03,Wellbeing,DEVELOPING HEALTH AND INDEPENDENCE,01/06/2015,81.69
Bath & North East Somerset Council,80470413,LL8,Individualised Budget,P03,Wellbeing,DEVELOPING HEALTH AND INDEPENDENCE,01/06/2015,81.69
Bath & North East Somerset Council,80470413,LL8,Individualised Budget,P03,Wellbeing,DEVELOPING HEALTH AND INDEPENDENCE,01/06/2015,83.2
Bath & North East Somerset Council,80470413,LL8,Individualised Budget,P03,Wellbeing,DEVELOPING HEALTH AND INDEPENDENCE,01/06/2015,83.2
Bath & North East Somerset Council,80470413,LL8,Individualised Budget,P03,Wellbeing,DEVELOPING HEALTH AND INDEPENDENCE,01/06/2015,83.75
Bath & North East Somerset Council,80470413,LL8,Individualised Budget,P03,Wellbeing,DEVELOPING HEALTH AND INDEPENDENCE,01/06/2015,83.75
Bath & North East Somerset Council,80470413,LL8,Individualised Budget,P03,Wellbeing,DEVELOPING HEALTH AND INDEPENDENCE,01/06/2015,85.18
Bath & North East Somerset Council,80470413,LL8,Individualised Budget,P03,Wellbeing,DEVELOPING HEALTH AND INDEPENDENCE,01/06/2015,85.18
Bath & North East Somerset Council,80470413,LL8,Individualised Budget,P03,Wellbeing,DEVELOPING HEALTH AND INDEPENDENCE,01/06/2015,85.18
Bath & North East Somerset Council,80470413,LL8,Individualised Budget,P03,Wellbeing,DEVELOPING HEALTH AND INDEPENDENCE,01/06/2015,85.18
Bath & North East Somerset Council,80470413,LL8,Individualised Budget,P03,Wellbeing,DEVELOPING HEALTH AND INDEPENDENCE,01/06/2015,85.18
Bath & North East Somerset Council,80470413,LL8,Individualised Budget,P03,Wellbeing,DEVELOPING HEALTH AND INDEPENDENCE,01/06/2015,85.18
Bath & North East Somerset Council,80470413,LL8,Individualised Budget,P03,Wellbeing,DEVELOPING HEALTH AND INDEPENDENCE,01/06/2015,85.18
Bath & North East Somerset Council,80470413,LL8,Individualised Budget,P03,Wellbeing,DEVELOPING HEALTH AND INDEPENDENCE,01/06/2015,87.16
Bath & North East Somerset Council,80470413,LL8,Individualised Budget,P03,Wellbeing,DEVELOPING HEALTH AND INDEPENDENCE,01/06/2015,87.16
Bath & North East Somerset Council,80470413,LL8,Individualised Budget,P03,Wellbeing,DEVELOPING HEALTH AND INDEPENDENCE,01/06/2015,87.25
Bath & North East Somerset Council,80470413,LL8,Individualised Budget,P03,Wellbeing,DEVELOPING HEALTH AND INDEPENDENCE,01/06/2015,87.25
Bath & North East Somerset Council,80470413,LL8,Individualised Budget,P03,Wellbeing,DEVELOPING HEALTH AND INDEPENDENCE,01/06/2015,91
Bath & North East Somerset Council,80470413,LL8,Individualised Budget,P03,Wellbeing,DEVELOPING HEALTH AND INDEPENDENCE,01/06/2015,91
Bath & North East Somerset Council,80470413,LL8,Individualised Budget,P03,Wellbeing,DEVELOPING HEALTH AND INDEPENDENCE,01/06/2015,92.31
Bath & North East Somerset Council,80470413,LL8,Individualised Budget,P03,Wellbeing,DEVELOPING HEALTH AND INDEPENDENCE,01/06/2015,92.31
Bath & North East Somerset Council,80470413,LL8,Individualised Budget,P03,Wellbeing,DEVELOPING HEALTH AND INDEPENDENCE,01/06/2015,93.01
Bath & North East Somerset Council,80470413,LL8,Individualised Budget,P03,Wellbeing,DEVELOPING HEALTH AND INDEPENDENCE,01/06/2015,93.01
Bath & North East Somerset Council,80470413,LL8,Individualised Budget,P03,Wellbeing,DEVELOPING HEALTH AND INDEPENDENCE,01/06/2015,93.32
Bath & North East Somerset Council,80470413,LL8,Individualised Budget,P03,Wellbeing,DEVELOPING HEALTH AND INDEPENDENCE,01/06/2015,93.32
Bath & North East Somerset Council,80470413,LL8,Individualised Budget,P03,Wellbeing,DEVELOPING HEALTH AND INDEPENDENCE,01/06/2015,95.74
Bath & North East Somerset Council,80470413,LL8,Individualised Budget,P03,Wellbeing,DEVELOPING HEALTH AND INDEPENDENCE,01/06/2015,95.74
Bath & North East Somerset Council,80470413,LL8,Individualised Budget,P03,Wellbeing,DEVELOPING HEALTH AND INDEPENDENCE,01/06/2015,97.65
Bath & North East Somerset Council,80470413,LL8,Individualised Budget,P03,Wellbeing,DEVELOPING HEALTH AND INDEPENDENCE,01/06/2015,97.65
Bath & North East Somerset Council,80470413,LL8,Individualised Budget,P03,Wellbeing,DEVELOPING HEALTH AND INDEPENDENCE,01/06/2015,100.48
Bath & North East Somerset Council,80470413,LL8,Individualised Budget,P03,Wellbeing,DEVELOPING HEALTH AND INDEPENDENCE,01/06/2015,100.85
Bath & North East Somerset Council,80470413,LL8,Individualised Budget,P03,Wellbeing,DEVELOPING HEALTH AND INDEPENDENCE,01/06/2015,100.85
Bath & North East Somerset Council,80470413,LL8,Individualised Budget,P03,Wellbeing,DEVELOPING HEALTH AND INDEPENDENCE,01/06/2015,101.93
Bath & North East Somerset Council,80470413,LL8,Individualised Budget,P03,Wellbeing,DEVELOPING HEALTH AND INDEPENDENCE,01/06/2015,101.93
Bath & North East Somerset Council,80470413,LL8,Individualised Budget,P03,Wellbeing,DEVELOPING HEALTH AND INDEPENDENCE,01/06/2015,102.99
Bath & North East Somerset Council,80470413,LL8,Individualised Budget,P03,Wellbeing,DEVELOPING HEALTH AND INDEPENDENCE,01/06/2015,102.99
Bath & North East Somerset Council,80470413,LL8,Individualised Budget,P03,Wellbeing,DEVELOPING HEALTH AND INDEPENDENCE,01/06/2015,103.64
Bath & North East Somerset Council,80470413,LL8,Individualised Budget,P03,Wellbeing,DEVELOPING HEALTH AND INDEPENDENCE,01/06/2015,103.64
Bath & North East Somerset Council,80470413,LL8,Individualised Budget,P03,Wellbeing,DEVELOPING HEALTH AND INDEPENDENCE,01/06/2015,105.36
Bath & North East Somerset Council,80470413,LL8,Individualised Budget,P03,Wellbeing,DEVELOPING HEALTH AND INDEPENDENCE,01/06/2015,105.36
Bath & North East Somerset Council,80470413,LL8,Individualised Budget,P03,Wellbeing,DEVELOPING HEALTH AND INDEPENDENCE,01/06/2015,110.47
Bath & North East Somerset Council,80470413,LL8,Individualised Budget,P03,Wellbeing,DEVELOPING HEALTH AND INDEPENDENCE,01/06/2015,110.47
Bath & North East Somerset Council,80470413,LL8,Individualised Budget,P03,Wellbeing,DEVELOPING HEALTH AND INDEPENDENCE,01/06/2015,110.6
Bath & North East Somerset Council,80470413,LL8,Individualised Budget,P03,Wellbeing,DEVELOPING HEALTH AND INDEPENDENCE,01/06/2015,110.6
Bath & North East Somerset Council,80470413,LL8,Individualised Budget,P03,Wellbeing,DEVELOPING HEALTH AND INDEPENDENCE,01/06/2015,110.94
Bath & North East Somerset Council,80470413,LL8,Individualised Budget,P03,Wellbeing,DEVELOPING HEALTH AND INDEPENDENCE,01/06/2015,110.94
Bath & North East Somerset Council,80470413,LL8,Individualised Budget,P03,Wellbeing,DEVELOPING HEALTH AND INDEPENDENCE,01/06/2015,114.23
Bath & North East Somerset Council,80470413,LL8,Individualised Budget,P03,Wellbeing,DEVELOPING HEALTH AND INDEPENDENCE,01/06/2015,114.23
Bath & North East Somerset Council,80470413,LL8,Individualised Budget,P03,Wellbeing,DEVELOPING HEALTH AND INDEPENDENCE,01/06/2015,114.41
Bath & North East Somerset Council,80470413,LL8,Individualised Budget,P03,Wellbeing,DEVELOPING HEALTH AND INDEPENDENCE,01/06/2015,114.41
Bath & North East Somerset Council,80470413,LL8,Individualised Budget,P03,Wellbeing,DEVELOPING HEALTH AND INDEPENDENCE,01/06/2015,114.83
Bath & North East Somerset Council,80470413,LL8,Individualised Budget,P03,Wellbeing,DEVELOPING HEALTH AND INDEPENDENCE,01/06/2015,114.83
Bath & North East Somerset Council,80470413,LL8,Individualised Budget,P03,Wellbeing,DEVELOPING HEALTH AND INDEPENDENCE,01/06/2015,116.21
Bath & North East Somerset Council,80470413,LL8,Individualised Budget,P03,Wellbeing,DEVELOPING HEALTH AND INDEPENDENCE,01/06/2015,116.21
Bath & North East Somerset Council,80470413,LL8,Individualised Budget,P03,Wellbeing,DEVELOPING HEALTH AND INDEPENDENCE,01/06/2015,116.21
Bath & North East Somerset Council,80470413,LL8,Individualised Budget,P03,Wellbeing,DEVELOPING HEALTH AND INDEPENDENCE,01/06/2015,116.21
Bath & North East Somerset Council,80470413,LL8,Individualised Budget,P03,Wellbeing,DEVELOPING HEALTH AND INDEPENDENCE,01/06/2015,117.95
Bath & North East Somerset Council,80470413,LL8,Individualised Budget,P03,Wellbeing,DEVELOPING HEALTH AND INDEPENDENCE,01/06/2015,117.95
Bath & North East Somerset Council,80470413,LL8,Individualised Budget,P03,Wellbeing,DEVELOPING HEALTH AND INDEPENDENCE,01/06/2015,119
Bath & North East Somerset Council,80470413,LL8,Individualised Budget,P03,Wellbeing,DEVELOPING HEALTH AND INDEPENDENCE,01/06/2015,119
Bath & North East Somerset Council,80470413,LL8,Individualised Budget,P03,Wellbeing,DEVELOPING HEALTH AND INDEPENDENCE,01/06/2015,119.62
Bath & North East Somerset Council,80470413,LL8,Individualised Budget,P03,Wellbeing,DEVELOPING HEALTH AND INDEPENDENCE,01/06/2015,119.62
Bath & North East Somerset Council,80470413,LL8,Individualised Budget,P03,Wellbeing,DEVELOPING HEALTH AND INDEPENDENCE,01/06/2015,121
Bath & North East Somerset Council,80470413,LL8,Individualised Budget,P03,Wellbeing,DEVELOPING HEALTH AND INDEPENDENCE,01/06/2015,121
Bath & North East Somerset Council,80470413,LL8,Individualised Budget,P03,Wellbeing,DEVELOPING HEALTH AND INDEPENDENCE,01/06/2015,121.5
Bath & North East Somerset Council,80470413,LL8,Individualised Budget,P03,Wellbeing,DEVELOPING HEALTH AND INDEPENDENCE,01/06/2015,121.5
Bath & North East Somerset Council,80470413,LL8,Individualised Budget,P03,Wellbeing,DEVELOPING HEALTH AND INDEPENDENCE,01/06/2015,123.71
Bath & North East Somerset Council,80470413,LL8,Individualised Budget,P03,Wellbeing,DEVELOPING HEALTH AND INDEPENDENCE,01/06/2015,123.71
Bath & North East Somerset Council,80470413,LL8,Individualised Budget,P03,Wellbeing,DEVELOPING HEALTH AND INDEPENDENCE,01/06/2015,124.05
Bath & North East Somerset Council,80470413,LL8,Individualised Budget,P03,Wellbeing,DEVELOPING HEALTH AND INDEPENDENCE,01/06/2015,124.05
Bath & North East Somerset Council,80470413,LL8,Individualised Budget,P03,Wellbeing,DEVELOPING HEALTH AND INDEPENDENCE,01/06/2015,125.68
Bath & North East Somerset Council,80470413,LL8,Individualised Budget,P03,Wellbeing,DEVELOPING HEALTH AND INDEPENDENCE,01/06/2015,125.68
Bath & North East Somerset Council,80470413,LL8,Individualised Budget,P03,Wellbeing,DEVELOPING HEALTH AND INDEPENDENCE,01/06/2015,127.36
Bath & North East Somerset Council,80470413,LL8,Individualised Budget,P03,Wellbeing,DEVELOPING HEALTH AND INDEPENDENCE,01/06/2015,127.36
Bath & North East Somerset Council,80470413,LL8,Individualised Budget,P03,Wellbeing,DEVELOPING HEALTH AND INDEPENDENCE,01/06/2015,131.23
Bath & North East Somerset Council,80470413,LL8,Individualised Budget,P03,Wellbeing,DEVELOPING HEALTH AND INDEPENDENCE,01/06/2015,131.23
Bath & North East Somerset Council,80470413,LL8,Individualised Budget,P03,Wellbeing,DEVELOPING HEALTH AND INDEPENDENCE,01/06/2015,136.5
Bath & North East Somerset Council,80470413,LL8,Individualised Budget,P03,Wellbeing,DEVELOPING HEALTH AND INDEPENDENCE,01/06/2015,136.5
Bath & North East Somerset Council,80470413,LL8,Individualised Budget,P03,Wellbeing,DEVELOPING HEALTH AND INDEPENDENCE,01/06/2015,140
Bath & North East Somerset Council,80470413,LL8,Individualised Budget,P03,Wellbeing,DEVELOPING HEALTH AND INDEPENDENCE,01/06/2015,140
Bath & North East Somerset Council,80470413,LL8,Individualised Budget,P03,Wellbeing,DEVELOPING HEALTH AND INDEPENDENCE,01/06/2015,142.56
Bath & North East Somerset Council,80470413,LL8,Individualised Budget,P03,Wellbeing,DEVELOPING HEALTH AND INDEPENDENCE,01/06/2015,142.56
Bath & North East Somerset Council,80470413,LL8,Individualised Budget,P03,Wellbeing,DEVELOPING HEALTH AND INDEPENDENCE,01/06/2015,147.5
Bath & North East Somerset Council,80470413,LL8,Individualised Budget,P03,Wellbeing,DEVELOPING HEALTH AND INDEPENDENCE,01/06/2015,147.5
Bath & North East Somerset Council,80470413,LL8,Individualised Budget,P03,Wellbeing,DEVELOPING HEALTH AND INDEPENDENCE,01/06/2015,152
Bath & North East Somerset Council,80470413,LL8,Individualised Budget,P03,Wellbeing,DEVELOPING HEALTH AND INDEPENDENCE,01/06/2015,152
Bath & North East Somerset Council,80470413,LL8,Individualised Budget,P03,Wellbeing,DEVELOPING HEALTH AND INDEPENDENCE,01/06/2015,153.4
Bath & North East Somerset Council,80470413,LL8,Individualised Budget,P03,Wellbeing,DEVELOPING HEALTH AND INDEPENDENCE,01/06/2015,153.4
Bath & North East Somerset Council,80470413,LL8,Individualised Budget,P03,Wellbeing,DEVELOPING HEALTH AND INDEPENDENCE,01/06/2015,157.76
Bath & North East Somerset Council,80470413,LL8,Individualised Budget,P03,Wellbeing,DEVELOPING HEALTH AND INDEPENDENCE,01/06/2015,157.76
Bath & North East Somerset Council,80470413,LL8,Individualised Budget,P03,Wellbeing,DEVELOPING HEALTH AND INDEPENDENCE,01/06/2015,162.5
Bath & North East Somerset Council,80470413,LL8,Individualised Budget,P03,Wellbeing,DEVELOPING HEALTH AND INDEPENDENCE,01/06/2015,162.5
Bath & North East Somerset Council,80470413,LL8,Individualised Budget,P03,Wellbeing,DEVELOPING HEALTH AND INDEPENDENCE,01/06/2015,162.68
Bath & North East Somerset Council,80470413,LL8,Individualised Budget,P03,Wellbeing,DEVELOPING HEALTH AND INDEPENDENCE,01/06/2015,162.68
Bath & North East Somerset Council,80470413,LL8,Individualised Budget,P03,Wellbeing,DEVELOPING HEALTH AND INDEPENDENCE,01/06/2015,165
Bath & North East Somerset Council,80470413,LL8,Individualised Budget,P03,Wellbeing,DEVELOPING HEALTH AND INDEPENDENCE,01/06/2015,165
Bath & North East Somerset Council,80470413,LL8,Individualised Budget,P03,Wellbeing,DEVELOPING HEALTH AND INDEPENDENCE,01/06/2015,165.85
Bath & North East Somerset Council,80470413,LL8,Individualised Budget,P03,Wellbeing,DEVELOPING HEALTH AND INDEPENDENCE,01/06/2015,165.85
Bath & North East Somerset Council,80470413,LL8,Individualised Budget,P03,Wellbeing,DEVELOPING HEALTH AND INDEPENDENCE,01/06/2015,170
Bath & North East Somerset Council,80470413,LL8,Individualised Budget,P03,Wellbeing,DEVELOPING HEALTH AND INDEPENDENCE,01/06/2015,170
Bath & North East Somerset Council,80470413,LL8,Individualised Budget,P03,Wellbeing,DEVELOPING HEALTH AND INDEPENDENCE,01/06/2015,173
Bath & North East Somerset Council,80470413,LL8,Individualised Budget,P03,Wellbeing,DEVELOPING HEALTH AND INDEPENDENCE,01/06/2015,173
Bath & North East Somerset Council,80470413,LL8,Individualised Budget,P03,Wellbeing,DEVELOPING HEALTH AND INDEPENDENCE,01/06/2015,174.58
Bath & North East Somerset Council,80470413,LL8,Individualised Budget,P03,Wellbeing,DEVELOPING HEALTH AND INDEPENDENCE,01/06/2015,174.58
Bath & North East Somerset Council,80470176,LL4,Direct Payments,P02,"Early Years, Children & Youth",WECIL LTD,01/06/2015,269.5
Bath & North East Somerset Council,80470413,LL8,Individualised Budget,P03,Wellbeing,DEVELOPING HEALTH AND INDEPENDENCE,01/06/2015,175.84
Bath & North East Somerset Council,80470413,LL8,Individualised Budget,P03,Wellbeing,DEVELOPING HEALTH AND INDEPENDENCE,01/06/2015,175.84
Bath & North East Somerset Council,80470413,LL8,Individualised Budget,P03,Wellbeing,DEVELOPING HEALTH AND INDEPENDENCE,01/06/2015,175.84
Bath & North East Somerset Council,80470413,LL8,Individualised Budget,P03,Wellbeing,DEVELOPING HEALTH AND INDEPENDENCE,01/06/2015,175.84
Bath & North East Somerset Council,80470413,LL8,Individualised Budget,P03,Wellbeing,DEVELOPING HEALTH AND INDEPENDENCE,01/06/2015,175.84
Bath & North East Somerset Council,80470413,LL8,Individualised Budget,P03,Wellbeing,DEVELOPING HEALTH AND INDEPENDENCE,01/06/2015,176
Bath & North East Somerset Council,80470413,LL8,Individualised Budget,P03,Wellbeing,DEVELOPING HEALTH AND INDEPENDENCE,01/06/2015,176
Bath & North East Somerset Council,80470413,LL8,Individualised Budget,P03,Wellbeing,DEVELOPING HEALTH AND INDEPENDENCE,01/06/2015,177.65
Bath & North East Somerset Council,80470413,LL8,Individualised Budget,P03,Wellbeing,DEVELOPING HEALTH AND INDEPENDENCE,01/06/2015,177.65
Bath & North East Somerset Council,80470413,LL8,Individualised Budget,P03,Wellbeing,DEVELOPING HEALTH AND INDEPENDENCE,01/06/2015,180
Bath & North East Somerset Council,80470413,LL8,Individualised Budget,P03,Wellbeing,DEVELOPING HEALTH AND INDEPENDENCE,01/06/2015,180
Bath & North East Somerset Council,80470413,LL8,Individualised Budget,P03,Wellbeing,DEVELOPING HEALTH AND INDEPENDENCE,01/06/2015,180
Bath & North East Somerset Council,80470413,LL8,Individualised Budget,P03,Wellbeing,DEVELOPING HEALTH AND INDEPENDENCE,01/06/2015,180
Bath & North East Somerset Council,80470413,LL8,Individualised Budget,P03,Wellbeing,DEVELOPING HEALTH AND INDEPENDENCE,01/06/2015,180
Bath & North East Somerset Council,80470413,LL8,Individualised Budget,P03,Wellbeing,DEVELOPING HEALTH AND INDEPENDENCE,01/06/2015,188.36
Bath & North East Somerset Council,80470413,LL8,Individualised Budget,P03,Wellbeing,DEVELOPING HEALTH AND INDEPENDENCE,01/06/2015,188.36
Bath & North East Somerset Council,80470413,LL8,Individualised Budget,P03,Wellbeing,DEVELOPING HEALTH AND INDEPENDENCE,01/06/2015,195.2
Bath & North East Somerset Council,80470413,LL8,Individualised Budget,P03,Wellbeing,DEVELOPING HEALTH AND INDEPENDENCE,01/06/2015,195.2
Bath & North East Somerset Council,80470413,LL8,Individualised Budget,P03,Wellbeing,DEVELOPING HEALTH AND INDEPENDENCE,01/06/2015,206.34
Bath & North East Somerset Council,80470413,LL8,Individualised Budget,P03,Wellbeing,DEVELOPING HEALTH AND INDEPENDENCE,01/06/2015,206.34
Bath & North East Somerset Council,80470413,LL8,Individualised Budget,P03,Wellbeing,DEVELOPING HEALTH AND INDEPENDENCE,01/06/2015,208.05
Bath & North East Somerset Council,80470413,LL8,Individualised Budget,P03,Wellbeing,DEVELOPING HEALTH AND INDEPENDENCE,01/06/2015,208.05
Bath & North East Somerset Council,80470413,LL8,Individualised Budget,P03,Wellbeing,DEVELOPING HEALTH AND INDEPENDENCE,01/06/2015,220.08
Bath & North East Somerset Council,80470413,LL8,Individualised Budget,P03,Wellbeing,DEVELOPING HEALTH AND INDEPENDENCE,01/06/2015,220.08
Bath & North East Somerset Council,80470413,LL8,Individualised Budget,P03,Wellbeing,DEVELOPING HEALTH AND INDEPENDENCE,01/06/2015,228.4
Bath & North East Somerset Council,80470413,LL8,Individualised Budget,P03,Wellbeing,DEVELOPING HEALTH AND INDEPENDENCE,01/06/2015,228.4
Bath & North East Somerset Council,80470413,LL8,Individualised Budget,P03,Wellbeing,DEVELOPING HEALTH AND INDEPENDENCE,01/06/2015,231.3
Bath & North East Somerset Council,80470413,LL8,Individualised Budget,P03,Wellbeing,DEVELOPING HEALTH AND INDEPENDENCE,01/06/2015,231.3
Bath & North East Somerset Council,80470413,LL8,Individualised Budget,P03,Wellbeing,DEVELOPING HEALTH AND INDEPENDENCE,01/06/2015,233.5
Bath & North East Somerset Council,80470413,LL8,Individualised Budget,P03,Wellbeing,DEVELOPING HEALTH AND INDEPENDENCE,01/06/2015,233.5
Bath & North East Somerset Council,80470413,LL8,Individualised Budget,P03,Wellbeing,DEVELOPING HEALTH AND INDEPENDENCE,01/06/2015,249.16
Bath & North East Somerset Council,80470413,LL8,Individualised Budget,P03,Wellbeing,DEVELOPING HEALTH AND INDEPENDENCE,01/06/2015,249.16
Bath & North East Somerset Council,80470413,LL8,Individualised Budget,P03,Wellbeing,DEVELOPING HEALTH AND INDEPENDENCE,01/06/2015,256.75
Bath & North East Somerset Council,80470413,LL8,Individualised Budget,P03,Wellbeing,DEVELOPING HEALTH AND INDEPENDENCE,01/06/2015,256.75
Bath & North East Somerset Council,80470413,LL8,Individualised Budget,P03,Wellbeing,DEVELOPING HEALTH AND INDEPENDENCE,01/06/2015,260
Bath & North East Somerset Council,80470413,LL8,Individualised Budget,P03,Wellbeing,DEVELOPING HEALTH AND INDEPENDENCE,01/06/2015,260
Bath & North East Somerset Council,80470413,LL8,Individualised Budget,P03,Wellbeing,DEVELOPING HEALTH AND INDEPENDENCE,01/06/2015,284
Bath & North East Somerset Council,80470413,LL8,Individualised Budget,P03,Wellbeing,DEVELOPING HEALTH AND INDEPENDENCE,01/06/2015,284
Bath & North East Somerset Council,80470413,LL8,Individualised Budget,P03,Wellbeing,DEVELOPING HEALTH AND INDEPENDENCE,01/06/2015,285.07
Bath & North East Somerset Council,80470413,LL8,Individualised Budget,P03,Wellbeing,DEVELOPING HEALTH AND INDEPENDENCE,01/06/2015,285.07
Bath & North East Somerset Council,80470413,LL8,Individualised Budget,P03,Wellbeing,DEVELOPING HEALTH AND INDEPENDENCE,01/06/2015,294.71
Bath & North East Somerset Council,80470413,LL8,Individualised Budget,P03,Wellbeing,DEVELOPING HEALTH AND INDEPENDENCE,01/06/2015,294.71
Bath & North East Somerset Council,80470413,LL8,Individualised Budget,P03,Wellbeing,DEVELOPING HEALTH AND INDEPENDENCE,01/06/2015,295.15
Bath & North East Somerset Council,80470413,LL8,Individualised Budget,P03,Wellbeing,DEVELOPING HEALTH AND INDEPENDENCE,01/06/2015,295.15
Bath & North East Somerset Council,80470413,LL8,Individualised Budget,P03,Wellbeing,DEVELOPING HEALTH AND INDEPENDENCE,01/06/2015,299
Bath & North East Somerset Council,80470413,LL8,Individualised Budget,P03,Wellbeing,DEVELOPING HEALTH AND INDEPENDENCE,01/06/2015,299
Bath & North East Somerset Council,80470413,LL8,Individualised Budget,P03,Wellbeing,DEVELOPING HEALTH AND INDEPENDENCE,01/06/2015,308
Bath & North East Somerset Council,80470413,LL8,Individualised Budget,P03,Wellbeing,DEVELOPING HEALTH AND INDEPENDENCE,01/06/2015,308
Bath & North East Somerset Council,80470413,LL8,Individualised Budget,P03,Wellbeing,DEVELOPING HEALTH AND INDEPENDENCE,01/06/2015,316.77
Bath & North East Somerset Council,80470413,LL8,Individualised Budget,P03,Wellbeing,DEVELOPING HEALTH AND INDEPENDENCE,01/06/2015,316.77
Bath & North East Somerset Council,80470413,LL8,Individualised Budget,P03,Wellbeing,DEVELOPING HEALTH AND INDEPENDENCE,01/06/2015,328.93
Bath & North East Somerset Council,80470413,LL8,Individualised Budget,P03,Wellbeing,DEVELOPING HEALTH AND INDEPENDENCE,01/06/2015,328.93
Bath & North East Somerset Council,80470413,LL8,Individualised Budget,P03,Wellbeing,DEVELOPING HEALTH AND INDEPENDENCE,01/06/2015,330.39
Bath & North East Somerset Council,80470413,LL8,Individualised Budget,P03,Wellbeing,DEVELOPING HEALTH AND INDEPENDENCE,01/06/2015,330.39
Bath & North East Somerset Council,80470413,LL8,Individualised Budget,P03,Wellbeing,DEVELOPING HEALTH AND INDEPENDENCE,01/06/2015,330.96
Bath & North East Somerset Council,80470413,LL8,Individualised Budget,P03,Wellbeing,DEVELOPING HEALTH AND INDEPENDENCE,01/06/2015,330.96
Bath & North East Somerset Council,80470413,LL8,Individualised Budget,P03,Wellbeing,DEVELOPING HEALTH AND INDEPENDENCE,01/06/2015,337.16
Bath & North East Somerset Council,80470413,LL8,Individualised Budget,P03,Wellbeing,DEVELOPING HEALTH AND INDEPENDENCE,01/06/2015,337.16
Bath & North East Somerset Council,80470413,LL8,Individualised Budget,P03,Wellbeing,DEVELOPING HEALTH AND INDEPENDENCE,01/06/2015,338.27
Bath & North East Somerset Council,80470413,LL8,Individualised Budget,P03,Wellbeing,DEVELOPING HEALTH AND INDEPENDENCE,01/06/2015,338.27
Bath & North East Somerset Council,80470413,LL8,Individualised Budget,P03,Wellbeing,DEVELOPING HEALTH AND INDEPENDENCE,01/06/2015,357
Bath & North East Somerset Council,80470413,LL8,Individualised Budget,P03,Wellbeing,DEVELOPING HEALTH AND INDEPENDENCE,01/06/2015,357
Bath & North East Somerset Council,80470413,LL8,Individualised Budget,P03,Wellbeing,DEVELOPING HEALTH AND INDEPENDENCE,01/06/2015,358.8
Bath & North East Somerset Council,80470413,LL8,Individualised Budget,P03,Wellbeing,DEVELOPING HEALTH AND INDEPENDENCE,01/06/2015,358.8
Bath & North East Somerset Council,80470413,LL8,Individualised Budget,P03,Wellbeing,DEVELOPING HEALTH AND INDEPENDENCE,01/06/2015,360
Bath & North East Somerset Council,80470413,LL8,Individualised Budget,P03,Wellbeing,DEVELOPING HEALTH AND INDEPENDENCE,01/06/2015,360
Bath & North East Somerset Council,80470413,LL8,Individualised Budget,P03,Wellbeing,DEVELOPING HEALTH AND INDEPENDENCE,01/06/2015,363.28
Bath & North East Somerset Council,80470413,LL8,Individualised Budget,P03,Wellbeing,DEVELOPING HEALTH AND INDEPENDENCE,01/06/2015,363.28
Bath & North East Somerset Council,80470413,LL8,Individualised Budget,P03,Wellbeing,DEVELOPING HEALTH AND INDEPENDENCE,01/06/2015,377.66
